Body Name,Service Area Categorisation,Service Area Division,Purpose of Expenditure,Payment Date,Trans No,Amount in �,Capital or Revenue,Beneficiary,Merchant Category,
Peterborough City Council,People & Communities,Coroners Service,Services,04/03/2020,30264075,435696.39,Revenue,Cambridgeshire County Council,Administration Expenses,
Peterborough City Council,People & Communities,Regulatory Services,Services,04/03/2020,30266775,500.00,Revenue,Access Independent Limited,Administration Expenses,
Peterborough City Council,Customer & Digital Services,Marketing & Communications,Services,09/03/2020,30264498,1800.00,Revenue,Paul Stainton Media Ltd,Advertising,
Peterborough City Council,Resources,Corporate Services,Services,04/03/2020,30259571,17075.00,Revenue,KPMG LLP,Audit Fees,
Peterborough City Council,People & Communities,Access to Resources & Specialist Commissioning,Schools,19/03/2020,30241249,19500.00,Revenue,Horizon Care & Education Group,Boarding Out Fees,
Peterborough City Council,People & Communities,Access to Resources & Specialist Commissioning,Schools,19/03/2020,30245137,-19500.00,Revenue,Horizon Care & Education Group,Boarding Out Fees,
Peterborough City Council,People & Communities,Access to Resources & Specialist Commissioning,Schools,13/03/2020,30246923,8837.08,Revenue,Fostering People Ltd,Boarding Out Fees,
Peterborough City Council,People & Communities,External Education Placements,Schools,09/03/2020,30247821,-24166.66,Revenue,Knossington Grange School Ltd,Boarding Out Fees,
Peterborough City Council,People & Communities,Access to Resources & Specialist Commissioning,Schools,09/03/2020,30248777,3582.60,Revenue,Fostering People Ltd,Boarding Out Fees,
Peterborough City Council,People & Communities,Access to Resources & Specialist Commissioning,Schools,09/03/2020,30248779,3582.60,Revenue,Fostering People Ltd,Boarding Out Fees,
Peterborough City Council,People & Communities,Access to Resources & Specialist Commissioning,Schools,09/03/2020,30254197,3702.02,Revenue,Fostering People Ltd,Boarding Out Fees,
Peterborough City Council,People & Communities,Access to Resources & Specialist Commissioning,Schools,09/03/2020,30254199,3702.02,Revenue,Fostering People Ltd,Boarding Out Fees,
Peterborough City Council,People & Communities,Access to Resources & Specialist Commissioning,Schools,09/03/2020,30256988,3582.60,Revenue,Fostering People Ltd,Boarding Out Fees,
Peterborough City Council,People & Communities,Access to Resources & Specialist Commissioning,Schools,11/03/2020,30257081,3582.60,Revenue,Fostering People Ltd,Boarding Out Fees,
Peterborough City Council,People & Communities,Access to Resources & Specialist Commissioning,Schools,11/03/2020,30258242,707.14,Revenue,Locate Accommodation Ltd,Boarding Out Fees,
Peterborough City Council,People & Communities,Special Educational Needs / Inclusion,Schools,09/03/2020,30258723,1225.00,Revenue,ELYSIUM HEALTHCARE LTD,Boarding Out Fees,
Peterborough City Council,People & Communities,Access to Resources & Specialist Commissioning,Schools,13/03/2020,30258803,1147.74,Revenue,Fostering People Ltd,Boarding Out Fees,
Peterborough City Council,People & Communities,Access to Resources & Specialist Commissioning,Schools,13/03/2020,30258948,3627.97,Revenue,Fostering People Ltd,Boarding Out Fees,
Peterborough City Council,People & Communities,Access to Resources & Specialist Commissioning,Schools,13/03/2020,30258950,3510.94,Revenue,Fostering People Ltd,Boarding Out Fees,
Peterborough City Council,People & Communities,Access to Resources & Specialist Commissioning,Schools,02/03/2020,30259887,-1823.76,Revenue,By The Bridge,Boarding Out Fees,
Peterborough City Council,People & Communities,Access to Resources & Specialist Commissioning,Schools,11/03/2020,30260006,1850.00,Revenue,Byrne House Ltd,Boarding Out Fees,
Peterborough City Council,People & Communities,Access to Resources & Specialist Commissioning,Schools,02/03/2020,30260525,894.87,Revenue,Key2 Futures Limited,Boarding Out Fees,
Peterborough City Council,People & Communities,Access to Resources & Specialist Commissioning,Schools,11/03/2020,30260764,22120.36,Revenue,Dove Adolescent Services Ltd,Boarding Out Fees,
Peterborough City Council,People & Communities,Access to Resources & Specialist Commissioning,Schools,16/03/2020,30261133,3764.02,Revenue,Eastern Family Services,Boarding Out Fees,
Peterborough City Council,People & Communities,Access to Resources & Specialist Commissioning,Schools,25/03/2020,30261145,2615.25,Revenue,Eastern Family Services,Boarding Out Fees,
Peterborough City Council,People & Communities,External Education Placements,Schools,18/12/2019,30261304,-19433.18,Revenue,The Chartwell Group,Boarding Out Fees,
Peterborough City Council,People & Communities,Access to Resources & Specialist Commissioning,Schools,06/03/2020,30264667,3491.10,Revenue,Banya Family Placement Agency,Boarding Out Fees,
Peterborough City Council,People & Communities,Access to Resources & Specialist Commissioning,Schools,06/03/2020,30265041,3607.47,Revenue,Banya Family Placement Agency,Boarding Out Fees,
Peterborough City Council,People & Communities,Access to Resources & Specialist Commissioning,Schools,02/03/2020,30266929,3454.33,Revenue,National Fostering Agency Ltd,Boarding Out Fees,
Peterborough City Council,People & Communities,Access to Resources & Specialist Commissioning,Schools,02/03/2020,30266930,3454.33,Revenue,National Fostering Agency Ltd,Boarding Out Fees,
Peterborough City Council,People & Communities,Access to Resources & Specialist Commissioning,Schools,02/03/2020,30266933,2936.08,Revenue,National Fostering Agency Ltd,Boarding Out Fees,
Peterborough City Council,People & Communities,Access to Resources & Specialist Commissioning,Schools,02/03/2020,30266972,3082.33,Revenue,Key2 Futures Limited,Boarding Out Fees,
Peterborough City Council,People & Communities,Access to Resources & Specialist Commissioning,Schools,02/03/2020,30266973,3082.33,Revenue,Key2 Futures Limited,Boarding Out Fees,
Peterborough City Council,People & Communities,Access to Resources & Specialist Commissioning,Schools,02/03/2020,30266974,3082.33,Revenue,Key2 Futures Limited,Boarding Out Fees,
Peterborough City Council,People & Communities,Access to Resources & Specialist Commissioning,Schools,02/03/2020,30266976,2982.90,Revenue,Key2 Futures Limited,Boarding Out Fees,
Peterborough City Council,People & Communities,Access to Resources & Specialist Commissioning,Schools,04/03/2020,30267180,1120.00,Revenue,Sixteen Plus Limited,Boarding Out Fees,
Peterborough City Council,People & Communities,Access to Resources & Specialist Commissioning,Schools,04/03/2020,30267181,2170.00,Revenue,Sixteen Plus Limited,Boarding Out Fees,
Peterborough City Council,People & Communities,Access to Resources & Specialist Commissioning,Schools,04/03/2020,30267182,671.44,Revenue,Axiom Housing Association Ltd,Boarding Out Fees,
Peterborough City Council,People & Communities,Access to Resources & Specialist Commissioning,Schools,06/03/2020,30267242,7440.00,Revenue,Sixteen Plus Limited,Boarding Out Fees,
Peterborough City Council,People & Communities,Access to Resources & Specialist Commissioning,Schools,04/03/2020,30267243,2170.00,Revenue,Sixteen Plus Limited,Boarding Out Fees,
Peterborough City Council,People & Communities,Access to Resources & Specialist Commissioning,Schools,04/03/2020,30267431,3120.04,Revenue,National Fostering Agency Ltd,Boarding Out Fees,
Peterborough City Council,People & Communities,Access to Resources & Specialist Commissioning,Schools,06/03/2020,30267547,6664.00,Revenue,Sixteen Plus Limited,Boarding Out Fees,
Peterborough City Council,People & Communities,Access to Resources & Specialist Commissioning,Schools,06/03/2020,30267898,996.33,Revenue,Acorn Care & Education Ltd,Boarding Out Fees,
Peterborough City Council,People & Communities,Access to Resources & Specialist Commissioning,Schools,06/03/2020,30267937,819.00,Revenue,Transition Care Peterborough Ltd,Boarding Out Fees,
Peterborough City Council,People & Communities,Access to Resources & Specialist Commissioning,Schools,06/03/2020,30267952,620.00,Revenue,Locate Accommodation Ltd,Boarding Out Fees,
Peterborough City Council,People & Communities,Access to Resources & Specialist Commissioning,Schools,06/03/2020,30267955,575.71,Revenue,Locate Accommodation Ltd,Boarding Out Fees,
Peterborough City Council,People & Communities,Access to Resources & Specialist Commissioning,Schools,06/03/2020,30267956,620.00,Revenue,Locate Accommodation Ltd,Boarding Out Fees,
Peterborough City Council,People & Communities,Access to Resources & Specialist Commissioning,Schools,06/03/2020,30267958,730.71,Revenue,Locate Accommodation Ltd,Boarding Out Fees,
Peterborough City Council,People & Communities,Access to Resources & Specialist Commissioning,Schools,06/03/2020,30267959,575.71,Revenue,Locate Accommodation Ltd,Boarding Out Fees,
Peterborough City Council,People & Communities,Access to Resources & Specialist Commissioning,Schools,06/03/2020,30267966,730.71,Revenue,Locate Accommodation Ltd,Boarding Out Fees,
Peterborough City Council,People & Communities,Access to Resources & Specialist Commissioning,Schools,06/03/2020,30267967,620.00,Revenue,Locate Accommodation Ltd,Boarding Out Fees,
Peterborough City Council,People & Communities,Access to Resources & Specialist Commissioning,Schools,06/03/2020,30267968,708.57,Revenue,Locate Accommodation Ltd,Boarding Out Fees,
Peterborough City Council,People & Communities,Access to Resources & Specialist Commissioning,Schools,06/03/2020,30268022,8837.08,Revenue,Fostering People Ltd,Boarding Out Fees,
Peterborough City Council,People & Communities,Access to Resources & Specialist Commissioning,Schools,09/03/2020,30268189,10857.36,Revenue,4D Care Ltd,Boarding Out Fees,
Peterborough City Council,People & Communities,Access to Resources & Specialist Commissioning,Schools,30/03/2020,30268190,14643.15,Revenue,4D Care Ltd,Boarding Out Fees,
Peterborough City Council,People & Communities,Access to Resources & Specialist Commissioning,Schools,09/03/2020,30268193,762.84,Revenue,Byrne House Ltd,Boarding Out Fees,
Peterborough City Council,People & Communities,External Education Placements,Schools,09/03/2020,30268215,21666.67,Revenue,Knossington Grange School Ltd,Boarding Out Fees,
Peterborough City Council,People & Communities,External Education Placements,Schools,09/03/2020,30268216,21006.67,Revenue,Knossington Grange School Ltd,Boarding Out Fees,
Peterborough City Council,People & Communities,Access to Resources & Specialist Commissioning,Schools,13/03/2020,30268318,3540.00,Revenue,Compass Fostering Eastern Ltd,Boarding Out Fees,
Peterborough City Council,People & Communities,Access to Resources & Specialist Commissioning,Schools,13/03/2020,30268319,3675.67,Revenue,Compass Fostering Eastern Ltd,Boarding Out Fees,
Peterborough City Council,People & Communities,Access to Resources & Specialist Commissioning,Schools,13/03/2020,30268320,3658.00,Revenue,Compass Fostering Eastern Ltd,Boarding Out Fees,
Peterborough City Council,People & Communities,Access to Resources & Specialist Commissioning,Schools,13/03/2020,30268322,3675.67,Revenue,Compass Fostering Eastern Ltd,Boarding Out Fees,
Peterborough City Council,People & Communities,Access to Resources & Specialist Commissioning,Schools,13/03/2020,30268323,3764.33,Revenue,Compass Fostering Eastern Ltd,Boarding Out Fees,
Peterborough City Council,People & Communities,Access to Resources & Specialist Commissioning,Schools,13/03/2020,30268324,3557.10,Revenue,Compass Fostering Eastern Ltd,Boarding Out Fees,
Peterborough City Council,People & Communities,Access to Resources & Specialist Commissioning,Schools,13/03/2020,30268325,3658.00,Revenue,Compass Fostering Eastern Ltd,Boarding Out Fees,
Peterborough City Council,People & Communities,Access to Resources & Specialist Commissioning,Schools,13/03/2020,30268326,3764.33,Revenue,Compass Fostering Eastern Ltd,Boarding Out Fees,
Peterborough City Council,People & Communities,Access to Resources & Specialist Commissioning,Schools,13/03/2020,30268327,3642.90,Revenue,Compass Fostering Eastern Ltd,Boarding Out Fees,
Peterborough City Council,People & Communities,Access to Resources & Specialist Commissioning,Schools,13/03/2020,30268329,730.71,Revenue,Locate Accommodation Ltd,Boarding Out Fees,
Peterborough City Council,People & Communities,Access to Resources & Specialist Commissioning,Schools,13/03/2020,30268330,730.71,Revenue,Locate Accommodation Ltd,Boarding Out Fees,
Peterborough City Council,People & Communities,Access to Resources & Specialist Commissioning,Schools,13/03/2020,30268422,3510.94,Revenue,Fostering People Ltd,Boarding Out Fees,
Peterborough City Council,People & Communities,Access to Resources & Specialist Commissioning,Schools,13/03/2020,30268423,3627.97,Revenue,Fostering People Ltd,Boarding Out Fees,
Peterborough City Council,People & Communities,Access to Resources & Specialist Commissioning,Schools,13/03/2020,30268440,3702.02,Revenue,Fostering People Ltd,Boarding Out Fees,
Peterborough City Council,People & Communities,Access to Resources & Specialist Commissioning,Schools,13/03/2020,30268441,3702.02,Revenue,Fostering People Ltd,Boarding Out Fees,
Peterborough City Council,People & Communities,Special Educational Needs / Inclusion,Schools,13/03/2020,30268650,2537.50,Revenue,Priory Hospital School Priory,Boarding Out Fees,
Peterborough City Council,People & Communities,Access to Resources & Specialist Commissioning,Schools,13/03/2020,30268658,1178.00,Revenue,Foster Care Associates Ltd FCA,Boarding Out Fees,
Peterborough City Council,People & Communities,Access to Resources & Specialist Commissioning,Schools,16/03/2020,30268679,3672.00,Revenue,Her Majesty�s Prison and Probation Service,Boarding Out Fees,
Peterborough City Council,People & Communities,Access to Resources & Specialist Commissioning,Schools,19/12/2019,30268682,6480.00,Revenue,Her Majesty�s Prison and Probation Service,Boarding Out Fees,
Peterborough City Council,People & Communities,Access to Resources & Specialist Commissioning,Schools,18/03/2020,30268683,720.00,Revenue,Her Majesty�s Prison and Probation Service,Boarding Out Fees,
Peterborough City Council,People & Communities,Access to Resources & Specialist Commissioning,Schools,20/03/2020,30268728,6480.00,Revenue,Her Majesty�s Prison and Probation Service,Boarding Out Fees,
Peterborough City Council,People & Communities,Access to Resources & Specialist Commissioning,Schools,13/03/2020,30268751,-15893.84,Revenue,Fostering People Ltd,Boarding Out Fees,
Peterborough City Council,People & Communities,Access to Resources & Specialist Commissioning,Schools,16/03/2020,30269220,1550.00,Revenue,Transition Care Peterborough Ltd,Boarding Out Fees,
Peterborough City Council,People & Communities,Access to Resources & Specialist Commissioning,Schools,18/03/2020,30269240,3082.33,Revenue,Key2 Futures Limited,Boarding Out Fees,
Peterborough City Council,People & Communities,Access to Resources & Specialist Commissioning,Schools,18/03/2020,30269241,3082.33,Revenue,Key2 Futures Limited,Boarding Out Fees,
Peterborough City Council,People & Communities,Access to Resources & Specialist Commissioning,Schools,25/03/2020,30269242,2883.47,Revenue,Key2 Futures Limited,Boarding Out Fees,
Peterborough City Council,People & Communities,Access to Resources & Specialist Commissioning,Schools,25/03/2020,30269243,2784.04,Revenue,Key2 Futures Limited,Boarding Out Fees,
Peterborough City Council,People & Communities,Access to Resources & Specialist Commissioning,Schools,18/03/2020,30269277,1550.00,Revenue,Transition Care Peterborough Ltd,Boarding Out Fees,
Peterborough City Council,People & Communities,Access to Resources & Specialist Commissioning,Schools,18/03/2020,30269278,1550.00,Revenue,Transition Care Peterborough Ltd,Boarding Out Fees,
Peterborough City Council,People & Communities,Access to Resources & Specialist Commissioning,Schools,18/03/2020,30269281,819.00,Revenue,Transition Care Peterborough Ltd,Boarding Out Fees,
Peterborough City Council,People & Communities,Access to Resources & Specialist Commissioning,Schools,18/03/2020,30269306,819.00,Revenue,Transition Care Peterborough Ltd,Boarding Out Fees,
Peterborough City Council,People & Communities,Access to Resources & Specialist Commissioning,Schools,18/03/2020,30269307,1550.00,Revenue,Transition Care Peterborough Ltd,Boarding Out Fees,
Peterborough City Council,People & Communities,Access to Resources & Specialist Commissioning,Schools,18/03/2020,30269308,1550.00,Revenue,Transition Care Peterborough Ltd,Boarding Out Fees,
Peterborough City Council,People & Communities,Access to Resources & Specialist Commissioning,Schools,18/03/2020,30269310,1550.00,Revenue,Transition Care Peterborough Ltd,Boarding Out Fees,
Peterborough City Council,People & Communities,Access to Resources & Specialist Commissioning,Schools,18/03/2020,30269311,1550.00,Revenue,Transition Care Peterborough Ltd,Boarding Out Fees,
Peterborough City Council,People & Communities,Access to Resources & Specialist Commissioning,Schools,18/03/2020,30269312,819.00,Revenue,Transition Care Peterborough Ltd,Boarding Out Fees,
Peterborough City Council,People & Communities,Access to Resources & Specialist Commissioning,Schools,18/03/2020,30269314,1550.00,Revenue,Transition Care Peterborough Ltd,Boarding Out Fees,
Peterborough City Council,People & Communities,Access to Resources & Specialist Commissioning,Schools,18/03/2020,30269315,1550.00,Revenue,Transition Care Peterborough Ltd,Boarding Out Fees,
Peterborough City Council,People & Communities,Access to Resources & Specialist Commissioning,Schools,18/03/2020,30269382,2030.00,Revenue,Sixteen Plus Limited,Boarding Out Fees,
Peterborough City Council,People & Communities,Access to Resources & Specialist Commissioning,Schools,18/03/2020,30269383,2030.00,Revenue,Sixteen Plus Limited,Boarding Out Fees,
Peterborough City Council,People & Communities,Access to Resources & Specialist Commissioning,Schools,18/03/2020,30269384,2030.00,Revenue,Sixteen Plus Limited,Boarding Out Fees,
Peterborough City Council,People & Communities,Access to Resources & Specialist Commissioning,Schools,18/03/2020,30269386,1550.00,Revenue,Transition Care Peterborough Ltd,Boarding Out Fees,
Peterborough City Council,People & Communities,Access to Resources & Specialist Commissioning,Schools,18/03/2020,30269404,1550.00,Revenue,Transition Care Peterborough Ltd,Boarding Out Fees,
Peterborough City Council,People & Communities,Access to Resources & Specialist Commissioning,Schools,25/03/2020,30269424,596.58,Revenue,Key2 Futures Limited,Boarding Out Fees,
Peterborough City Council,People & Communities,Access to Resources & Specialist Commissioning,Schools,25/03/2020,30269425,596.58,Revenue,Key2 Futures Limited,Boarding Out Fees,
Peterborough City Council,People & Communities,Access to Resources & Specialist Commissioning,Schools,18/03/2020,30269447,3082.33,Revenue,Key2 Futures Limited,Boarding Out Fees,
Peterborough City Council,People & Communities,Access to Resources & Specialist Commissioning,Schools,20/03/2020,30269583,3535.50,Revenue,Eastern Family Services,Boarding Out Fees,
Peterborough City Council,People & Communities,Access to Resources & Specialist Commissioning,Schools,20/03/2020,30269604,7440.00,Revenue,Her Majesty�s Prison and Probation Service,Boarding Out Fees,
Peterborough City Council,People & Communities,Access to Resources & Specialist Commissioning,Schools,20/03/2020,30269605,7440.00,Revenue,Her Majesty�s Prison and Probation Service,Boarding Out Fees,
Peterborough City Council,People & Communities,Access to Resources & Specialist Commissioning,Schools,27/03/2020,30269635,2170.00,Revenue,Sixteen Plus Limited,Boarding Out Fees,
Peterborough City Council,People & Communities,Access to Resources & Specialist Commissioning,Schools,27/01/2020,30269636,4319.64,Revenue,Transition Care Peterborough Ltd,Boarding Out Fees,
Peterborough City Council,People & Communities,Access to Resources & Specialist Commissioning,Schools,27/03/2020,30269637,2170.00,Revenue,Sixteen Plus Limited,Boarding Out Fees,
Peterborough City Council,People & Communities,Access to Resources & Specialist Commissioning,Schools,27/03/2020,30269639,2170.00,Revenue,Sixteen Plus Limited,Boarding Out Fees,
Peterborough City Council,People & Communities,Access to Resources & Specialist Commissioning,Schools,20/03/2020,30269680,17748.00,Revenue,Her Majesty�s Prison and Probation Service,Boarding Out Fees,
Peterborough City Council,People & Communities,Access to Resources & Specialist Commissioning,Schools,22/01/2020,30269681,4799.60,Revenue,Transition Care Peterborough Ltd,Boarding Out Fees,
Peterborough City Council,People & Communities,Access to Resources & Specialist Commissioning,Schools,20/03/2020,30269836,4034.34,Revenue,Five Rivers,Boarding Out Fees,
Peterborough City Council,People & Communities,Access to Resources & Specialist Commissioning,Schools,04/03/2020,8000161923,8400.00,Revenue,A & T Home Limited,Boarding Out Fees,
Peterborough City Council,People & Communities,Access to Resources & Specialist Commissioning,Schools,02/03/2020,8000162603,4104.95,Revenue,By The Bridge,Boarding Out Fees,
Peterborough City Council,People & Communities,Access to Resources & Specialist Commissioning,Schools,02/03/2020,8000162603,4187.02,Revenue,By The Bridge,Boarding Out Fees,
Peterborough City Council,People & Communities,Access to Resources & Specialist Commissioning,Schools,02/03/2020,8000162603,4321.00,Revenue,By The Bridge,Boarding Out Fees,
Peterborough City Council,People & Communities,Access to Resources & Specialist Commissioning,Schools,02/03/2020,8000162603,3202.30,Revenue,Foster Care Associates Ltd FCA,Boarding Out Fees,
Peterborough City Council,People & Communities,Access to Resources & Specialist Commissioning,Schools,02/03/2020,8000162603,4292.57,Revenue,Foster Care Associates Ltd FCA,Boarding Out Fees,
Peterborough City Council,People & Communities,Access to Resources & Specialist Commissioning,Schools,02/03/2020,8000162603,4248.86,Revenue,Foster Care Associates Ltd FCA,Boarding Out Fees,
Peterborough City Council,People & Communities,Access to Resources & Specialist Commissioning,Schools,02/03/2020,8000162603,3555.70,Revenue,Foster Care Associates Ltd FCA,Boarding Out Fees,
Peterborough City Council,People & Communities,Access to Resources & Specialist Commissioning,Schools,02/03/2020,8000162603,4380.30,Revenue,Foster Care Associates Ltd FCA,Boarding Out Fees,
Peterborough City Council,People & Communities,Access to Resources & Specialist Commissioning,Schools,02/03/2020,8000162603,3626.69,Revenue,Foster Care Associates Ltd FCA,Boarding Out Fees,
Peterborough City Council,People & Communities,Access to Resources & Specialist Commissioning,Schools,02/03/2020,8000162603,3113.33,Revenue,Foster Care Associates Ltd FCA,Boarding Out Fees,
Peterborough City Council,People & Communities,Access to Resources & Specialist Commissioning,Schools,02/03/2020,8000162603,3844.00,Revenue,Foster Care Associates Ltd FCA,Boarding Out Fees,
Peterborough City Council,People & Communities,Access to Resources & Specialist Commissioning,Schools,11/03/2020,8000162603,3312.96,Revenue,Fostering Solutions Limited,Boarding Out Fees,
Peterborough City Council,People & Communities,Access to Resources & Specialist Commissioning,Schools,02/03/2020,8000162603,3310.35,Revenue,Futures For Children,Boarding Out Fees,
Peterborough City Council,People & Communities,Access to Resources & Specialist Commissioning,Schools,02/03/2020,8000162603,4234.87,Revenue,Futures For Children,Boarding Out Fees,
Peterborough City Council,People & Communities,Access to Resources & Specialist Commissioning,Schools,02/03/2020,8000162603,14413.00,Revenue,Horizon Care & Education Group,Boarding Out Fees,
Peterborough City Council,People & Communities,Access to Resources & Specialist Commissioning,Schools,02/03/2020,8000162603,5740.27,Revenue,Kasper Fostering,Boarding Out Fees,
Peterborough City Council,People & Communities,Access to Resources & Specialist Commissioning,Schools,02/03/2020,8000162603,2192.14,Revenue,PCH Integration Services Ltd,Boarding Out Fees,
Peterborough City Council,People & Communities,Access to Resources & Specialist Commissioning,Schools,02/03/2020,8000162603,14303.96,Revenue,Windows for Children,Boarding Out Fees,
Peterborough City Council,People & Communities,Access to Resources & Specialist Commissioning,Schools,02/03/2020,8000162603,4441.99,Revenue,Young People at Heart Ltd,Boarding Out Fees,
Peterborough City Council,People & Communities,Access to Resources & Specialist Commissioning,Schools,04/03/2020,8000162788,584.08,Revenue,Redacted Personal Data,Boarding Out Fees,
Peterborough City Council,People & Communities,Access to Resources & Specialist Commissioning,Schools,04/03/2020,8000162788,627.06,Revenue,Redacted Personal Data,Boarding Out Fees,
Peterborough City Council,People & Communities,Access to Resources & Specialist Commissioning,Schools,04/03/2020,8000162788,627.06,Revenue,Redacted Personal Data,Boarding Out Fees,
Peterborough City Council,People & Communities,Access to Resources & Specialist Commissioning,Schools,04/03/2020,8000162788,627.06,Revenue,Redacted Personal Data,Boarding Out Fees,
Peterborough City Council,People & Communities,Access to Resources & Specialist Commissioning,Schools,04/03/2020,8000162788,584.08,Revenue,Redacted Personal Data,Boarding Out Fees,
Peterborough City Council,People & Communities,Access to Resources & Specialist Commissioning,Schools,04/03/2020,8000162788,584.08,Revenue,Redacted Personal Data,Boarding Out Fees,
Peterborough City Council,People & Communities,Access to Resources & Specialist Commissioning,Schools,04/03/2020,8000162788,527.52,Revenue,Redacted Personal Data,Boarding Out Fees,
Peterborough City Council,People & Communities,Access to Resources & Specialist Commissioning,Schools,04/03/2020,8000162788,584.08,Revenue,Redacted Personal Data,Boarding Out Fees,
Peterborough City Council,People & Communities,Access to Resources & Specialist Commissioning,Schools,04/03/2020,8000162788,584.08,Revenue,Redacted Personal Data,Boarding Out Fees,
Peterborough City Council,People & Communities,Access to Resources & Specialist Commissioning,Schools,04/03/2020,8000162788,584.08,Revenue,Redacted Personal Data,Boarding Out Fees,
Peterborough City Council,People & Communities,Access to Resources & Specialist Commissioning,Schools,04/03/2020,8000162788,584.08,Revenue,Redacted Personal Data,Boarding Out Fees,
Peterborough City Council,People & Communities,Access to Resources & Specialist Commissioning,Schools,04/03/2020,8000162788,584.08,Revenue,Redacted Personal Data,Boarding Out Fees,
Peterborough City Council,People & Communities,Access to Resources & Specialist Commissioning,Schools,04/03/2020,8000162788,584.08,Revenue,Redacted Personal Data,Boarding Out Fees,
Peterborough City Council,People & Communities,Access to Resources & Specialist Commissioning,Schools,04/03/2020,8000162788,584.08,Revenue,Redacted Personal Data,Boarding Out Fees,
Peterborough City Council,People & Communities,Access to Resources & Specialist Commissioning,Schools,04/03/2020,8000162788,584.08,Revenue,Redacted Personal Data,Boarding Out Fees,
Peterborough City Council,People & Communities,Access to Resources & Specialist Commissioning,Schools,04/03/2020,8000162788,584.08,Revenue,Redacted Personal Data,Boarding Out Fees,
Peterborough City Council,People & Communities,Access to Resources & Specialist Commissioning,Schools,04/03/2020,8000162788,584.08,Revenue,Redacted Personal Data,Boarding Out Fees,
Peterborough City Council,People & Communities,Access to Resources & Specialist Commissioning,Schools,04/03/2020,8000162788,584.08,Revenue,Redacted Personal Data,Boarding Out Fees,
Peterborough City Council,People & Communities,Access to Resources & Specialist Commissioning,Schools,04/03/2020,8000162788,627.06,Revenue,Redacted Personal Data,Boarding Out Fees,
Peterborough City Council,People & Communities,Access to Resources & Specialist Commissioning,Schools,04/03/2020,8000162788,909.82,Revenue,Redacted Personal Data,Boarding Out Fees,
Peterborough City Council,People & Communities,Access to Resources & Specialist Commissioning,Schools,04/03/2020,8000162788,627.06,Revenue,Redacted Personal Data,Boarding Out Fees,
Peterborough City Council,People & Communities,Access to Resources & Specialist Commissioning,Schools,04/03/2020,8000162788,584.08,Revenue,Redacted Personal Data,Boarding Out Fees,
Peterborough City Council,People & Communities,Access to Resources & Specialist Commissioning,Schools,04/03/2020,8000162788,584.08,Revenue,Redacted Personal Data,Boarding Out Fees,
Peterborough City Council,People & Communities,Access to Resources & Specialist Commissioning,Schools,04/03/2020,8000162788,627.06,Revenue,Redacted Personal Data,Boarding Out Fees,
Peterborough City Council,People & Communities,Access to Resources & Specialist Commissioning,Schools,04/03/2020,8000162788,646.16,Revenue,Redacted Personal Data,Boarding Out Fees,
Peterborough City Council,People & Communities,Access to Resources & Specialist Commissioning,Schools,04/03/2020,8000162788,646.16,Revenue,Redacted Personal Data,Boarding Out Fees,
Peterborough City Council,People & Communities,Access to Resources & Specialist Commissioning,Schools,04/03/2020,8000162788,844.48,Revenue,Redacted Personal Data,Boarding Out Fees,
Peterborough City Council,People & Communities,Access to Resources & Specialist Commissioning,Schools,04/03/2020,8000162788,632.38,Revenue,Redacted Personal Data,Boarding Out Fees,
Peterborough City Council,People & Communities,Access to Resources & Specialist Commissioning,Schools,04/03/2020,8000162788,501.72,Revenue,Redacted Personal Data,Boarding Out Fees,
Peterborough City Council,People & Communities,Access to Resources & Specialist Commissioning,Schools,04/03/2020,8000162788,613.62,Revenue,Redacted Personal Data,Boarding Out Fees,
Peterborough City Council,People & Communities,Access to Resources & Specialist Commissioning,Schools,04/03/2020,8000162788,882.42,Revenue,Redacted Personal Data,Boarding Out Fees,
Peterborough City Council,People & Communities,Access to Resources & Specialist Commissioning,Schools,04/03/2020,8000162788,545.88,Revenue,Redacted Personal Data,Boarding Out Fees,
Peterborough City Council,People & Communities,Access to Resources & Specialist Commissioning,Schools,04/03/2020,8000162788,545.88,Revenue,Redacted Personal Data,Boarding Out Fees,
Peterborough City Council,People & Communities,Access to Resources & Specialist Commissioning,Schools,04/03/2020,8000162788,800.00,Revenue,Redacted Personal Data,Boarding Out Fees,
Peterborough City Council,People & Communities,Access to Resources & Specialist Commissioning,Schools,04/03/2020,8000162788,800.00,Revenue,Redacted Personal Data,Boarding Out Fees,
Peterborough City Council,People & Communities,Access to Resources & Specialist Commissioning,Schools,04/03/2020,8000162788,800.00,Revenue,Redacted Personal Data,Boarding Out Fees,
Peterborough City Council,People & Communities,Access to Resources & Specialist Commissioning,Schools,04/03/2020,8000162788,1043.14,Revenue,Redacted Personal Data,Boarding Out Fees,
Peterborough City Council,People & Communities,Access to Resources & Specialist Commissioning,Schools,04/03/2020,8000162788,990.78,Revenue,Redacted Personal Data,Boarding Out Fees,
Peterborough City Council,People & Communities,Access to Resources & Specialist Commissioning,Schools,04/03/2020,8000162788,515.20,Revenue,Redacted Personal Data,Boarding Out Fees,
Peterborough City Council,People & Communities,Access to Resources & Specialist Commissioning,Schools,04/03/2020,8000162788,913.20,Revenue,Redacted Personal Data,Boarding Out Fees,
Peterborough City Council,People & Communities,Access to Resources & Specialist Commissioning,Schools,04/03/2020,8000162788,909.82,Revenue,Redacted Personal Data,Boarding Out Fees,
Peterborough City Council,People & Communities,Access to Resources & Specialist Commissioning,Schools,04/03/2020,8000162788,527.52,Revenue,Redacted Personal Data,Boarding Out Fees,
Peterborough City Council,People & Communities,Access to Resources & Specialist Commissioning,Schools,04/03/2020,8000162788,527.52,Revenue,Redacted Personal Data,Boarding Out Fees,
Peterborough City Council,People & Communities,Access to Resources & Specialist Commissioning,Schools,04/03/2020,8000162788,627.06,Revenue,Redacted Personal Data,Boarding Out Fees,
Peterborough City Council,People & Communities,Access to Resources & Specialist Commissioning,Schools,04/03/2020,8000162788,527.52,Revenue,Redacted Personal Data,Boarding Out Fees,
Peterborough City Council,People & Communities,Access to Resources & Specialist Commissioning,Schools,04/03/2020,8000162788,527.52,Revenue,Redacted Personal Data,Boarding Out Fees,
Peterborough City Council,People & Communities,Access to Resources & Specialist Commissioning,Schools,04/03/2020,8000162788,584.08,Revenue,Redacted Personal Data,Boarding Out Fees,
Peterborough City Council,People & Communities,Access to Resources & Specialist Commissioning,Schools,04/03/2020,8000162788,909.82,Revenue,Redacted Personal Data,Boarding Out Fees,
Peterborough City Council,People & Communities,Access to Resources & Specialist Commissioning,Schools,04/03/2020,8000162788,527.52,Revenue,Redacted Personal Data,Boarding Out Fees,
Peterborough City Council,People & Communities,Access to Resources & Specialist Commissioning,Schools,04/03/2020,8000162788,527.52,Revenue,Redacted Personal Data,Boarding Out Fees,
Peterborough City Council,People & Communities,Access to Resources & Specialist Commissioning,Schools,04/03/2020,8000162788,527.52,Revenue,Redacted Personal Data,Boarding Out Fees,
Peterborough City Council,People & Communities,Access to Resources & Specialist Commissioning,Schools,04/03/2020,8000162788,584.08,Revenue,Redacted Personal Data,Boarding Out Fees,
Peterborough City Council,People & Communities,Access to Resources & Specialist Commissioning,Schools,04/03/2020,8000162788,527.52,Revenue,Redacted Personal Data,Boarding Out Fees,
Peterborough City Council,People & Communities,Access to Resources & Specialist Commissioning,Schools,04/03/2020,8000162788,527.52,Revenue,Redacted Personal Data,Boarding Out Fees,
Peterborough City Council,People & Communities,Access to Resources & Specialist Commissioning,Schools,04/03/2020,8000162788,527.52,Revenue,Redacted Personal Data,Boarding Out Fees,
Peterborough City Council,People & Communities,Access to Resources & Specialist Commissioning,Schools,04/03/2020,8000162788,527.52,Revenue,Redacted Personal Data,Boarding Out Fees,
Peterborough City Council,People & Communities,Access to Resources & Specialist Commissioning,Schools,04/03/2020,8000162788,909.82,Revenue,Redacted Personal Data,Boarding Out Fees,
Peterborough City Council,People & Communities,Access to Resources & Specialist Commissioning,Schools,04/03/2020,8000162788,584.08,Revenue,Redacted Personal Data,Boarding Out Fees,
Peterborough City Council,People & Communities,Access to Resources & Specialist Commissioning,Schools,04/03/2020,8000162788,584.08,Revenue,Redacted Personal Data,Boarding Out Fees,
Peterborough City Council,People & Communities,Access to Resources & Specialist Commissioning,Schools,04/03/2020,8000162788,584.08,Revenue,Redacted Personal Data,Boarding Out Fees,
Peterborough City Council,People & Communities,Access to Resources & Specialist Commissioning,Schools,04/03/2020,8000162788,584.08,Revenue,Redacted Personal Data,Boarding Out Fees,
Peterborough City Council,People & Communities,Access to Resources & Specialist Commissioning,Schools,04/03/2020,8000162788,527.52,Revenue,Redacted Personal Data,Boarding Out Fees,
Peterborough City Council,People & Communities,Access to Resources & Specialist Commissioning,Schools,04/03/2020,8000162788,584.08,Revenue,Redacted Personal Data,Boarding Out Fees,
Peterborough City Council,People & Communities,Access to Resources & Specialist Commissioning,Schools,04/03/2020,8000162788,584.08,Revenue,Redacted Personal Data,Boarding Out Fees,
Peterborough City Council,People & Communities,Access to Resources & Specialist Commissioning,Schools,04/03/2020,8000162788,584.08,Revenue,Redacted Personal Data,Boarding Out Fees,
Peterborough City Council,People & Communities,Access to Resources & Specialist Commissioning,Schools,04/03/2020,8000162788,584.08,Revenue,Redacted Personal Data,Boarding Out Fees,
Peterborough City Council,People & Communities,Access to Resources & Specialist Commissioning,Schools,04/03/2020,8000162788,584.08,Revenue,Redacted Personal Data,Boarding Out Fees,
Peterborough City Council,People & Communities,Access to Resources & Specialist Commissioning,Schools,04/03/2020,8000162788,584.08,Revenue,Redacted Personal Data,Boarding Out Fees,
Peterborough City Council,People & Communities,Access to Resources & Specialist Commissioning,Schools,04/03/2020,8000162788,584.08,Revenue,Redacted Personal Data,Boarding Out Fees,
Peterborough City Council,People & Communities,Access to Resources & Specialist Commissioning,Schools,04/03/2020,8000162788,527.52,Revenue,Redacted Personal Data,Boarding Out Fees,
Peterborough City Council,People & Communities,Access to Resources & Specialist Commissioning,Schools,04/03/2020,8000162788,584.08,Revenue,Redacted Personal Data,Boarding Out Fees,
Peterborough City Council,People & Communities,Access to Resources & Specialist Commissioning,Schools,04/03/2020,8000162788,584.08,Revenue,Redacted Personal Data,Boarding Out Fees,
Peterborough City Council,People & Communities,Access to Resources & Specialist Commissioning,Schools,04/03/2020,8000162788,527.52,Revenue,Redacted Personal Data,Boarding Out Fees,
Peterborough City Council,People & Communities,Access to Resources & Specialist Commissioning,Schools,04/03/2020,8000162788,527.52,Revenue,Redacted Personal Data,Boarding Out Fees,
Peterborough City Council,People & Communities,Access to Resources & Specialist Commissioning,Schools,04/03/2020,8000162788,851.48,Revenue,Redacted Personal Data,Boarding Out Fees,
Peterborough City Council,People & Communities,Access to Resources & Specialist Commissioning,Schools,04/03/2020,8000162788,1029.98,Revenue,Redacted Personal Data,Boarding Out Fees,
Peterborough City Council,People & Communities,Access to Resources & Specialist Commissioning,Schools,04/03/2020,8000162788,806.12,Revenue,Redacted Personal Data,Boarding Out Fees,
Peterborough City Council,People & Communities,Access to Resources & Specialist Commissioning,Schools,04/03/2020,8000162788,806.12,Revenue,Redacted Personal Data,Boarding Out Fees,
Peterborough City Council,People & Communities,Access to Resources & Specialist Commissioning,Schools,04/03/2020,8000162788,585.62,Revenue,Redacted Personal Data,Boarding Out Fees,
Peterborough City Council,People & Communities,Access to Resources & Specialist Commissioning,Schools,04/03/2020,8000162788,556.64,Revenue,Redacted Personal Data,Boarding Out Fees,
Peterborough City Council,People & Communities,Access to Resources & Specialist Commissioning,Schools,04/03/2020,8000162788,854.28,Revenue,Redacted Personal Data,Boarding Out Fees,
Peterborough City Council,People & Communities,Access to Resources & Specialist Commissioning,Schools,04/03/2020,8000162788,1401.46,Revenue,Redacted Personal Data,Boarding Out Fees,
Peterborough City Council,People & Communities,Access to Resources & Specialist Commissioning,Schools,04/03/2020,8000162788,627.06,Revenue,Redacted Personal Data,Boarding Out Fees,
Peterborough City Council,People & Communities,Access to Resources & Specialist Commissioning,Schools,04/03/2020,8000162788,527.52,Revenue,Redacted Personal Data,Boarding Out Fees,
Peterborough City Council,People & Communities,Access to Resources & Specialist Commissioning,Schools,04/03/2020,8000162788,527.52,Revenue,Redacted Personal Data,Boarding Out Fees,
Peterborough City Council,People & Communities,Access to Resources & Specialist Commissioning,Schools,04/03/2020,8000162788,584.08,Revenue,Redacted Personal Data,Boarding Out Fees,
Peterborough City Council,People & Communities,Access to Resources & Specialist Commissioning,Schools,04/03/2020,8000162788,584.08,Revenue,Redacted Personal Data,Boarding Out Fees,
Peterborough City Council,People & Communities,Access to Resources & Specialist Commissioning,Schools,04/03/2020,8000162788,530.88,Revenue,Redacted Personal Data,Boarding Out Fees,
Peterborough City Council,People & Communities,Access to Resources & Specialist Commissioning,Schools,04/03/2020,8000162788,840.00,Revenue,Redacted Personal Data,Boarding Out Fees,
Peterborough City Council,People & Communities,Access to Resources & Specialist Commissioning,Schools,04/03/2020,8000162788,1793.54,Revenue,Redacted Personal Data,Boarding Out Fees,
Peterborough City Council,People & Communities,Access to Resources & Specialist Commissioning,Schools,04/03/2020,8000162788,545.88,Revenue,Redacted Personal Data,Boarding Out Fees,
Peterborough City Council,People & Communities,Access to Resources & Specialist Commissioning,Schools,04/03/2020,8000162788,12778.56,Revenue,Redacted Personal Data,Boarding Out Fees,
Peterborough City Council,People & Communities,Access to Resources & Specialist Commissioning,Schools,04/03/2020,8000162788,623.20,Revenue,Redacted Personal Data,Boarding Out Fees,
Peterborough City Council,People & Communities,Access to Resources & Specialist Commissioning,Schools,04/03/2020,8000162788,-9583.92,Revenue,Redacted Personal Data,Boarding Out Fees,
Peterborough City Council,People & Communities,Access to Resources & Specialist Commissioning,Schools,04/03/2020,8000162788,503.44,Revenue,Redacted Personal Data,Boarding Out Fees,
Peterborough City Council,People & Communities,Access to Resources & Specialist Commissioning,Schools,04/03/2020,8000162788,818.44,Revenue,Redacted Personal Data,Boarding Out Fees,
Peterborough City Council,People & Communities,Access to Resources & Specialist Commissioning,Schools,04/03/2020,8000162788,1144.92,Revenue,Redacted Personal Data,Boarding Out Fees,
Peterborough City Council,People & Communities,Access to Resources & Specialist Commissioning,Schools,04/03/2020,8000162788,818.44,Revenue,Redacted Personal Data,Boarding Out Fees,
Peterborough City Council,People & Communities,Access to Resources & Specialist Commissioning,Schools,04/03/2020,8000162788,1144.92,Revenue,Redacted Personal Data,Boarding Out Fees,
Peterborough City Council,People & Communities,Access to Resources & Specialist Commissioning,Schools,04/03/2020,8000162788,818.44,Revenue,Redacted Personal Data,Boarding Out Fees,
Peterborough City Council,People & Communities,Access to Resources & Specialist Commissioning,Schools,04/03/2020,8000162788,1144.92,Revenue,Redacted Personal Data,Boarding Out Fees,
Peterborough City Council,People & Communities,Access to Resources & Specialist Commissioning,Schools,04/03/2020,8000162788,577.08,Revenue,Redacted Personal Data,Boarding Out Fees,
Peterborough City Council,People & Communities,Access to Resources & Specialist Commissioning,Schools,04/03/2020,8000162788,1168.16,Revenue,Redacted Personal Data,Boarding Out Fees,
Peterborough City Council,People & Communities,Access to Resources & Specialist Commissioning,Schools,06/03/2020,8000162973,35829.66,Revenue,Acorn Care & Education Ltd,Boarding Out Fees,
Peterborough City Council,People & Communities,Access to Resources & Specialist Commissioning,Schools,06/03/2020,8000162973,-996.33,Revenue,Acorn Care & Education Ltd,Boarding Out Fees,
Peterborough City Council,People & Communities,Access to Resources & Specialist Commissioning,Schools,06/03/2020,8000162973,20507.06,Revenue,Cambian Childcare Ltd,Boarding Out Fees,
Peterborough City Council,People & Communities,Access to Resources & Specialist Commissioning,Schools,06/03/2020,8000162973,18348.59,Revenue,Cambian Childcare Ltd,Boarding Out Fees,
Peterborough City Council,People & Communities,Access to Resources & Specialist Commissioning,Schools,06/03/2020,8000162973,3472.00,Revenue,Compass Fostering Central Limited,Boarding Out Fees,
Peterborough City Council,People & Communities,Access to Resources & Specialist Commissioning,Schools,06/03/2020,8000162973,3348.00,Revenue,Compass Fostering Central Limited,Boarding Out Fees,
Peterborough City Council,People & Communities,Access to Resources & Specialist Commissioning,Schools,06/03/2020,8000162973,3238.26,Revenue,Compass Fostering Central Limited,Boarding Out Fees,
Peterborough City Council,People & Communities,Access to Resources & Specialist Commissioning,Schools,06/03/2020,8000162973,3321.34,Revenue,Compass Fostering Central Limited,Boarding Out Fees,
Peterborough City Council,People & Communities,Access to Resources & Specialist Commissioning,Schools,06/03/2020,8000162973,3764.33,Revenue,Compass Fostering South Limited,Boarding Out Fees,
Peterborough City Council,People & Communities,Access to Resources & Specialist Commissioning,Schools,06/03/2020,8000162973,5687.88,Revenue,Five Rivers,Boarding Out Fees,
Peterborough City Council,People & Communities,Access to Resources & Specialist Commissioning,Schools,06/03/2020,8000162973,3272.94,Revenue,Fostering UK Ltd,Boarding Out Fees,
Peterborough City Council,People & Communities,Access to Resources & Specialist Commissioning,Schools,06/03/2020,8000162973,3231.47,Revenue,Fostering UK Ltd,Boarding Out Fees,
Peterborough City Council,People & Communities,Access to Resources & Specialist Commissioning,Schools,06/03/2020,8000162973,3231.47,Revenue,Fostering UK Ltd,Boarding Out Fees,
Peterborough City Council,People & Communities,Access to Resources & Specialist Commissioning,Schools,06/03/2020,8000162973,3562.94,Revenue,Fostering UK Ltd,Boarding Out Fees,
Peterborough City Council,People & Communities,Access to Resources & Specialist Commissioning,Schools,06/03/2020,8000162973,5377.47,Revenue,I S P,Boarding Out Fees,
Peterborough City Council,People & Communities,Access to Resources & Specialist Commissioning,Schools,06/03/2020,8000162973,5377.47,Revenue,I S P,Boarding Out Fees,
Peterborough City Council,People & Communities,Access to Resources & Specialist Commissioning,Schools,06/03/2020,8000162973,3231.47,Revenue,To The Moon and Back Foster Care LTD,Boarding Out Fees,
Peterborough City Council,People & Communities,Access to Resources & Specialist Commissioning,Schools,06/03/2020,8000162973,3069.94,Revenue,To The Moon and Back Foster Care LTD,Boarding Out Fees,
Peterborough City Council,People & Communities,Access to Resources & Specialist Commissioning,Schools,06/03/2020,8000162973,11600.00,Revenue,Unique Care Homes Support Limited,Boarding Out Fees,
Peterborough City Council,People & Communities,Access to Resources & Specialist Commissioning,Schools,09/03/2020,8000162989,15715.10,Revenue,Aurora Care & Education Opco Ltd,Boarding Out Fees,
Peterborough City Council,People & Communities,Access to Resources & Specialist Commissioning,Schools,09/03/2020,8000162989,3607.47,Revenue,Banya Family Placement Agency,Boarding Out Fees,
Peterborough City Council,People & Communities,Access to Resources & Specialist Commissioning,Schools,09/03/2020,8000162989,2549.82,Revenue,Break,Boarding Out Fees,
Peterborough City Council,People & Communities,Access to Resources & Specialist Commissioning,Schools,09/03/2020,8000162989,18435.88,Revenue,Cambian Childcare Ltd,Boarding Out Fees,
Peterborough City Council,People & Communities,Access to Resources & Specialist Commissioning,Schools,09/03/2020,8000162989,-3314.41,Revenue,Cambian Childcare Ltd,Boarding Out Fees,
Peterborough City Council,People & Communities,Access to Resources & Specialist Commissioning,Schools,09/03/2020,8000162989,3314.41,Revenue,Cambian Childcare Ltd,Boarding Out Fees,
Peterborough City Council,People & Communities,Access to Resources & Specialist Commissioning,Schools,09/03/2020,8000162989,22120.36,Revenue,Dove Adolescent Services Ltd,Boarding Out Fees,
Peterborough City Council,People & Communities,Access to Resources & Specialist Commissioning,Schools,09/03/2020,8000162989,4384.33,Revenue,Dreamers Global Ltd,Boarding Out Fees,
Peterborough City Council,People & Communities,Access to Resources & Specialist Commissioning,Schools,09/03/2020,8000162989,6200.00,Revenue,Dreamers Global Ltd,Boarding Out Fees,
Peterborough City Council,People & Communities,Access to Resources & Specialist Commissioning,Schools,09/03/2020,8000162989,4384.33,Revenue,Dreamers Global Ltd,Boarding Out Fees,
Peterborough City Council,People & Communities,Access to Resources & Specialist Commissioning,Schools,09/03/2020,8000162989,1815.71,Revenue,Dreamers Global Ltd,Boarding Out Fees,
Peterborough City Council,People & Communities,Access to Resources & Specialist Commissioning,Schools,09/03/2020,8000162989,4384.33,Revenue,Dreamers Global Ltd,Boarding Out Fees,
Peterborough City Council,People & Communities,Access to Resources & Specialist Commissioning,Schools,09/03/2020,8000162989,3764.02,Revenue,Eastern Family Services,Boarding Out Fees,
Peterborough City Council,People & Communities,Access to Resources & Specialist Commissioning,Schools,09/03/2020,8000162989,3653.35,Revenue,Eastern Family Services,Boarding Out Fees,
Peterborough City Council,People & Communities,Access to Resources & Specialist Commissioning,Schools,09/03/2020,8000162989,18679.71,Revenue,Exeter Royal Academy for Deaf Education,Boarding Out Fees,
Peterborough City Council,People & Communities,Access to Resources & Specialist Commissioning,Schools,09/03/2020,8000162989,18850.00,Revenue,Hillcrest Children Serv(2)Ltd t/a Options BESD (1) Ltd,Boarding Out Fees,
Peterborough City Council,People & Communities,Access to Resources & Specialist Commissioning,Schools,09/03/2020,8000162989,3159.52,Revenue,IAS TACT,Boarding Out Fees,
Peterborough City Council,People & Communities,Access to Resources & Specialist Commissioning,Schools,09/03/2020,8000162989,3117.23,Revenue,IAS TACT,Boarding Out Fees,
Peterborough City Council,People & Communities,Access to Resources & Specialist Commissioning,Schools,09/03/2020,8000162989,2998.32,Revenue,IAS TACT,Boarding Out Fees,
Peterborough City Council,People & Communities,Access to Resources & Specialist Commissioning,Schools,09/03/2020,8000162989,2940.66,Revenue,IAS TACT,Boarding Out Fees,
Peterborough City Council,People & Communities,Access to Resources & Specialist Commissioning,Schools,09/03/2020,8000162989,2931.98,Revenue,IAS TACT,Boarding Out Fees,
Peterborough City Council,People & Communities,Access to Resources & Specialist Commissioning,Schools,09/03/2020,8000162989,2940.66,Revenue,IAS TACT,Boarding Out Fees,
Peterborough City Council,People & Communities,Access to Resources & Specialist Commissioning,Schools,09/03/2020,8000162989,2931.98,Revenue,IAS TACT,Boarding Out Fees,
Peterborough City Council,People & Communities,Access to Resources & Specialist Commissioning,Schools,09/03/2020,8000162989,2796.51,Revenue,IAS TACT,Boarding Out Fees,
Peterborough City Council,People & Communities,Access to Resources & Specialist Commissioning,Schools,09/03/2020,8000162989,3007.00,Revenue,IAS TACT,Boarding Out Fees,
Peterborough City Council,People & Communities,Access to Resources & Specialist Commissioning,Schools,09/03/2020,8000162989,3219.04,Revenue,IAS TACT,Boarding Out Fees,
Peterborough City Council,People & Communities,Access to Resources & Specialist Commissioning,Schools,09/03/2020,8000162989,2946.86,Revenue,IAS TACT,Boarding Out Fees,
Peterborough City Council,People & Communities,Access to Resources & Specialist Commissioning,Schools,09/03/2020,8000162989,2931.98,Revenue,IAS TACT,Boarding Out Fees,
Peterborough City Council,People & Communities,Access to Resources & Specialist Commissioning,Schools,09/03/2020,8000162989,2981.58,Revenue,IAS TACT,Boarding Out Fees,
Peterborough City Council,People & Communities,Access to Resources & Specialist Commissioning,Schools,09/03/2020,8000162989,2711.57,Revenue,IAS TACT,Boarding Out Fees,
Peterborough City Council,People & Communities,Access to Resources & Specialist Commissioning,Schools,09/03/2020,8000162989,2796.51,Revenue,IAS TACT,Boarding Out Fees,
Peterborough City Council,People & Communities,Access to Resources & Specialist Commissioning,Schools,09/03/2020,8000162989,5652.23,Revenue,IAS TACT,Boarding Out Fees,
Peterborough City Council,People & Communities,Access to Resources & Specialist Commissioning,Schools,09/03/2020,8000162989,3565.00,Revenue,IAS TACT,Boarding Out Fees,
Peterborough City Council,People & Communities,Access to Resources & Specialist Commissioning,Schools,09/03/2020,8000162989,2998.32,Revenue,IAS TACT,Boarding Out Fees,
Peterborough City Council,People & Communities,Access to Resources & Specialist Commissioning,Schools,18/03/2020,8000162989,63739.52,Revenue,Kedleston (Wings Education) Limited,Boarding Out Fees,
Peterborough City Council,People & Communities,Access to Resources & Specialist Commissioning,Schools,18/03/2020,8000162989,-23114.33,Revenue,Kedleston (Wings Education) Limited,Boarding Out Fees,
Peterborough City Council,People & Communities,Access to Resources & Specialist Commissioning,Schools,09/03/2020,8000162989,4992.00,Revenue,Positive Steps (Care Services) Ltd,Boarding Out Fees,
Peterborough City Council,People & Communities,Access to Resources & Specialist Commissioning,Schools,09/03/2020,8000162989,3612.00,Revenue,Positive Steps (Care Services) Ltd,Boarding Out Fees,
Peterborough City Council,People & Communities,Access to Resources & Specialist Commissioning,Schools,09/03/2020,8000162989,1872.00,Revenue,Positive Steps (Care Services) Ltd,Boarding Out Fees,
Peterborough City Council,People & Communities,Access to Resources & Specialist Commissioning,Schools,09/03/2020,8000162989,1836.00,Revenue,Positive Steps (Care Services) Ltd,Boarding Out Fees,
Peterborough City Council,People & Communities,Access to Resources & Specialist Commissioning,Schools,09/03/2020,8000162989,6241.95,Revenue,Swaay Child & adolescent Services Ltd,Boarding Out Fees,
Peterborough City Council,People & Communities,Access to Resources & Specialist Commissioning,Schools,11/03/2020,8000163688,14292.94,Revenue,4D Care Ltd,Boarding Out Fees,
Peterborough City Council,People & Communities,Access to Resources & Specialist Commissioning,Schools,11/03/2020,8000163688,13464.41,Revenue,4D Care Ltd,Boarding Out Fees,
Peterborough City Council,People & Communities,Access to Resources & Specialist Commissioning,Schools,16/03/2020,8000163688,6600.00,Revenue,A & T Home Limited,Boarding Out Fees,
Peterborough City Council,People & Communities,Access to Resources & Specialist Commissioning,Schools,11/03/2020,8000163688,3941.34,Revenue,Byrne House Ltd,Boarding Out Fees,
Peterborough City Council,People & Communities,Access to Resources & Specialist Commissioning,Schools,11/03/2020,8000163688,4384.33,Revenue,Byrne House Ltd,Boarding Out Fees,
Peterborough City Council,People & Communities,Access to Resources & Specialist Commissioning,Schools,11/03/2020,8000163688,4384.33,Revenue,Byrne House Ltd,Boarding Out Fees,
Peterborough City Council,People & Communities,Access to Resources & Specialist Commissioning,Schools,11/03/2020,8000163688,3658.00,Revenue,Compass Fostering Eastern Ltd,Boarding Out Fees,
Peterborough City Council,People & Communities,Access to Resources & Specialist Commissioning,Schools,11/03/2020,8000163688,3742.01,Revenue,Compass Fostering Eastern Ltd,Boarding Out Fees,
Peterborough City Council,People & Communities,Access to Resources & Specialist Commissioning,Schools,11/03/2020,8000163688,3521.47,Revenue,Compass Fostering Eastern Ltd,Boarding Out Fees,
Peterborough City Council,People & Communities,Access to Resources & Specialist Commissioning,Schools,11/03/2020,8000163688,11970.95,Revenue,Ethelbert Childrens Services,Boarding Out Fees,
Peterborough City Council,People & Communities,Access to Resources & Specialist Commissioning,Schools,11/03/2020,8000163688,14936.37,Revenue,Ethelbert Childrens Services,Boarding Out Fees,
Peterborough City Council,People & Communities,Access to Resources & Specialist Commissioning,Schools,11/03/2020,8000163688,13451.86,Revenue,Ethelbert Childrens Services,Boarding Out Fees,
Peterborough City Council,People & Communities,Access to Resources & Specialist Commissioning,Schools,25/03/2020,8000163688,17474.57,Revenue,Exeter Royal Academy for Deaf Education,Boarding Out Fees,
Peterborough City Council,People & Communities,Access to Resources & Specialist Commissioning,Schools,11/03/2020,8000163688,3199.98,Revenue,Florinee Homes Ltd,Boarding Out Fees,
Peterborough City Council,People & Communities,Access to Resources & Specialist Commissioning,Schools,11/03/2020,8000163688,1980.02,Revenue,Florinee Homes Ltd,Boarding Out Fees,
Peterborough City Council,People & Communities,Access to Resources & Specialist Commissioning,Schools,11/03/2020,8000163688,1457.93,Revenue,Luton Community Housing Ltd,Boarding Out Fees,
Peterborough City Council,People & Communities,Access to Resources & Specialist Commissioning,Schools,11/03/2020,8000163688,509.33,Revenue,Mirrin Homes Limited,Boarding Out Fees,
Peterborough City Council,People & Communities,Access to Resources & Specialist Commissioning,Schools,13/03/2020,8000163709,3675.67,Revenue,Compass Fostering Central Limited,Boarding Out Fees,
Peterborough City Council,People & Communities,Access to Resources & Specialist Commissioning,Schools,13/03/2020,8000163709,1980.02,Revenue,Florinee Homes Ltd,Boarding Out Fees,
Peterborough City Council,People & Communities,Access to Resources & Specialist Commissioning,Schools,13/03/2020,8000163709,2750.02,Revenue,Florinee Homes Ltd,Boarding Out Fees,
Peterborough City Council,People & Communities,Access to Resources & Specialist Commissioning,Schools,13/03/2020,8000163709,3199.98,Revenue,Florinee Homes Ltd,Boarding Out Fees,
Peterborough City Council,People & Communities,Access to Resources & Specialist Commissioning,Schools,13/03/2020,8000163709,1860.00,Revenue,Foster Care Associates Ltd FCA,Boarding Out Fees,
Peterborough City Council,People & Communities,Access to Resources & Specialist Commissioning,Schools,13/03/2020,8000163709,1860.00,Revenue,Foster Care Associates Ltd FCA,Boarding Out Fees,
Peterborough City Council,People & Communities,Access to Resources & Specialist Commissioning,Schools,13/03/2020,8000163709,1922.00,Revenue,Foster Care Associates Ltd FCA,Boarding Out Fees,
Peterborough City Council,People & Communities,Access to Resources & Specialist Commissioning,Schools,13/03/2020,8000163786,996.43,Revenue,Athena Housing and Support Ltd,Boarding Out Fees,
Peterborough City Council,People & Communities,Access to Resources & Specialist Commissioning,Schools,13/03/2020,8000163786,2750.02,Revenue,Florinee Homes Ltd,Boarding Out Fees,
Peterborough City Council,People & Communities,Access to Resources & Specialist Commissioning,Schools,13/03/2020,8000163786,3199.98,Revenue,Florinee Homes Ltd,Boarding Out Fees,
Peterborough City Council,People & Communities,Access to Resources & Specialist Commissioning,Schools,13/03/2020,8000163786,3627.93,Revenue,Fostering People Ltd,Boarding Out Fees,
Peterborough City Council,People & Communities,Access to Resources & Specialist Commissioning,Schools,13/03/2020,8000163786,3702.02,Revenue,Fostering People Ltd,Boarding Out Fees,
Peterborough City Council,People & Communities,Access to Resources & Specialist Commissioning,Schools,13/03/2020,8000163786,3627.93,Revenue,Fostering People Ltd,Boarding Out Fees,
Peterborough City Council,People & Communities,Access to Resources & Specialist Commissioning,Schools,13/03/2020,8000163786,3816.10,Revenue,Nexus Fostering Ltd,Boarding Out Fees,
Peterborough City Council,People & Communities,Access to Resources & Specialist Commissioning,Schools,13/03/2020,8000163786,3816.10,Revenue,Nexus Fostering Ltd,Boarding Out Fees,
Peterborough City Council,People & Communities,Access to Resources & Specialist Commissioning,Schools,13/03/2020,8000163786,3816.10,Revenue,Nexus Fostering Ltd,Boarding Out Fees,
Peterborough City Council,People & Communities,Access to Resources & Specialist Commissioning,Schools,13/03/2020,8000163786,3625.45,Revenue,Nexus Fostering Ltd,Boarding Out Fees,
Peterborough City Council,People & Communities,Access to Resources & Specialist Commissioning,Schools,13/03/2020,8000163786,3816.10,Revenue,Nexus Fostering Ltd,Boarding Out Fees,
Peterborough City Council,People & Communities,Access to Resources & Specialist Commissioning,Schools,13/03/2020,8000163786,3625.45,Revenue,Nexus Fostering Ltd,Boarding Out Fees,
Peterborough City Council,People & Communities,Access to Resources & Specialist Commissioning,Schools,13/03/2020,8000163786,6487.68,Revenue,Nexus Fostering Ltd,Boarding Out Fees,
Peterborough City Council,People & Communities,Access to Resources & Specialist Commissioning,Schools,13/03/2020,8000163786,3210.71,Revenue,Pride Fostering,Boarding Out Fees,
Peterborough City Council,People & Communities,Access to Resources & Specialist Commissioning,Schools,13/03/2020,8000163786,3255.00,Revenue,Pride Fostering,Boarding Out Fees,
Peterborough City Council,People & Communities,Access to Resources & Specialist Commissioning,Schools,13/03/2020,8000163786,764.40,Revenue,Swiis Foster Care Ltd,Boarding Out Fees,
Peterborough City Council,People & Communities,Access to Resources & Specialist Commissioning,Schools,13/03/2020,8000163786,764.40,Revenue,Swiis Foster Care Ltd,Boarding Out Fees,
Peterborough City Council,People & Communities,Access to Resources & Specialist Commissioning,Schools,25/03/2020,8000163788,3393.00,Revenue,Affinity Fostering Services Ltd,Boarding Out Fees,
Peterborough City Council,People & Communities,Access to Resources & Specialist Commissioning,Schools,25/03/2020,8000163788,3422.00,Revenue,Affinity Fostering Services Ltd,Boarding Out Fees,
Peterborough City Council,People & Communities,Access to Resources & Specialist Commissioning,Schools,25/03/2020,8000163788,3250.90,Revenue,Affinity Fostering Services Ltd,Boarding Out Fees,
Peterborough City Council,People & Communities,Access to Resources & Specialist Commissioning,Schools,25/03/2020,8000163788,5876.27,Revenue,ALL4U Fostering Ltd,Boarding Out Fees,
Peterborough City Council,People & Communities,Access to Resources & Specialist Commissioning,Schools,27/03/2020,8000163788,3045.00,Revenue,Alliance Foster Care,Boarding Out Fees,
Peterborough City Council,People & Communities,Access to Resources & Specialist Commissioning,Schools,27/03/2020,8000163788,3107.06,Revenue,Alliance Foster Care,Boarding Out Fees,
Peterborough City Council,People & Communities,Access to Resources & Specialist Commissioning,Schools,27/03/2020,8000163788,3107.06,Revenue,Alliance Foster Care,Boarding Out Fees,
Peterborough City Council,People & Communities,Access to Resources & Specialist Commissioning,Schools,27/03/2020,8000163788,3009.91,Revenue,Alliance Foster Care,Boarding Out Fees,
Peterborough City Council,People & Communities,Access to Resources & Specialist Commissioning,Schools,13/03/2020,8000163788,2750.02,Revenue,Florinee Homes Ltd,Boarding Out Fees,
Peterborough City Council,People & Communities,Access to Resources & Specialist Commissioning,Schools,13/03/2020,8000163788,3199.98,Revenue,Florinee Homes Ltd,Boarding Out Fees,
Peterborough City Council,People & Communities,Access to Resources & Specialist Commissioning,Schools,25/03/2020,8000163808,3374.73,Revenue,Banya Family Placement Agency,Boarding Out Fees,
Peterborough City Council,People & Communities,Access to Resources & Specialist Commissioning,Schools,13/03/2020,8000163808,3248.00,Revenue,Compass Fostering Central Limited,Boarding Out Fees,
Peterborough City Council,People & Communities,Access to Resources & Specialist Commissioning,Schools,13/03/2020,8000163808,3132.00,Revenue,Compass Fostering Central Limited,Boarding Out Fees,
Peterborough City Council,People & Communities,Access to Resources & Specialist Commissioning,Schools,13/03/2020,8000163808,3107.06,Revenue,Compass Fostering Central Limited,Boarding Out Fees,
Peterborough City Council,People & Communities,Access to Resources & Specialist Commissioning,Schools,13/03/2020,8000163808,3438.53,Revenue,Compass Fostering Central Limited,Boarding Out Fees,
Peterborough City Council,People & Communities,Access to Resources & Specialist Commissioning,Schools,13/03/2020,8000163808,3422.00,Revenue,Compass Fostering Eastern Ltd,Boarding Out Fees,
Peterborough City Council,People & Communities,Access to Resources & Specialist Commissioning,Schools,13/03/2020,8000163808,3500.59,Revenue,Compass Fostering Eastern Ltd,Boarding Out Fees,
Peterborough City Council,People & Communities,Access to Resources & Specialist Commissioning,Schools,13/03/2020,8000163808,3675.67,Revenue,Compass Fostering Eastern Ltd,Boarding Out Fees,
Peterborough City Council,People & Communities,Access to Resources & Specialist Commissioning,Schools,13/03/2020,8000163808,3438.53,Revenue,Compass Fostering Eastern Ltd,Boarding Out Fees,
Peterborough City Council,People & Communities,Access to Resources & Specialist Commissioning,Schools,13/03/2020,8000163808,3521.47,Revenue,Compass Fostering South Limited,Boarding Out Fees,
Peterborough City Council,People & Communities,Access to Resources & Specialist Commissioning,Schools,13/03/2020,8000163808,2750.02,Revenue,Florinee Homes Ltd,Boarding Out Fees,
Peterborough City Council,People & Communities,Access to Resources & Specialist Commissioning,Schools,13/03/2020,8000163808,3199.98,Revenue,Florinee Homes Ltd,Boarding Out Fees,
Peterborough City Council,People & Communities,Access to Resources & Specialist Commissioning,Schools,13/03/2020,8000163808,5559.96,Revenue,The Cambridge Housing Society Limited,Boarding Out Fees,
Peterborough City Council,People & Communities,Access to Resources & Specialist Commissioning,Schools,13/03/2020,8000163812,4406.34,Revenue,Eastern Family Services,Boarding Out Fees,
Peterborough City Council,People & Communities,Access to Resources & Specialist Commissioning,Schools,13/03/2020,8000163812,2750.02,Revenue,Florinee Homes Ltd,Boarding Out Fees,
Peterborough City Council,People & Communities,Access to Resources & Specialist Commissioning,Schools,13/03/2020,8000163812,3199.98,Revenue,Florinee Homes Ltd,Boarding Out Fees,
Peterborough City Council,People & Communities,Access to Resources & Specialist Commissioning,Schools,23/03/2020,8000163812,14500.00,Revenue,Keys Direct Care Limited,Boarding Out Fees,
Peterborough City Council,People & Communities,Access to Resources & Specialist Commissioning,Schools,13/03/2020,8000163851,3521.18,Revenue,Eastern Family Services,Boarding Out Fees,
Peterborough City Council,People & Communities,Access to Resources & Specialist Commissioning,Schools,13/03/2020,8000163851,4122.06,Revenue,Eastern Family Services,Boarding Out Fees,
Peterborough City Council,People & Communities,Access to Resources & Specialist Commissioning,Schools,13/03/2020,8000163851,3417.65,Revenue,Eastern Family Services,Boarding Out Fees,
Peterborough City Council,People & Communities,Access to Resources & Specialist Commissioning,Schools,13/03/2020,8000163851,4379.00,Revenue,Ethelbert Childrens Services,Boarding Out Fees,
Peterborough City Council,People & Communities,Access to Resources & Specialist Commissioning,Schools,13/03/2020,8000163851,2750.02,Revenue,Florinee Homes Ltd,Boarding Out Fees,
Peterborough City Council,People & Communities,Access to Resources & Specialist Commissioning,Schools,13/03/2020,8000163851,3199.98,Revenue,Florinee Homes Ltd,Boarding Out Fees,
Peterborough City Council,People & Communities,Access to Resources & Specialist Commissioning,Schools,13/03/2020,8000163851,4015.63,Revenue,Foster Care Associates Ltd FCA,Boarding Out Fees,
Peterborough City Council,People & Communities,Access to Resources & Specialist Commissioning,Schools,13/03/2020,8000163851,2912.47,Revenue,Foster Care Associates Ltd FCA,Boarding Out Fees,
Peterborough City Council,People & Communities,Access to Resources & Specialist Commissioning,Schools,20/03/2020,8000163934,2750.02,Revenue,Florinee Homes Ltd,Boarding Out Fees,
Peterborough City Council,People & Communities,Access to Resources & Specialist Commissioning,Schools,20/03/2020,8000163934,3199.98,Revenue,Florinee Homes Ltd,Boarding Out Fees,
Peterborough City Council,People & Communities,Access to Resources & Specialist Commissioning,Schools,16/03/2020,8000163934,2995.70,Revenue,Foster Care Associates Ltd FCA,Boarding Out Fees,
Peterborough City Council,People & Communities,Access to Resources & Specialist Commissioning,Schools,16/03/2020,8000163934,3326.30,Revenue,Foster Care Associates Ltd FCA,Boarding Out Fees,
Peterborough City Council,People & Communities,Access to Resources & Specialist Commissioning,Schools,16/03/2020,8000163934,4097.70,Revenue,Foster Care Associates Ltd FCA,Boarding Out Fees,
Peterborough City Council,People & Communities,Access to Resources & Specialist Commissioning,Schools,16/03/2020,8000163934,3392.71,Revenue,Foster Care Associates Ltd FCA,Boarding Out Fees,
Peterborough City Council,People & Communities,Access to Resources & Specialist Commissioning,Schools,16/03/2020,8000163934,744.00,Revenue,Foster Care Associates Ltd FCA,Boarding Out Fees,
Peterborough City Council,People & Communities,Access to Resources & Specialist Commissioning,Schools,16/03/2020,8000163934,3596.00,Revenue,Foster Care Associates Ltd FCA,Boarding Out Fees,
Peterborough City Council,People & Communities,Access to Resources & Specialist Commissioning,Schools,16/03/2020,8000163934,3596.00,Revenue,Foster Care Associates Ltd FCA,Boarding Out Fees,
Peterborough City Council,People & Communities,Access to Resources & Specialist Commissioning,Schools,18/03/2020,8000163934,3383.00,Revenue,Foster Care Associates Ltd FCA,Boarding Out Fees,
Peterborough City Council,People & Communities,Access to Resources & Specialist Commissioning,Schools,16/03/2020,8000163934,3268.71,Revenue,Fostering Innovations Ltd,Boarding Out Fees,
Peterborough City Council,People & Communities,Access to Resources & Specialist Commissioning,Schools,25/03/2020,8000163934,3393.87,Revenue,Fostering People Ltd,Boarding Out Fees,
Peterborough City Council,People & Communities,Access to Resources & Specialist Commissioning,Schools,25/03/2020,8000163934,3463.18,Revenue,Fostering People Ltd,Boarding Out Fees,
Peterborough City Council,People & Communities,Access to Resources & Specialist Commissioning,Schools,27/03/2020,8000163934,3393.87,Revenue,Fostering People Ltd,Boarding Out Fees,
Peterborough City Council,People & Communities,Access to Resources & Specialist Commissioning,Schools,16/03/2020,8000163934,2676.20,Revenue,Fostering Solutions Limited,Boarding Out Fees,
Peterborough City Council,People & Communities,Access to Resources & Specialist Commissioning,Schools,16/03/2020,8000163934,3753.18,Revenue,Fostering Solutions Limited,Boarding Out Fees,
Peterborough City Council,People & Communities,Access to Resources & Specialist Commissioning,Schools,16/03/2020,8000163934,3319.34,Revenue,Fostering Solutions Limited,Boarding Out Fees,
Peterborough City Council,People & Communities,Access to Resources & Specialist Commissioning,Schools,16/03/2020,8000163934,3753.18,Revenue,Fostering Solutions Limited,Boarding Out Fees,
Peterborough City Council,People & Communities,Access to Resources & Specialist Commissioning,Schools,16/03/2020,8000163934,3312.96,Revenue,Fostering Solutions Limited,Boarding Out Fees,
Peterborough City Council,People & Communities,Access to Resources & Specialist Commissioning,Schools,16/03/2020,8000163934,5621.94,Revenue,Fostering Solutions Limited,Boarding Out Fees,
Peterborough City Council,People & Communities,Access to Resources & Specialist Commissioning,Schools,16/03/2020,8000163934,3376.47,Revenue,Fostering Solutions Limited,Boarding Out Fees,
Peterborough City Council,People & Communities,Access to Resources & Specialist Commissioning,Schools,16/03/2020,8000163934,3272.94,Revenue,Fostering Solutions Limited,Boarding Out Fees,
Peterborough City Council,People & Communities,Access to Resources & Specialist Commissioning,Schools,16/03/2020,8000163934,4640.00,Revenue,Fostering Solutions Limited,Boarding Out Fees,
Peterborough City Council,People & Communities,Access to Resources & Specialist Commissioning,Schools,16/03/2020,8000163934,4640.00,Revenue,Fostering Solutions Limited,Boarding Out Fees,
Peterborough City Council,People & Communities,Access to Resources & Specialist Commissioning,Schools,16/03/2020,8000163934,3376.47,Revenue,Fostering Solutions Limited,Boarding Out Fees,
Peterborough City Council,People & Communities,Access to Resources & Specialist Commissioning,Schools,18/03/2020,8000164063,4384.33,Revenue,Dreamers Global Ltd,Boarding Out Fees,
Peterborough City Council,People & Communities,Access to Resources & Specialist Commissioning,Schools,25/03/2020,8000164063,5369.93,Revenue,Kasper Fostering,Boarding Out Fees,
Peterborough City Council,People & Communities,Access to Resources & Specialist Commissioning,Schools,18/03/2020,8000164063,584.08,Revenue,Redacted Personal Data,Boarding Out Fees,
Peterborough City Council,People & Communities,Access to Resources & Specialist Commissioning,Schools,18/03/2020,8000164063,627.06,Revenue,Redacted Personal Data,Boarding Out Fees,
Peterborough City Council,People & Communities,Access to Resources & Specialist Commissioning,Schools,18/03/2020,8000164063,627.06,Revenue,Redacted Personal Data,Boarding Out Fees,
Peterborough City Council,People & Communities,Access to Resources & Specialist Commissioning,Schools,18/03/2020,8000164063,627.06,Revenue,Redacted Personal Data,Boarding Out Fees,
Peterborough City Council,People & Communities,Access to Resources & Specialist Commissioning,Schools,18/03/2020,8000164063,584.08,Revenue,Redacted Personal Data,Boarding Out Fees,
Peterborough City Council,People & Communities,Access to Resources & Specialist Commissioning,Schools,18/03/2020,8000164063,584.08,Revenue,Redacted Personal Data,Boarding Out Fees,
Peterborough City Council,People & Communities,Access to Resources & Specialist Commissioning,Schools,18/03/2020,8000164063,527.52,Revenue,Redacted Personal Data,Boarding Out Fees,
Peterborough City Council,People & Communities,Access to Resources & Specialist Commissioning,Schools,18/03/2020,8000164063,584.08,Revenue,Redacted Personal Data,Boarding Out Fees,
Peterborough City Council,People & Communities,Access to Resources & Specialist Commissioning,Schools,18/03/2020,8000164063,584.08,Revenue,Redacted Personal Data,Boarding Out Fees,
Peterborough City Council,People & Communities,Access to Resources & Specialist Commissioning,Schools,18/03/2020,8000164063,584.08,Revenue,Redacted Personal Data,Boarding Out Fees,
Peterborough City Council,People & Communities,Access to Resources & Specialist Commissioning,Schools,18/03/2020,8000164063,584.08,Revenue,Redacted Personal Data,Boarding Out Fees,
Peterborough City Council,People & Communities,Access to Resources & Specialist Commissioning,Schools,18/03/2020,8000164063,584.08,Revenue,Redacted Personal Data,Boarding Out Fees,
Peterborough City Council,People & Communities,Access to Resources & Specialist Commissioning,Schools,18/03/2020,8000164063,584.08,Revenue,Redacted Personal Data,Boarding Out Fees,
Peterborough City Council,People & Communities,Access to Resources & Specialist Commissioning,Schools,18/03/2020,8000164063,584.08,Revenue,Redacted Personal Data,Boarding Out Fees,
Peterborough City Council,People & Communities,Access to Resources & Specialist Commissioning,Schools,18/03/2020,8000164063,584.08,Revenue,Redacted Personal Data,Boarding Out Fees,
Peterborough City Council,People & Communities,Access to Resources & Specialist Commissioning,Schools,18/03/2020,8000164063,584.08,Revenue,Redacted Personal Data,Boarding Out Fees,
Peterborough City Council,People & Communities,Access to Resources & Specialist Commissioning,Schools,18/03/2020,8000164063,584.08,Revenue,Redacted Personal Data,Boarding Out Fees,
Peterborough City Council,People & Communities,Access to Resources & Specialist Commissioning,Schools,18/03/2020,8000164063,584.08,Revenue,Redacted Personal Data,Boarding Out Fees,
Peterborough City Council,People & Communities,Access to Resources & Specialist Commissioning,Schools,18/03/2020,8000164063,627.06,Revenue,Redacted Personal Data,Boarding Out Fees,
Peterborough City Council,People & Communities,Access to Resources & Specialist Commissioning,Schools,18/03/2020,8000164063,909.82,Revenue,Redacted Personal Data,Boarding Out Fees,
Peterborough City Council,People & Communities,Access to Resources & Specialist Commissioning,Schools,18/03/2020,8000164063,627.06,Revenue,Redacted Personal Data,Boarding Out Fees,
Peterborough City Council,People & Communities,Access to Resources & Specialist Commissioning,Schools,18/03/2020,8000164063,584.08,Revenue,Redacted Personal Data,Boarding Out Fees,
Peterborough City Council,People & Communities,Access to Resources & Specialist Commissioning,Schools,18/03/2020,8000164063,584.08,Revenue,Redacted Personal Data,Boarding Out Fees,
Peterborough City Council,People & Communities,Access to Resources & Specialist Commissioning,Schools,18/03/2020,8000164063,627.06,Revenue,Redacted Personal Data,Boarding Out Fees,
Peterborough City Council,People & Communities,Access to Resources & Specialist Commissioning,Schools,18/03/2020,8000164063,646.16,Revenue,Redacted Personal Data,Boarding Out Fees,
Peterborough City Council,People & Communities,Access to Resources & Specialist Commissioning,Schools,18/03/2020,8000164063,646.16,Revenue,Redacted Personal Data,Boarding Out Fees,
Peterborough City Council,People & Communities,Access to Resources & Specialist Commissioning,Schools,18/03/2020,8000164063,844.48,Revenue,Redacted Personal Data,Boarding Out Fees,
Peterborough City Council,People & Communities,Access to Resources & Specialist Commissioning,Schools,18/03/2020,8000164063,632.38,Revenue,Redacted Personal Data,Boarding Out Fees,
Peterborough City Council,People & Communities,Access to Resources & Specialist Commissioning,Schools,18/03/2020,8000164063,501.72,Revenue,Redacted Personal Data,Boarding Out Fees,
Peterborough City Council,People & Communities,Access to Resources & Specialist Commissioning,Schools,18/03/2020,8000164063,613.62,Revenue,Redacted Personal Data,Boarding Out Fees,
Peterborough City Council,People & Communities,Access to Resources & Specialist Commissioning,Schools,18/03/2020,8000164063,882.42,Revenue,Redacted Personal Data,Boarding Out Fees,
Peterborough City Council,People & Communities,Access to Resources & Specialist Commissioning,Schools,18/03/2020,8000164063,545.88,Revenue,Redacted Personal Data,Boarding Out Fees,
Peterborough City Council,People & Communities,Access to Resources & Specialist Commissioning,Schools,18/03/2020,8000164063,545.88,Revenue,Redacted Personal Data,Boarding Out Fees,
Peterborough City Council,People & Communities,Access to Resources & Specialist Commissioning,Schools,18/03/2020,8000164063,545.88,Revenue,Redacted Personal Data,Boarding Out Fees,
Peterborough City Council,People & Communities,Access to Resources & Specialist Commissioning,Schools,18/03/2020,8000164063,800.00,Revenue,Redacted Personal Data,Boarding Out Fees,
Peterborough City Council,People & Communities,Access to Resources & Specialist Commissioning,Schools,18/03/2020,8000164063,800.00,Revenue,Redacted Personal Data,Boarding Out Fees,
Peterborough City Council,People & Communities,Access to Resources & Specialist Commissioning,Schools,18/03/2020,8000164063,800.00,Revenue,Redacted Personal Data,Boarding Out Fees,
Peterborough City Council,People & Communities,Access to Resources & Specialist Commissioning,Schools,18/03/2020,8000164063,1043.14,Revenue,Redacted Personal Data,Boarding Out Fees,
Peterborough City Council,People & Communities,Access to Resources & Specialist Commissioning,Schools,18/03/2020,8000164063,990.78,Revenue,Redacted Personal Data,Boarding Out Fees,
Peterborough City Council,People & Communities,Access to Resources & Specialist Commissioning,Schools,18/03/2020,8000164063,4791.96,Revenue,Redacted Personal Data,Boarding Out Fees,
Peterborough City Council,People & Communities,Access to Resources & Specialist Commissioning,Schools,18/03/2020,8000164063,515.20,Revenue,Redacted Personal Data,Boarding Out Fees,
Peterborough City Council,People & Communities,Access to Resources & Specialist Commissioning,Schools,18/03/2020,8000164063,913.20,Revenue,Redacted Personal Data,Boarding Out Fees,
Peterborough City Council,People & Communities,Access to Resources & Specialist Commissioning,Schools,18/03/2020,8000164063,909.82,Revenue,Redacted Personal Data,Boarding Out Fees,
Peterborough City Council,People & Communities,Access to Resources & Specialist Commissioning,Schools,18/03/2020,8000164063,527.52,Revenue,Redacted Personal Data,Boarding Out Fees,
Peterborough City Council,People & Communities,Access to Resources & Specialist Commissioning,Schools,18/03/2020,8000164063,527.52,Revenue,Redacted Personal Data,Boarding Out Fees,
Peterborough City Council,People & Communities,Access to Resources & Specialist Commissioning,Schools,18/03/2020,8000164063,627.06,Revenue,Redacted Personal Data,Boarding Out Fees,
Peterborough City Council,People & Communities,Access to Resources & Specialist Commissioning,Schools,18/03/2020,8000164063,527.52,Revenue,Redacted Personal Data,Boarding Out Fees,
Peterborough City Council,People & Communities,Access to Resources & Specialist Commissioning,Schools,18/03/2020,8000164063,527.52,Revenue,Redacted Personal Data,Boarding Out Fees,
Peterborough City Council,People & Communities,Access to Resources & Specialist Commissioning,Schools,18/03/2020,8000164063,584.08,Revenue,Redacted Personal Data,Boarding Out Fees,
Peterborough City Council,People & Communities,Access to Resources & Specialist Commissioning,Schools,18/03/2020,8000164063,909.82,Revenue,Redacted Personal Data,Boarding Out Fees,
Peterborough City Council,People & Communities,Access to Resources & Specialist Commissioning,Schools,18/03/2020,8000164063,527.52,Revenue,Redacted Personal Data,Boarding Out Fees,
Peterborough City Council,People & Communities,Access to Resources & Specialist Commissioning,Schools,18/03/2020,8000164063,527.52,Revenue,Redacted Personal Data,Boarding Out Fees,
Peterborough City Council,People & Communities,Access to Resources & Specialist Commissioning,Schools,18/03/2020,8000164063,527.52,Revenue,Redacted Personal Data,Boarding Out Fees,
Peterborough City Council,People & Communities,Access to Resources & Specialist Commissioning,Schools,18/03/2020,8000164063,584.08,Revenue,Redacted Personal Data,Boarding Out Fees,
Peterborough City Council,People & Communities,Access to Resources & Specialist Commissioning,Schools,18/03/2020,8000164063,527.52,Revenue,Redacted Personal Data,Boarding Out Fees,
Peterborough City Council,People & Communities,Access to Resources & Specialist Commissioning,Schools,18/03/2020,8000164063,527.52,Revenue,Redacted Personal Data,Boarding Out Fees,
Peterborough City Council,People & Communities,Access to Resources & Specialist Commissioning,Schools,18/03/2020,8000164063,527.52,Revenue,Redacted Personal Data,Boarding Out Fees,
Peterborough City Council,People & Communities,Access to Resources & Specialist Commissioning,Schools,18/03/2020,8000164063,527.52,Revenue,Redacted Personal Data,Boarding Out Fees,
Peterborough City Council,People & Communities,Access to Resources & Specialist Commissioning,Schools,18/03/2020,8000164063,909.82,Revenue,Redacted Personal Data,Boarding Out Fees,
Peterborough City Council,People & Communities,Access to Resources & Specialist Commissioning,Schools,18/03/2020,8000164063,584.08,Revenue,Redacted Personal Data,Boarding Out Fees,
Peterborough City Council,People & Communities,Access to Resources & Specialist Commissioning,Schools,18/03/2020,8000164063,584.08,Revenue,Redacted Personal Data,Boarding Out Fees,
Peterborough City Council,People & Communities,Access to Resources & Specialist Commissioning,Schools,18/03/2020,8000164063,584.08,Revenue,Redacted Personal Data,Boarding Out Fees,
Peterborough City Council,People & Communities,Access to Resources & Specialist Commissioning,Schools,18/03/2020,8000164063,584.08,Revenue,Redacted Personal Data,Boarding Out Fees,
Peterborough City Council,People & Communities,Access to Resources & Specialist Commissioning,Schools,18/03/2020,8000164063,527.52,Revenue,Redacted Personal Data,Boarding Out Fees,
Peterborough City Council,People & Communities,Access to Resources & Specialist Commissioning,Schools,18/03/2020,8000164063,584.08,Revenue,Redacted Personal Data,Boarding Out Fees,
Peterborough City Council,People & Communities,Access to Resources & Specialist Commissioning,Schools,18/03/2020,8000164063,584.08,Revenue,Redacted Personal Data,Boarding Out Fees,
Peterborough City Council,People & Communities,Access to Resources & Specialist Commissioning,Schools,18/03/2020,8000164063,584.08,Revenue,Redacted Personal Data,Boarding Out Fees,
Peterborough City Council,People & Communities,Access to Resources & Specialist Commissioning,Schools,18/03/2020,8000164063,584.08,Revenue,Redacted Personal Data,Boarding Out Fees,
Peterborough City Council,People & Communities,Access to Resources & Specialist Commissioning,Schools,18/03/2020,8000164063,584.08,Revenue,Redacted Personal Data,Boarding Out Fees,
Peterborough City Council,People & Communities,Access to Resources & Specialist Commissioning,Schools,18/03/2020,8000164063,584.08,Revenue,Redacted Personal Data,Boarding Out Fees,
Peterborough City Council,People & Communities,Access to Resources & Specialist Commissioning,Schools,18/03/2020,8000164063,584.08,Revenue,Redacted Personal Data,Boarding Out Fees,
Peterborough City Council,People & Communities,Access to Resources & Specialist Commissioning,Schools,18/03/2020,8000164063,527.52,Revenue,Redacted Personal Data,Boarding Out Fees,
Peterborough City Council,People & Communities,Access to Resources & Specialist Commissioning,Schools,18/03/2020,8000164063,584.08,Revenue,Redacted Personal Data,Boarding Out Fees,
Peterborough City Council,People & Communities,Access to Resources & Specialist Commissioning,Schools,18/03/2020,8000164063,584.08,Revenue,Redacted Personal Data,Boarding Out Fees,
Peterborough City Council,People & Communities,Access to Resources & Specialist Commissioning,Schools,18/03/2020,8000164063,527.52,Revenue,Redacted Personal Data,Boarding Out Fees,
Peterborough City Council,People & Communities,Access to Resources & Specialist Commissioning,Schools,18/03/2020,8000164063,527.52,Revenue,Redacted Personal Data,Boarding Out Fees,
Peterborough City Council,People & Communities,Access to Resources & Specialist Commissioning,Schools,18/03/2020,8000164063,851.48,Revenue,Redacted Personal Data,Boarding Out Fees,
Peterborough City Council,People & Communities,Access to Resources & Specialist Commissioning,Schools,18/03/2020,8000164063,1029.98,Revenue,Redacted Personal Data,Boarding Out Fees,
Peterborough City Council,People & Communities,Access to Resources & Specialist Commissioning,Schools,18/03/2020,8000164063,806.12,Revenue,Redacted Personal Data,Boarding Out Fees,
Peterborough City Council,People & Communities,Access to Resources & Specialist Commissioning,Schools,18/03/2020,8000164063,806.12,Revenue,Redacted Personal Data,Boarding Out Fees,
Peterborough City Council,People & Communities,Access to Resources & Specialist Commissioning,Schools,18/03/2020,8000164063,585.62,Revenue,Redacted Personal Data,Boarding Out Fees,
Peterborough City Council,People & Communities,Access to Resources & Specialist Commissioning,Schools,18/03/2020,8000164063,556.64,Revenue,Redacted Personal Data,Boarding Out Fees,
Peterborough City Council,People & Communities,Access to Resources & Specialist Commissioning,Schools,18/03/2020,8000164063,854.28,Revenue,Redacted Personal Data,Boarding Out Fees,
Peterborough City Council,People & Communities,Access to Resources & Specialist Commissioning,Schools,18/03/2020,8000164063,1401.46,Revenue,Redacted Personal Data,Boarding Out Fees,
Peterborough City Council,People & Communities,Access to Resources & Specialist Commissioning,Schools,18/03/2020,8000164063,627.06,Revenue,Redacted Personal Data,Boarding Out Fees,
Peterborough City Council,People & Communities,Access to Resources & Specialist Commissioning,Schools,18/03/2020,8000164063,527.52,Revenue,Redacted Personal Data,Boarding Out Fees,
Peterborough City Council,People & Communities,Access to Resources & Specialist Commissioning,Schools,18/03/2020,8000164063,527.52,Revenue,Redacted Personal Data,Boarding Out Fees,
Peterborough City Council,People & Communities,Access to Resources & Specialist Commissioning,Schools,18/03/2020,8000164063,584.08,Revenue,Redacted Personal Data,Boarding Out Fees,
Peterborough City Council,People & Communities,Access to Resources & Specialist Commissioning,Schools,18/03/2020,8000164063,584.08,Revenue,Redacted Personal Data,Boarding Out Fees,
Peterborough City Council,People & Communities,Access to Resources & Specialist Commissioning,Schools,18/03/2020,8000164063,584.08,Revenue,Redacted Personal Data,Boarding Out Fees,
Peterborough City Council,People & Communities,Access to Resources & Specialist Commissioning,Schools,18/03/2020,8000164063,572.46,Revenue,Redacted Personal Data,Boarding Out Fees,
Peterborough City Council,People & Communities,Access to Resources & Specialist Commissioning,Schools,18/03/2020,8000164063,572.46,Revenue,Redacted Personal Data,Boarding Out Fees,
Peterborough City Council,People & Communities,Access to Resources & Specialist Commissioning,Schools,18/03/2020,8000164063,572.46,Revenue,Redacted Personal Data,Boarding Out Fees,
Peterborough City Council,People & Communities,Access to Resources & Specialist Commissioning,Schools,18/03/2020,8000164063,530.88,Revenue,Redacted Personal Data,Boarding Out Fees,
Peterborough City Council,People & Communities,Access to Resources & Specialist Commissioning,Schools,18/03/2020,8000164063,597.69,Revenue,Redacted Personal Data,Boarding Out Fees,
Peterborough City Council,People & Communities,Access to Resources & Specialist Commissioning,Schools,18/03/2020,8000164063,503.44,Revenue,Redacted Personal Data,Boarding Out Fees,
Peterborough City Council,People & Communities,Access to Resources & Specialist Commissioning,Schools,18/03/2020,8000164063,840.00,Revenue,Redacted Personal Data,Boarding Out Fees,
Peterborough City Council,People & Communities,Access to Resources & Specialist Commissioning,Schools,20/03/2020,8000164182,3029.34,Revenue,Compass Fostering Central Limited,Boarding Out Fees,
Peterborough City Council,People & Communities,Access to Resources & Specialist Commissioning,Schools,20/03/2020,8000164182,4034.34,Revenue,Five Rivers,Boarding Out Fees,
Peterborough City Council,People & Communities,Access to Resources & Specialist Commissioning,Schools,25/03/2020,8000164182,3293.53,Revenue,Little Acorns Fostering,Boarding Out Fees,
Peterborough City Council,People & Communities,Access to Resources & Specialist Commissioning,Schools,20/03/2020,8000164182,3569.90,Revenue,Nexus Fostering Ltd,Boarding Out Fees,
Peterborough City Council,People & Communities,Access to Resources & Specialist Commissioning,Schools,20/03/2020,8000164182,3569.90,Revenue,Nexus Fostering Ltd,Boarding Out Fees,
Peterborough City Council,People & Communities,Access to Resources & Specialist Commissioning,Schools,20/03/2020,8000164182,3569.90,Revenue,Nexus Fostering Ltd,Boarding Out Fees,
Peterborough City Council,People & Communities,Access to Resources & Specialist Commissioning,Schools,20/03/2020,8000164182,3391.55,Revenue,Nexus Fostering Ltd,Boarding Out Fees,
Peterborough City Council,People & Communities,Access to Resources & Specialist Commissioning,Schools,20/03/2020,8000164182,3569.90,Revenue,Nexus Fostering Ltd,Boarding Out Fees,
Peterborough City Council,People & Communities,Access to Resources & Specialist Commissioning,Schools,20/03/2020,8000164182,3391.55,Revenue,Nexus Fostering Ltd,Boarding Out Fees,
Peterborough City Council,People & Communities,Access to Resources & Specialist Commissioning,Schools,20/03/2020,8000164182,6069.12,Revenue,Nexus Fostering Ltd,Boarding Out Fees,
Peterborough City Council,People & Communities,Access to Resources & Specialist Commissioning,Schools,20/03/2020,8000164182,3509.58,Revenue,Orange Grove Fostercare Ltd,Boarding Out Fees,
Peterborough City Council,People & Communities,Access to Resources & Specialist Commissioning,Schools,20/03/2020,8000164182,2192.14,Revenue,PCH Integration Services Ltd,Boarding Out Fees,
Peterborough City Council,People & Communities,Access to Resources & Specialist Commissioning,Schools,25/03/2020,8000164182,3003.57,Revenue,Pride Fostering,Boarding Out Fees,
Peterborough City Council,People & Communities,Access to Resources & Specialist Commissioning,Schools,25/03/2020,8000164182,3045.00,Revenue,Pride Fostering,Boarding Out Fees,
Peterborough City Council,People & Communities,Access to Resources & Specialist Commissioning,Schools,20/03/2020,8000164182,10992.86,Revenue,QUALITY PROTECTS CHILDREN LTD,Boarding Out Fees,
Peterborough City Council,People & Communities,Access to Resources & Specialist Commissioning,Schools,20/03/2020,8000164182,-607.15,Revenue,QUALITY PROTECTS CHILDREN LTD,Boarding Out Fees,
Peterborough City Council,People & Communities,Access to Resources & Specialist Commissioning,Schools,27/03/2020,8000164182,12528.00,Revenue,Semi-Independent House,Boarding Out Fees,
Peterborough City Council,People & Communities,Access to Resources & Specialist Commissioning,Schools,27/03/2020,8000164182,12528.00,Revenue,Semi-Independent House,Boarding Out Fees,
Peterborough City Council,People & Communities,Access to Resources & Specialist Commissioning,Schools,27/03/2020,8000164182,12528.00,Revenue,Semi-Independent House,Boarding Out Fees,
Peterborough City Council,People & Communities,Access to Resources & Specialist Commissioning,Schools,27/03/2020,8000164182,12528.00,Revenue,Semi-Independent House,Boarding Out Fees,
Peterborough City Council,People & Communities,Access to Resources & Specialist Commissioning,Schools,20/03/2020,8000164182,3211.17,Revenue,St Christopher�s Fellowship,Boarding Out Fees,
Peterborough City Council,People & Communities,Access to Resources & Specialist Commissioning,Schools,20/03/2020,8000164182,3277.00,Revenue,St Christopher�s Fellowship,Boarding Out Fees,
Peterborough City Council,People & Communities,Access to Resources & Specialist Commissioning,Schools,20/03/2020,8000164182,3113.15,Revenue,St Christopher�s Fellowship,Boarding Out Fees,
Peterborough City Council,People & Communities,Access to Resources & Specialist Commissioning,Schools,20/03/2020,8000164182,764.40,Revenue,Swiis Foster Care Ltd,Boarding Out Fees,
Peterborough City Council,People & Communities,Access to Resources & Specialist Commissioning,Schools,20/03/2020,8000164182,764.40,Revenue,Swiis Foster Care Ltd,Boarding Out Fees,
Peterborough City Council,People & Communities,Access to Resources & Specialist Commissioning,Schools,25/03/2020,8000164182,3422.00,Revenue,Tree House Care Fostering Solutions Ltd,Boarding Out Fees,
Peterborough City Council,People & Communities,Access to Resources & Specialist Commissioning,Schools,25/03/2020,8000164182,12780.71,Revenue,"United Childrens Services
 Limited",Boarding Out Fees,
Peterborough City Council,People & Communities,Access to Resources & Specialist Commissioning,Schools,20/03/2020,8000164182,30000.00,Revenue,Wilds Lodge School,Boarding Out Fees,
Peterborough City Council,People & Communities,Access to Resources & Specialist Commissioning,Schools,20/03/2020,8000164182,30000.00,Revenue,Wilds Lodge School,Boarding Out Fees,
Peterborough City Council,People & Communities,Access to Resources & Specialist Commissioning,Schools,20/03/2020,8000164182,23333.33,Revenue,Wilds Lodge School,Boarding Out Fees,
Peterborough City Council,People & Communities,Access to Resources & Specialist Commissioning,Schools,23/03/2020,8000164215,23803.86,Revenue,Aspire Scotland Ltd,Boarding Out Fees,
Peterborough City Council,People & Communities,Access to Resources & Specialist Commissioning,Schools,25/03/2020,8000164215,3774.06,Revenue,Five Rivers,Boarding Out Fees,
Peterborough City Council,People & Communities,Access to Resources & Specialist Commissioning,Schools,25/03/2020,8000164215,5320.92,Revenue,Five Rivers,Boarding Out Fees,
Peterborough City Council,People & Communities,Access to Resources & Specialist Commissioning,Schools,25/03/2020,8000164215,2955.68,Revenue,IAS TACT,Boarding Out Fees,
Peterborough City Council,People & Communities,Access to Resources & Specialist Commissioning,Schools,25/03/2020,8000164215,2916.12,Revenue,IAS TACT,Boarding Out Fees,
Peterborough City Council,People & Communities,Access to Resources & Specialist Commissioning,Schools,25/03/2020,8000164215,2804.88,Revenue,IAS TACT,Boarding Out Fees,
Peterborough City Council,People & Communities,Access to Resources & Specialist Commissioning,Schools,25/03/2020,8000164215,2750.94,Revenue,IAS TACT,Boarding Out Fees,
Peterborough City Council,People & Communities,Access to Resources & Specialist Commissioning,Schools,25/03/2020,8000164215,2742.82,Revenue,IAS TACT,Boarding Out Fees,
Peterborough City Council,People & Communities,Access to Resources & Specialist Commissioning,Schools,25/03/2020,8000164215,2750.94,Revenue,IAS TACT,Boarding Out Fees,
Peterborough City Council,People & Communities,Access to Resources & Specialist Commissioning,Schools,25/03/2020,8000164215,2742.82,Revenue,IAS TACT,Boarding Out Fees,
Peterborough City Council,People & Communities,Access to Resources & Specialist Commissioning,Schools,25/03/2020,8000164215,2616.09,Revenue,IAS TACT,Boarding Out Fees,
Peterborough City Council,People & Communities,Access to Resources & Specialist Commissioning,Schools,25/03/2020,8000164215,2813.00,Revenue,IAS TACT,Boarding Out Fees,
Peterborough City Council,People & Communities,Access to Resources & Specialist Commissioning,Schools,25/03/2020,8000164215,3011.36,Revenue,IAS TACT,Boarding Out Fees,
Peterborough City Council,People & Communities,Access to Resources & Specialist Commissioning,Schools,25/03/2020,8000164215,2756.74,Revenue,IAS TACT,Boarding Out Fees,
Peterborough City Council,People & Communities,Access to Resources & Specialist Commissioning,Schools,25/03/2020,8000164215,2742.82,Revenue,IAS TACT,Boarding Out Fees,
Peterborough City Council,People & Communities,Access to Resources & Specialist Commissioning,Schools,25/03/2020,8000164215,2789.22,Revenue,IAS TACT,Boarding Out Fees,
Peterborough City Council,People & Communities,Access to Resources & Specialist Commissioning,Schools,25/03/2020,8000164215,2536.63,Revenue,IAS TACT,Boarding Out Fees,
Peterborough City Council,People & Communities,Access to Resources & Specialist Commissioning,Schools,25/03/2020,8000164215,2616.09,Revenue,IAS TACT,Boarding Out Fees,
Peterborough City Council,People & Communities,Access to Resources & Specialist Commissioning,Schools,25/03/2020,8000164215,5287.57,Revenue,IAS TACT,Boarding Out Fees,
Peterborough City Council,People & Communities,Access to Resources & Specialist Commissioning,Schools,25/03/2020,8000164215,3335.00,Revenue,IAS TACT,Boarding Out Fees,
Peterborough City Council,People & Communities,Access to Resources & Specialist Commissioning,Schools,25/03/2020,8000164215,2804.88,Revenue,IAS TACT,Boarding Out Fees,
Peterborough City Council,People & Communities,Access to Resources & Specialist Commissioning,Schools,23/03/2020,8000164215,3565.00,Revenue,National Fostering Agency Ltd,Boarding Out Fees,
Peterborough City Council,People & Communities,Access to Resources & Specialist Commissioning,Schools,23/03/2020,8000164215,3454.33,Revenue,National Fostering Agency Ltd,Boarding Out Fees,
Peterborough City Council,People & Communities,Access to Resources & Specialist Commissioning,Schools,23/03/2020,8000164215,3350.79,Revenue,National Fostering Agency Ltd,Boarding Out Fees,
Peterborough City Council,People & Communities,Access to Resources & Specialist Commissioning,Schools,23/03/2020,8000164215,3350.79,Revenue,National Fostering Agency Ltd,Boarding Out Fees,
Peterborough City Council,People & Communities,Access to Resources & Specialist Commissioning,Schools,23/03/2020,8000164215,4057.59,Revenue,National Fostering Agency Ltd,Boarding Out Fees,
Peterborough City Council,People & Communities,Access to Resources & Specialist Commissioning,Schools,23/03/2020,8000164215,3317.00,Revenue,National Fostering Agency Ltd,Boarding Out Fees,
Peterborough City Council,People & Communities,Access to Resources & Specialist Commissioning,Schools,23/03/2020,8000164215,3250.66,Revenue,National Fostering Agency Ltd,Boarding Out Fees,
Peterborough City Council,People & Communities,Access to Resources & Specialist Commissioning,Schools,23/03/2020,8000164215,4557.00,Revenue,National Fostering Agency Ltd,Boarding Out Fees,
Peterborough City Council,People & Communities,Access to Resources & Specialist Commissioning,Schools,23/03/2020,8000164215,3385.20,Revenue,National Fostering Agency Ltd,Boarding Out Fees,
Peterborough City Council,People & Communities,Access to Resources & Specialist Commissioning,Schools,23/03/2020,8000164215,3350.79,Revenue,National Fostering Agency Ltd,Boarding Out Fees,
Peterborough City Council,People & Communities,Access to Resources & Specialist Commissioning,Schools,23/03/2020,8000164215,4871.34,Revenue,National Fostering Agency Ltd,Boarding Out Fees,
Peterborough City Council,People & Communities,Access to Resources & Specialist Commissioning,Schools,23/03/2020,8000164215,3454.33,Revenue,National Fostering Agency Ltd,Boarding Out Fees,
Peterborough City Council,People & Communities,Access to Resources & Specialist Commissioning,Schools,23/03/2020,8000164215,3454.33,Revenue,National Fostering Agency Ltd,Boarding Out Fees,
Peterborough City Council,People & Communities,Access to Resources & Specialist Commissioning,Schools,23/03/2020,8000164215,3454.33,Revenue,National Fostering Agency Ltd,Boarding Out Fees,
Peterborough City Council,People & Communities,Access to Resources & Specialist Commissioning,Schools,23/03/2020,8000164215,3520.67,Revenue,National Fostering Agency Ltd,Boarding Out Fees,
Peterborough City Council,People & Communities,Access to Resources & Specialist Commissioning,Schools,23/03/2020,8000164215,3454.33,Revenue,National Fostering Agency Ltd,Boarding Out Fees,
Peterborough City Council,People & Communities,Access to Resources & Specialist Commissioning,Schools,23/03/2020,8000164215,3385.20,Revenue,National Fostering Agency Ltd,Boarding Out Fees,
Peterborough City Council,People & Communities,Access to Resources & Specialist Commissioning,Schools,23/03/2020,8000164215,764.40,Revenue,Swiis Foster Care Ltd,Boarding Out Fees,
Peterborough City Council,People & Communities,Access to Resources & Specialist Commissioning,Schools,23/03/2020,8000164215,764.40,Revenue,Swiis Foster Care Ltd,Boarding Out Fees,
Peterborough City Council,People & Communities,Access to Resources & Specialist Commissioning,Schools,25/03/2020,8000164215,4155.41,Revenue,Young People at Heart Ltd,Boarding Out Fees,
Peterborough City Council,People & Communities,Access to Resources & Specialist Commissioning,Schools,25/03/2020,8000164227,20693.24,Revenue,Dove Adolescent Services Ltd,Boarding Out Fees,
Peterborough City Council,People & Communities,Access to Resources & Specialist Commissioning,Schools,23/03/2020,8000164227,5261.29,Revenue,Ethelbert Childrens Services,Boarding Out Fees,
Peterborough City Council,People & Communities,Access to Resources & Specialist Commissioning,Schools,23/03/2020,8000164227,-6880.14,Revenue,Ethelbert Childrens Services,Boarding Out Fees,
Peterborough City Council,People & Communities,Access to Resources & Specialist Commissioning,Schools,23/03/2020,8000164227,6880.14,Revenue,Ethelbert Childrens Services,Boarding Out Fees,
Peterborough City Council,People & Communities,Access to Resources & Specialist Commissioning,Schools,23/03/2020,8000164227,-6880.14,Revenue,Ethelbert Childrens Services,Boarding Out Fees,
Peterborough City Council,People & Communities,Access to Resources & Specialist Commissioning,Schools,23/03/2020,8000164227,6475.42,Revenue,Ethelbert Childrens Services,Boarding Out Fees,
Peterborough City Council,People & Communities,Access to Resources & Specialist Commissioning,Schools,25/03/2020,8000164227,3335.00,Revenue,National Fostering Agency Ltd,Boarding Out Fees,
Peterborough City Council,People & Communities,Access to Resources & Specialist Commissioning,Schools,25/03/2020,8000164227,3231.47,Revenue,National Fostering Agency Ltd,Boarding Out Fees,
Peterborough City Council,People & Communities,Access to Resources & Specialist Commissioning,Schools,25/03/2020,8000164227,3134.61,Revenue,National Fostering Agency Ltd,Boarding Out Fees,
Peterborough City Council,People & Communities,Access to Resources & Specialist Commissioning,Schools,25/03/2020,8000164227,3134.61,Revenue,National Fostering Agency Ltd,Boarding Out Fees,
Peterborough City Council,People & Communities,Access to Resources & Specialist Commissioning,Schools,25/03/2020,8000164227,3795.81,Revenue,National Fostering Agency Ltd,Boarding Out Fees,
Peterborough City Council,People & Communities,Access to Resources & Specialist Commissioning,Schools,25/03/2020,8000164227,3103.00,Revenue,National Fostering Agency Ltd,Boarding Out Fees,
Peterborough City Council,People & Communities,Access to Resources & Specialist Commissioning,Schools,25/03/2020,8000164227,3040.94,Revenue,National Fostering Agency Ltd,Boarding Out Fees,
Peterborough City Council,People & Communities,Access to Resources & Specialist Commissioning,Schools,25/03/2020,8000164227,4263.00,Revenue,National Fostering Agency Ltd,Boarding Out Fees,
Peterborough City Council,People & Communities,Access to Resources & Specialist Commissioning,Schools,25/03/2020,8000164227,3166.80,Revenue,National Fostering Agency Ltd,Boarding Out Fees,
Peterborough City Council,People & Communities,Access to Resources & Specialist Commissioning,Schools,25/03/2020,8000164227,3134.61,Revenue,National Fostering Agency Ltd,Boarding Out Fees,
Peterborough City Council,People & Communities,Access to Resources & Specialist Commissioning,Schools,25/03/2020,8000164227,4557.06,Revenue,National Fostering Agency Ltd,Boarding Out Fees,
Peterborough City Council,People & Communities,Access to Resources & Specialist Commissioning,Schools,25/03/2020,8000164227,3231.47,Revenue,National Fostering Agency Ltd,Boarding Out Fees,
Peterborough City Council,People & Communities,Access to Resources & Specialist Commissioning,Schools,25/03/2020,8000164227,3231.47,Revenue,National Fostering Agency Ltd,Boarding Out Fees,
Peterborough City Council,People & Communities,Access to Resources & Specialist Commissioning,Schools,25/03/2020,8000164227,3231.47,Revenue,National Fostering Agency Ltd,Boarding Out Fees,
Peterborough City Council,People & Communities,Access to Resources & Specialist Commissioning,Schools,25/03/2020,8000164227,3293.53,Revenue,National Fostering Agency Ltd,Boarding Out Fees,
Peterborough City Council,People & Communities,Access to Resources & Specialist Commissioning,Schools,25/03/2020,8000164227,3231.47,Revenue,National Fostering Agency Ltd,Boarding Out Fees,
Peterborough City Council,People & Communities,Access to Resources & Specialist Commissioning,Schools,25/03/2020,8000164227,3166.80,Revenue,National Fostering Agency Ltd,Boarding Out Fees,
Peterborough City Council,People & Communities,Access to Resources & Specialist Commissioning,Schools,23/03/2020,8000164227,2050.71,Revenue,PCH Integration Services Ltd,Boarding Out Fees,
Peterborough City Council,People & Communities,Access to Resources & Specialist Commissioning,Schools,23/03/2020,8000164227,2050.71,Revenue,PCH Integration Services Ltd,Boarding Out Fees,
Peterborough City Council,People & Communities,Access to Resources & Specialist Commissioning,Schools,23/03/2020,8000164227,764.40,Revenue,Swiis Foster Care Ltd,Boarding Out Fees,
Peterborough City Council,People & Communities,Access to Resources & Specialist Commissioning,Schools,23/03/2020,8000164227,764.40,Revenue,Swiis Foster Care Ltd,Boarding Out Fees,
Peterborough City Council,People & Communities,Access to Resources & Specialist Commissioning,Schools,27/03/2020,8000164327,4388.05,Revenue,By The Bridge,Boarding Out Fees,
Peterborough City Council,People & Communities,Access to Resources & Specialist Commissioning,Schools,27/03/2020,8000164327,4475.78,Revenue,By The Bridge,Boarding Out Fees,
Peterborough City Council,People & Communities,Access to Resources & Specialist Commissioning,Schools,27/03/2020,8000164327,4619.00,Revenue,By The Bridge,Boarding Out Fees,
Peterborough City Council,People & Communities,Access to Resources & Specialist Commissioning,Schools,27/03/2020,8000164327,3472.00,Revenue,Compass Fostering Central Limited,Boarding Out Fees,
Peterborough City Council,People & Communities,Access to Resources & Specialist Commissioning,Schools,27/03/2020,8000164327,3348.00,Revenue,Compass Fostering Central Limited,Boarding Out Fees,
Peterborough City Council,People & Communities,Access to Resources & Specialist Commissioning,Schools,27/03/2020,8000164327,3238.26,Revenue,Compass Fostering Central Limited,Boarding Out Fees,
Peterborough City Council,People & Communities,Access to Resources & Specialist Commissioning,Schools,27/03/2020,8000164327,3321.34,Revenue,Compass Fostering Central Limited,Boarding Out Fees,
Peterborough City Council,People & Communities,Access to Resources & Specialist Commissioning,Schools,27/03/2020,8000164327,3675.67,Revenue,Compass Fostering Central Limited,Boarding Out Fees,
Peterborough City Council,People & Communities,Access to Resources & Specialist Commissioning,Schools,27/03/2020,8000164327,3658.00,Revenue,Compass Fostering Eastern Ltd,Boarding Out Fees,
Peterborough City Council,People & Communities,Access to Resources & Specialist Commissioning,Schools,27/03/2020,8000164327,3742.01,Revenue,Compass Fostering Eastern Ltd,Boarding Out Fees,
Peterborough City Council,People & Communities,Access to Resources & Specialist Commissioning,Schools,27/03/2020,8000164327,3675.67,Revenue,Compass Fostering Eastern Ltd,Boarding Out Fees,
Peterborough City Council,People & Communities,Access to Resources & Specialist Commissioning,Schools,27/03/2020,8000164327,3764.33,Revenue,Compass Fostering South Limited,Boarding Out Fees,
Peterborough City Council,People & Communities,Access to Resources & Specialist Commissioning,Schools,27/03/2020,8000164327,3764.02,Revenue,Eastern Family Services,Boarding Out Fees,
Peterborough City Council,People & Communities,Access to Resources & Specialist Commissioning,Schools,27/03/2020,8000164327,4406.34,Revenue,Eastern Family Services,Boarding Out Fees,
Peterborough City Council,People & Communities,Access to Resources & Specialist Commissioning,Schools,27/03/2020,8000164327,3653.35,Revenue,Eastern Family Services,Boarding Out Fees,
Peterborough City Council,People & Communities,Access to Resources & Specialist Commissioning,Schools,27/03/2020,8000164327,1980.02,Revenue,Florinee Homes Ltd,Boarding Out Fees,
Peterborough City Council,People & Communities,Access to Resources & Specialist Commissioning,Schools,27/03/2020,8000164327,2750.02,Revenue,Florinee Homes Ltd,Boarding Out Fees,
Peterborough City Council,People & Communities,Access to Resources & Specialist Commissioning,Schools,27/03/2020,8000164327,3199.98,Revenue,Florinee Homes Ltd,Boarding Out Fees,
Peterborough City Council,People & Communities,Access to Resources & Specialist Commissioning,Schools,27/03/2020,8000164327,3538.65,Revenue,Futures For Children,Boarding Out Fees,
Peterborough City Council,People & Communities,Access to Resources & Specialist Commissioning,Schools,27/03/2020,8000164327,4526.93,Revenue,Futures For Children,Boarding Out Fees,
Peterborough City Council,People & Communities,Access to Resources & Specialist Commissioning,Schools,25/03/2020,8000164327,764.40,Revenue,Swiis Foster Care Ltd,Boarding Out Fees,
Peterborough City Council,People & Communities,Access to Resources & Specialist Commissioning,Schools,25/03/2020,8000164327,764.40,Revenue,Swiis Foster Care Ltd,Boarding Out Fees,
Peterborough City Council,People & Communities,Access to Resources & Specialist Commissioning,Schools,27/03/2020,8000164440,3498.66,Revenue,Fostering UK Ltd,Boarding Out Fees,
Peterborough City Council,People & Communities,Access to Resources & Specialist Commissioning,Schools,27/03/2020,8000164440,3454.33,Revenue,Fostering UK Ltd,Boarding Out Fees,
Peterborough City Council,People & Communities,Access to Resources & Specialist Commissioning,Schools,27/03/2020,8000164440,3454.33,Revenue,Fostering UK Ltd,Boarding Out Fees,
Peterborough City Council,People & Communities,Access to Resources & Specialist Commissioning,Schools,27/03/2020,8000164440,3808.66,Revenue,Fostering UK Ltd,Boarding Out Fees,
Peterborough City Council,People & Communities,Access to Resources & Specialist Commissioning,Schools,27/03/2020,8000164440,3454.29,Revenue,Fostering UK Ltd,Boarding Out Fees,
Peterborough City Council,People & Communities,Access to Resources & Specialist Commissioning,Schools,27/03/2020,8000164440,3281.57,Revenue,Fostering UK Ltd,Boarding Out Fees,
Peterborough City Council,People & Communities,Access to Resources & Specialist Commissioning,Schools,27/03/2020,8000164440,509.33,Revenue,Mirrin Homes Limited,Boarding Out Fees,
Peterborough City Council,People & Communities,Access to Resources & Specialist Commissioning,Schools,27/03/2020,8000164440,3816.10,Revenue,Nexus Fostering Ltd,Boarding Out Fees,
Peterborough City Council,People & Communities,Access to Resources & Specialist Commissioning,Schools,27/03/2020,8000164440,3816.10,Revenue,Nexus Fostering Ltd,Boarding Out Fees,
Peterborough City Council,People & Communities,Access to Resources & Specialist Commissioning,Schools,27/03/2020,8000164440,3816.10,Revenue,Nexus Fostering Ltd,Boarding Out Fees,
Peterborough City Council,People & Communities,Access to Resources & Specialist Commissioning,Schools,27/03/2020,8000164440,3625.45,Revenue,Nexus Fostering Ltd,Boarding Out Fees,
Peterborough City Council,People & Communities,Access to Resources & Specialist Commissioning,Schools,27/03/2020,8000164440,3816.10,Revenue,Nexus Fostering Ltd,Boarding Out Fees,
Peterborough City Council,People & Communities,Access to Resources & Specialist Commissioning,Schools,27/03/2020,8000164440,3625.45,Revenue,Nexus Fostering Ltd,Boarding Out Fees,
Peterborough City Council,People & Communities,Access to Resources & Specialist Commissioning,Schools,27/03/2020,8000164440,6487.68,Revenue,Nexus Fostering Ltd,Boarding Out Fees,
Peterborough City Council,People & Communities,Access to Resources & Specialist Commissioning,Schools,27/03/2020,8000164440,777.86,Revenue,PCH Integration Services Ltd,Boarding Out Fees,
Peterborough City Council,People & Communities,Access to Resources & Specialist Commissioning,Schools,27/03/2020,8000164440,764.40,Revenue,Swiis Foster Care Ltd,Boarding Out Fees,
Peterborough City Council,People & Communities,Access to Resources & Specialist Commissioning,Schools,27/03/2020,8000164440,764.40,Revenue,Swiis Foster Care Ltd,Boarding Out Fees,
Peterborough City Council,People & Communities,Access to Resources & Specialist Commissioning,Schools,27/03/2020,8000164440,14500.00,Revenue,Unique Care Homes Support Limited,Boarding Out Fees,
Peterborough City Council,People & Communities,Access to Resources & Specialist Commissioning,Schools,27/03/2020,8000164479,2192.14,Revenue,PCH Integration Services Ltd,Boarding Out Fees,
Peterborough City Council,People & Communities,Access to Resources & Specialist Commissioning,Schools,27/03/2020,8000164479,2192.14,Revenue,PCH Integration Services Ltd,Boarding Out Fees,
Peterborough City Council,People & Communities,Access to Resources & Specialist Commissioning,Schools,27/03/2020,8000164479,2192.14,Revenue,PCH Integration Services Ltd,Boarding Out Fees,
Peterborough City Council,People & Communities,Access to Resources & Specialist Commissioning,Schools,27/03/2020,8000164479,2192.14,Revenue,PCH Integration Services Ltd,Boarding Out Fees,
Peterborough City Council,People & Communities,Access to Resources & Specialist Commissioning,Schools,27/03/2020,8000164479,1513.73,Revenue,PCH Integration Services Ltd,Boarding Out Fees,
Peterborough City Council,People & Communities,Access to Resources & Specialist Commissioning,Schools,27/03/2020,8000164479,1513.73,Revenue,PCH Integration Services Ltd,Boarding Out Fees,
Peterborough City Council,People & Communities,Access to Resources & Specialist Commissioning,Schools,27/03/2020,8000164479,2192.14,Revenue,PCH Integration Services Ltd,Boarding Out Fees,
Peterborough City Council,People & Communities,Access to Resources & Specialist Commissioning,Schools,27/03/2020,8000164479,2192.14,Revenue,PCH Integration Services Ltd,Boarding Out Fees,
Peterborough City Council,People & Communities,Access to Resources & Specialist Commissioning,Schools,27/03/2020,8000164479,1513.73,Revenue,PCH Integration Services Ltd,Boarding Out Fees,
Peterborough City Council,People & Communities,Access to Resources & Specialist Commissioning,Schools,27/03/2020,8000164479,2192.14,Revenue,PCH Integration Services Ltd,Boarding Out Fees,
Peterborough City Council,People & Communities,Access to Resources & Specialist Commissioning,Schools,27/03/2020,8000164479,2192.14,Revenue,PCH Integration Services Ltd,Boarding Out Fees,
Peterborough City Council,People & Communities,Access to Resources & Specialist Commissioning,Schools,27/03/2020,8000164479,2194.36,Revenue,PCH Integration Services Ltd,Boarding Out Fees,
Peterborough City Council,People & Communities,Access to Resources & Specialist Commissioning,Schools,27/03/2020,8000164479,2192.14,Revenue,PCH Integration Services Ltd,Boarding Out Fees,
Peterborough City Council,People & Communities,Access to Resources & Specialist Commissioning,Schools,27/03/2020,8000164479,2192.14,Revenue,PCH Integration Services Ltd,Boarding Out Fees,
Peterborough City Council,People & Communities,Access to Resources & Specialist Commissioning,Schools,27/03/2020,8000164479,2192.14,Revenue,PCH Integration Services Ltd,Boarding Out Fees,
Peterborough City Council,People & Communities,Access to Resources & Specialist Commissioning,Schools,27/03/2020,8000164479,1501.33,Revenue,PCH Integration Services Ltd,Boarding Out Fees,
Peterborough City Council,People & Communities,Access to Resources & Specialist Commissioning,Schools,27/03/2020,8000164479,1501.33,Revenue,PCH Integration Services Ltd,Boarding Out Fees,
Peterborough City Council,People & Communities,Access to Resources & Specialist Commissioning,Schools,27/03/2020,8000164479,1501.33,Revenue,PCH Integration Services Ltd,Boarding Out Fees,
Peterborough City Council,Corporate,Corporate,Non Revenue,04/03/2020,30257553,23993.76,Capital,Peterborough Limited,Building And Site Works,
Peterborough City Council,Corporate,Corporate,Non Revenue,06/03/2020,30264707,1400.00,Capital,M J Greaves,Building And Site Works,
Peterborough City Council,Corporate,Corporate,Non Revenue,06/03/2020,30264708,700.00,Capital,M J Greaves,Building And Site Works,
Peterborough City Council,Corporate,Corporate,Non Revenue,06/03/2020,30264709,600.00,Capital,M J Greaves,Building And Site Works,
Peterborough City Council,Corporate,Corporate,Non Revenue,06/03/2020,30264710,1200.00,Capital,M J Greaves,Building And Site Works,
Peterborough City Council,Corporate,Corporate,Non Revenue,06/03/2020,30264711,1000.00,Capital,M J Greaves,Building And Site Works,
Peterborough City Council,Corporate,Corporate,Non Revenue,06/03/2020,30264712,900.00,Capital,M J Greaves,Building And Site Works,
Peterborough City Council,Corporate,Corporate,Non Revenue,06/03/2020,30264714,600.00,Capital,M J Greaves,Building And Site Works,
Peterborough City Council,Corporate,Corporate,Non Revenue,06/03/2020,30264717,890.00,Capital,M J Greaves,Building And Site Works,
Peterborough City Council,Corporate,Corporate,Non Revenue,06/03/2020,30264718,2900.00,Capital,M J Greaves,Building And Site Works,
Peterborough City Council,Corporate,Corporate,Non Revenue,06/03/2020,30264720,2340.00,Capital,M J Greaves,Building And Site Works,
Peterborough City Council,Corporate,Corporate,Non Revenue,06/03/2020,30264721,3800.00,Capital,M J Greaves,Building And Site Works,
Peterborough City Council,Corporate,Corporate,Non Revenue,06/03/2020,30264724,2800.00,Capital,M J Greaves,Building And Site Works,
Peterborough City Council,Corporate,Corporate,Non Revenue,06/03/2020,30264726,2060.00,Capital,M J Greaves,Building And Site Works,
Peterborough City Council,Corporate,Corporate,Non Revenue,06/03/2020,30264728,1450.00,Capital,M J Greaves,Building And Site Works,
Peterborough City Council,Corporate,Corporate,Non Revenue,06/03/2020,30264730,2350.00,Capital,M J Greaves,Building And Site Works,
Peterborough City Council,Corporate,Corporate,Non Revenue,09/03/2020,30264732,1750.00,Capital,M J Greaves,Building And Site Works,
Peterborough City Council,Corporate,Corporate,Non Revenue,11/03/2020,30265553,37000.00,Capital,Display Energy Solutions Ltd,Building And Site Works,
Peterborough City Council,Corporate,Corporate,Non Revenue,06/03/2020,30265763,1500.00,Capital,M J Greaves,Building And Site Works,
Peterborough City Council,Corporate,Corporate,Non Revenue,13/03/2020,30265766,3490.00,Capital,M J Greaves,Building And Site Works,
Peterborough City Council,Corporate,Corporate,Non Revenue,04/03/2020,30265781,13864.00,Capital,Peterborough Limited,Building And Site Works,
Peterborough City Council,Corporate,Corporate,Non Revenue,04/03/2020,30265790,15000.00,Capital,Peterborough Limited,Building And Site Works,
Peterborough City Council,Corporate,Corporate,Non Revenue,16/03/2020,30265796,34900.00,Capital,Peterborough Limited,Building And Site Works,
Peterborough City Council,Corporate,Corporate,Non Revenue,11/03/2020,30266591,348348.33,Capital,B & H Services Group Ltd,Building And Site Works,
Peterborough City Council,Corporate,Corporate,Non Revenue,16/03/2020,30266903,13780.00,Capital,Matro Ltd,Building And Site Works,
Peterborough City Council,Corporate,Corporate,Non Revenue,25/03/2020,30266987,12481.27,Capital,Dynniq UK Ltd,Building And Site Works,
Peterborough City Council,Corporate,Corporate,Non Revenue,11/03/2020,30267089,20404.95,Capital,Garfield Builders Ltd,Building And Site Works,
Peterborough City Council,Corporate,Corporate,Non Revenue,11/03/2020,30267092,25000.00,Capital,Garfield Builders Ltd,Building And Site Works,
Peterborough City Council,Corporate,Corporate,Non Revenue,25/03/2020,30267165,644.00,Capital,NPS Peterborough Ltd,Building And Site Works,
Peterborough City Council,Corporate,Corporate,Non Revenue,25/03/2020,30267166,2006.00,Capital,NPS Peterborough Ltd,Building And Site Works,
Peterborough City Council,Corporate,Corporate,Non Revenue,25/03/2020,30267167,4037.50,Capital,NPS Peterborough Ltd,Building And Site Works,
Peterborough City Council,Corporate,Corporate,Non Revenue,25/03/2020,30267168,8965.00,Capital,NPS Peterborough Ltd,Building And Site Works,
Peterborough City Council,Corporate,Corporate,Non Revenue,25/03/2020,30267170,1500.00,Capital,NPS Peterborough Ltd,Building And Site Works,
Peterborough City Council,Corporate,Corporate,Non Revenue,25/03/2020,30267171,2500.00,Capital,NPS Peterborough Ltd,Building And Site Works,
Peterborough City Council,Corporate,Corporate,Non Revenue,25/03/2020,30267198,1870.90,Capital,NPS Peterborough Ltd,Building And Site Works,
Peterborough City Council,Corporate,Corporate,Non Revenue,25/03/2020,30267201,24000.00,Capital,NPS Peterborough Ltd,Building And Site Works,
Peterborough City Council,Corporate,Corporate,Non Revenue,25/03/2020,30267235,564.92,Capital,NPS Peterborough Ltd,Building And Site Works,
Peterborough City Council,Corporate,Corporate,Non Revenue,20/03/2020,30267261,4105.00,Capital,CMS Accommodating People Ltd,Building And Site Works,
Peterborough City Council,Corporate,Corporate,Non Revenue,20/03/2020,30267262,4983.34,Capital,CMS Accommodating People Ltd,Building And Site Works,
Peterborough City Council,Corporate,Corporate,Non Revenue,06/03/2020,30267542,1089.00,Capital,Bryan Cave Leighton Paisner LLP,Building And Site Works,
Peterborough City Council,Corporate,Corporate,Non Revenue,13/03/2020,30267739,10250.00,Capital,Vivacity Culture and Leisure,Building And Site Works,
Peterborough City Council,Corporate,Corporate,Non Revenue,25/03/2020,30267822,2850.00,Capital,Rider Levett Bucknall UK Ltd,Building And Site Works,
Peterborough City Council,Corporate,Corporate,Non Revenue,25/03/2020,30267824,16575.00,Capital,Rider Levett Bucknall UK Ltd,Building And Site Works,
Peterborough City Council,Corporate,Corporate,Non Revenue,27/03/2020,30267842,1491.42,Capital,Elliott Group Limited,Building And Site Works,
Peterborough City Council,Corporate,Corporate,Non Revenue,16/03/2020,30267984,643477.43,Capital,Interserve Construction Limited,Building And Site Works,
Peterborough City Council,Corporate,Corporate,Non Revenue,18/03/2020,30268036,7623.20,Capital,Peterborough Limited,Building And Site Works,
Peterborough City Council,Corporate,Corporate,Non Revenue,16/03/2020,30268039,8881.28,Capital,Peterborough Limited,Building And Site Works,
Peterborough City Council,Corporate,Corporate,Non Revenue,11/03/2020,30268043,5000.00,Capital,NPS Peterborough Ltd,Building And Site Works,
Peterborough City Council,Corporate,Corporate,Non Revenue,13/03/2020,30268044,1990.00,Capital,NPS Peterborough Ltd,Building And Site Works,
Peterborough City Council,Corporate,Corporate,Non Revenue,27/03/2020,30268254,937.50,Capital,Sibcas Ltd,Building And Site Works,
Peterborough City Council,Corporate,Corporate,Non Revenue,25/03/2020,30269539,895439.85,Capital,Cadent Gas Limited,Building And Site Works,
Peterborough City Council,Corporate,Corporate,Non Revenue,20/03/2020,30269645,3639.00,Capital,Allworks Home Improvements Ltd,Building And Site Works,
Peterborough City Council,Corporate,Corporate,Non Revenue,30/03/2020,30269812,7678.50,Capital,Peterborough Limited,Building And Site Works,
Peterborough City Council,Corporate,Corporate,Non Revenue,27/03/2020,30270312,2491.67,Capital,CMS Accommodating People Ltd,Building And Site Works,
Peterborough City Council,Corporate,Corporate,Non Revenue,30/03/2020,30270361,12887.85,Capital,R G Carter Cambridge Ltd,Building And Site Works,
Peterborough City Council,People & Communities,Finance,Services,25/03/2020,30266798,24985.75,Revenue,British Red Cross,Carer Support Costs,
Peterborough City Council,Resources,Bereavement Service,Services,25/03/2020,30267707,44.85,Revenue,Jade Security Services Limited,Cash Collection Services,
Peterborough City Council,People & Communities,Parking Services,Services,25/03/2020,30267707,1096.00,Revenue,Jade Security Services Limited,Cash Collection Services,
Peterborough City Council,People & Communities,Parking Services,Services,25/03/2020,30267707,1868.68,Revenue,Jade Security Services Limited,Cash Collection Services,
Peterborough City Council,Resources,PSSP Retained Services,Services,25/03/2020,30267707,1016.60,Revenue,Jade Security Services Limited,Cash Collection Services,
Peterborough City Council,Resources,Registration Service,Services,25/03/2020,30267707,59.80,Revenue,Jade Security Services Limited,Cash Collection Services,
Peterborough City Council,Place & Economy,Waste & Operational Svs Mgmt,Services,25/03/2020,30267707,16.44,Revenue,Jade Security Services Limited,Cash Collection Services,
Peterborough City Council,People & Communities,Community Capacity,Services,25/03/2020,30267707,59.80,Revenue,Jade Security Services Limited,Cash Collection Services,
Peterborough City Council,People & Communities,Children�s Social Care,Services,25/03/2020,30267707,74.75,Revenue,Jade Security Services Limited,Cash Collection Services,
Peterborough City Council,People & Communities,"Revenues & Payments, Assessors & Care Placement Teams",Services,25/03/2020,30267707,179.40,Revenue,Jade Security Services Limited,Cash Collection Services,
Peterborough City Council,People & Communities,Day opportunities - Older People,Catering,06/03/2020,30267924,773.30,Revenue,The Cresset (Peterborough) Ltd,Catering Provisions,
Peterborough City Council,People & Communities,Other Enforcement,Services,11/03/2020,30265481,3712.90,Revenue,Quadrant Security Group Ltd,Cctv,
Peterborough City Council,People & Communities,Home Services Delivery Model,Customer and client receipts - Fees & Charges,04/03/2020,30266787,-566.96,Revenue,Maplethorpe & Mooney Ltd,Home Care,
Peterborough City Council,People & Communities,Home Services Delivery Model,Customer and client receipts - Fees & Charges,11/03/2020,30268194,-258.00,Revenue,Casbon Building Services,Home Care,
Peterborough City Council,People & Communities,Home Services Delivery Model,Customer and client receipts - Fees & Charges,20/03/2020,30268584,-318.87,Revenue,Maplethorpe & Mooney Ltd,Home Care,
Peterborough City Council,People & Communities,Home Services Delivery Model,Customer and client receipts - Fees & Charges,13/03/2020,30268588,-781.35,Revenue,Gaswise Services Ltd,Home Care,
Peterborough City Council,People & Communities,Home Services Delivery Model,Customer and client receipts - Fees & Charges,18/03/2020,30268866,-431.13,Revenue,Maplethorpe & Mooney Ltd,Home Care,
Peterborough City Council,People & Communities,Home Services Delivery Model,Customer and client receipts - Fees & Charges,18/03/2020,30268873,-390.00,Revenue,M J Greaves,Home Care,
Peterborough City Council,People & Communities,Home Services Delivery Model,Customer and client receipts - Fees & Charges,18/03/2020,30268874,-1080.00,Revenue,M J Greaves,Home Care,
Peterborough City Council,People & Communities,Home Services Delivery Model,Customer and client receipts - Fees & Charges,18/03/2020,30269059,-242.84,Revenue,Rawheat Heating & Plumbing Eng.,Home Care,
Peterborough City Council,People & Communities,Home Services Delivery Model,Customer and client receipts - Fees & Charges,18/03/2020,30269060,-1062.77,Revenue,Sovereign Property Services Ltd,Home Care,
Peterborough City Council,People & Communities,Home Services Delivery Model,Customer and client receipts - Fees & Charges,18/03/2020,30269062,-342.43,Revenue,Maplethorpe & Mooney Ltd,Home Care,
Peterborough City Council,People & Communities,Home Services Delivery Model,Customer and client receipts - Fees & Charges,18/03/2020,30269064,-2943.09,Revenue,Lindum Group Ltd,Home Care,
Peterborough City Council,People & Communities,Home Services Delivery Model,Customer and client receipts - Fees & Charges,18/03/2020,30269066,-1143.45,Revenue,M J Greaves,Home Care,
Peterborough City Council,People & Communities,Home Services Delivery Model,Customer and client receipts - Fees & Charges,25/03/2020,30269625,-523.31,Revenue,Maplethorpe & Mooney Ltd,Home Care,
Peterborough City Council,People & Communities,Home Services Delivery Model,Customer and client receipts - Fees & Charges,25/03/2020,30270090,-3110.84,Revenue,Sovereign Property Services Ltd,Home Care,
Peterborough City Council,People & Communities,Home Services Delivery Model,Customer and client receipts - Fees & Charges,25/03/2020,30270091,-1089.99,Revenue,Sovereign Property Services Ltd,Home Care,
Peterborough City Council,People & Communities,Home Services Delivery Model,Customer and client receipts - Fees & Charges,25/03/2020,30270094,-657.45,Revenue,M J Greaves,Home Care,
Peterborough City Council,People & Communities,Home Services Delivery Model,Customer and client receipts - Fees & Charges,25/03/2020,30270120,-1366.04,Revenue,Sovereign Property Services Ltd,Home Care,
Peterborough City Council,People & Communities,Early Help ASC/CSC,Services,18/03/2020,30266313,550.00,Revenue,BDP Social Care Ltd,Childcare,
Peterborough City Council,Chief Executives,HR,Services,11/03/2020,30267466,7198.95,Revenue,Edenred,Childcare,
Peterborough City Council,Chief Executives,HR,Services,11/03/2020,30267466,395.94,Revenue,Edenred,Childcare,
Peterborough City Council,Corporate,Corporate,Non Revenue,11/03/2020,30268452,6279.00,Balance Sheet,Her Majesty�s Revenue and Customs,Taxes,
Peterborough City Council,Governance,Democratic Services,Services,30/03/2020,30267615,1349.00,Revenue,Link Support Services (UK) Ltd,Civic Events,
Peterborough City Council,People & Communities,Clare Lodge,Cleaning & Domestic Supplies,18/03/2020,30266274,788.87,Revenue,Bunzl UK Ltd t/a Industrial Supplies,Cleaning,
Peterborough City Council,People & Communities,Child Health,Cleaning & Domestic Supplies,11/03/2020,30266609,521.14,Revenue,Ken Booth & Co Ltd,Cleaning,
Peterborough City Council,People & Communities,Home Services Delivery Model,Members Allowances,25/03/2020,30266916,3339.03,Revenue,Serco Ltd,Computer Hardware,
Peterborough City Council,Customer & Digital Services,ICT,Members Allowances,20/03/2020,30266339,2197.95,Revenue,Serco Ltd,Computer Hardware,
Peterborough City Council,Corporate,Corporate,Non Revenue,25/03/2020,30266915,807.96,Capital,Serco Ltd,Computer Hardware,
Peterborough City Council,Customer & Digital Services,ICT,Members Allowances,25/03/2020,30266940,522.32,Revenue,Serco Ltd,Computer Hardware,
Peterborough City Council,Customer & Digital Services,ICT,Members Allowances,25/03/2020,30266943,516.97,Revenue,Serco Ltd,Computer Hardware,
Peterborough City Council,Place & Economy,Westcombe Engineering,Members Allowances,25/03/2020,30266947,1453.88,Revenue,Serco Ltd,Computer Hardware,
Peterborough City Council,Corporate,Corporate,Non Revenue,09/03/2020,30264687,3600.00,Capital,Quicksilva Limited,Computer Software,
Peterborough City Council,Customer & Digital Services,ICT,Members Allowances,04/03/2020,30264791,7000.00,Revenue,Cambridgeshire County Council,Computer Software,
Peterborough City Council,Customer & Digital Services,ICT,Members Allowances,11/03/2020,30265068,2064.00,Revenue,Idox Software Ltd,Computer Software,
Peterborough City Council,Customer & Digital Services,ICT,Members Allowances,11/03/2020,30266560,7314.31,Revenue,Capita Business Services Ltd,Computer Software,
Peterborough City Council,Customer & Digital Services,ICT,Members Allowances,25/03/2020,30266682,9950.00,Revenue,Housing Partners Ltd,Computer Software,
Peterborough City Council,Customer & Digital Services,ICT,Members Allowances,25/03/2020,30266925,682.02,Revenue,Serco Ltd,Computer Software,
Peterborough City Council,Customer & Digital Services,ICT,Members Allowances,25/03/2020,30266935,2042.32,Revenue,Serco Ltd,Computer Software,
Peterborough City Council,Customer & Digital Services,ICT,Members Allowances,25/03/2020,30266938,72575.26,Revenue,Serco Ltd,Computer Software,
Peterborough City Council,Customer & Digital Services,ICT,Members Allowances,25/03/2020,30266943,2349.11,Revenue,Serco Ltd,Computer Software,
Peterborough City Council,Customer & Digital Services,ICT,Members Allowances,25/03/2020,30266946,19512.18,Revenue,Serco Ltd,Computer Software,
Peterborough City Council,Customer & Digital Services,ICT,Members Allowances,25/03/2020,30266948,40505.83,Revenue,Serco Ltd,Computer Software,
Peterborough City Council,Customer & Digital Services,ICT,Members Allowances,25/03/2020,30266949,113965.30,Revenue,Serco Ltd,Computer Software,
Peterborough City Council,Customer & Digital Services,ICT,Members Allowances,25/03/2020,30266950,4144.22,Revenue,Serco Ltd,Computer Software,
Peterborough City Council,People & Communities,HTS & CSC Transport,Members Allowances,09/03/2020,30267102,7507.09,Revenue,Trapeze Group (UK) Ltd,Computer Software,
Peterborough City Council,Customer & Digital Services,ICT,Members Allowances,25/03/2020,30267153,23099.00,Revenue,Housing Partners Ltd,Computer Software,
Peterborough City Council,Place & Economy,Network and Traffic Management,Members Allowances,25/03/2020,30267158,2558.40,Revenue,Ian Routledge Consultancy Limited,Computer Software,
Peterborough City Council,Customer & Digital Services,ICT,Members Allowances,27/03/2020,30267301,5995.00,Revenue,Intec For Business Ltd,Computer Software,
Peterborough City Council,Customer & Digital Services,ICT,Members Allowances,04/03/2020,30267304,41697.81,Revenue,Amazon Web Services Inc.,Computer Software,
Peterborough City Council,Place & Economy,Transport & Infrastructure Commissioning,Members Allowances,06/03/2020,30267433,1145.00,Revenue,ITSO Ltd,Computer Software,
Peterborough City Council,Customer & Digital Services,ICT,Members Allowances,05/03/2020,30267646,-23361.50,Revenue,Housing Partners Ltd,Computer Software,
Peterborough City Council,Place & Economy,"Markets, Tourism & Events",Services,07/12/2017,30159293,-17024.09,Revenue,Ashtead Plant Hire Co Ltd,Conferences,
Peterborough City Council,People & Communities,Special Educational Needs / Inclusion,Services,04/03/2020,30264410,1082.00,Revenue,Redacted Personal Data,Conferences,
Peterborough City Council,People & Communities,School Standards & Effectiveness,Services,04/03/2020,30264663,850.00,Revenue,Neil Griffiths Consultancy Ltd,Conferences,
Peterborough City Council,People & Communities,School Standards & Effectiveness,Services,04/03/2020,30264663,32.30,Revenue,Neil Griffiths Consultancy Ltd,Conferences,
Peterborough City Council,People & Communities,Special Educational Needs / Inclusion,Services,09/03/2020,30264753,4515.00,Revenue,Humanware Europe Ltd,Conferences,
Peterborough City Council,People & Communities,Special Educational Needs / Inclusion,Services,04/03/2020,30265488,3180.00,Revenue,Permanent Futures Ltd,Conferences,
Peterborough City Council,People & Communities,Special Educational Needs / Inclusion,Services,16/03/2020,30266260,1100.00,Revenue,Permanent Futures Ltd,Conferences,
Peterborough City Council,People & Communities,Special Educational Needs / Inclusion,Services,18/03/2020,30266600,4400.00,Revenue,Permanent Futures Ltd,Conferences,
Peterborough City Council,People & Communities,Special Educational Needs / Inclusion,Services,25/03/2020,30266799,524.80,Revenue,Ewing Foundation,Conferences,
Peterborough City Council,People & Communities,Special Educational Needs / Inclusion,Services,06/03/2020,30266844,1587.32,Revenue,Connevans Ltd,Conferences,
Peterborough City Council,People & Communities,Special Educational Needs / Inclusion,Services,25/03/2020,30266861,522.00,Revenue,Ewing Foundation,Conferences,
Peterborough City Council,People & Communities,Special Educational Needs / Inclusion,Services,02/03/2020,30266866,2112.00,Revenue,Gillan Legal Solutions Ltd,Conferences,
Peterborough City Council,People & Communities,Special Educational Needs / Inclusion,Services,02/03/2020,30266904,2640.00,Revenue,Gillan Legal Solutions Ltd,Conferences,
Peterborough City Council,People & Communities,Special Educational Needs / Inclusion,Services,25/03/2020,30268097,1100.00,Revenue,Permanent Futures Ltd,Conferences,
Peterborough City Council,People & Communities,Special Educational Needs / Inclusion,Services,25/03/2020,30268262,6201.60,Revenue,Lind Associates,Conferences,
Peterborough City Council,Place & Economy,Natural & Historic Environment,Services,04/03/2020,30266599,500.00,Revenue,Redacted Personal Data,Conservation,
Peterborough City Council,Place & Economy,Environment Capital,"Tools, Equipment, Furniture & Materials",23/03/2020,30267817,3170.23,Revenue,B & H Services Group Ltd,Materials,
Peterborough City Council,Place & Economy,Highway & Drainage Control,Direct Transport Costs,25/03/2020,30267901,900.00,Revenue,Waterman Aspen,Consultants Fees,
Peterborough City Council,Place & Economy,Highway & Drainage Control,Direct Transport Costs,25/03/2020,30267903,4710.38,Revenue,Waterman Aspen,Consultants Fees,
Peterborough City Council,Corporate,Corporate,Non Revenue,11/03/2020,30255782,-1425.00,Capital,Servelec Social Care Ltd,Consultants Fees,
Peterborough City Council,Resources,Finance,Services,02/03/2020,30263748,14760.00,Revenue,Tamar Communications Ltd,Consultants Fees,
Peterborough City Council,Resources,Strategic Projects,Services,06/03/2020,30264474,13500.00,Revenue,Greenwoods Solicitors LLP,Consultants Fees,
Peterborough City Council,Corporate,Corporate,Non Revenue,11/03/2020,30264682,3500.00,Capital,Servelec Social Care Ltd,Consultants Fees,
Peterborough City Council,Customer & Digital Services,ICT,Services,05/03/2020,30264946,23361.50,Revenue,Housing Partners Ltd,Consultants Fees,
Peterborough City Council,Corporate,Corporate,Non Revenue,16/03/2020,30265738,1350.00,Capital,Servelec Social Care Ltd,Consultants Fees,
Peterborough City Council,Corporate,Corporate,Non Revenue,18/03/2020,30265779,3800.00,Capital,Servelec Social Care Ltd,Consultants Fees,
Peterborough City Council,Corporate,Corporate,Non Revenue,16/03/2020,30266011,10725.00,Capital,Permanent Futures Ltd,Consultants Fees,
Peterborough City Council,Corporate,Corporate,Non Revenue,20/03/2020,30266337,2736.50,Capital,Serco Ltd,Consultants Fees,
Peterborough City Council,Corporate,Corporate,Non Revenue,20/03/2020,30266338,895.00,Capital,Serco Ltd,Consultants Fees,
Peterborough City Council,Corporate,Corporate,Non Revenue,20/03/2020,30266340,8799.99,Capital,Serco Ltd,Consultants Fees,
Peterborough City Council,Customer & Digital Services,ICT,Services,23/03/2020,30266488,500.00,Revenue,Capita Business Services Ltd,Consultants Fees,
Peterborough City Council,People & Communities,Adult & Children Safeguarding Board,Services,23/03/2020,30266545,2875.00,Revenue,RJW Associates Ltd,Consultants Fees,
Peterborough City Council,Corporate,Corporate,Non Revenue,25/03/2020,30266588,3750.00,Capital,Eddisons Commercial Ltd t/a Barker Storey Matthews,Consultants Fees,
Peterborough City Council,Corporate,Corporate,Non Revenue,25/03/2020,30266832,502.04,Capital,Serco Ltd,Consultants Fees,
Peterborough City Council,Place & Economy,"Markets, Tourism & Events",Services,25/03/2020,30266908,614.00,Revenue,Serco Ltd,Consultants Fees,
Peterborough City Council,Customer & Digital Services,ICT,Services,25/03/2020,30266945,968.94,Revenue,Serco Ltd,Consultants Fees,
Peterborough City Council,Customer & Digital Services,ICT,Services,24/06/2020,30267126,1195.00,Revenue,Ideagen Gael Ltd,Consultants Fees,
Peterborough City Council,Resources,Strategic Projects,Services,25/03/2020,30267197,5454.60,Revenue,NPS Peterborough Ltd,Consultants Fees,
Peterborough City Council,Corporate,Corporate,Non Revenue,25/03/2020,30267199,1636.40,Capital,NPS Peterborough Ltd,Consultants Fees,
Peterborough City Council,Corporate,Corporate,Non Revenue,25/03/2020,30267200,1662.48,Capital,NPS Peterborough Ltd,Consultants Fees,
Peterborough City Council,Corporate,Corporate,Non Revenue,25/03/2020,30267232,5000.00,Capital,NPS Peterborough Ltd,Consultants Fees,
Peterborough City Council,Resources,Peterborough Serco Strategic Partnership,Services,04/03/2020,30267270,730.00,Revenue,Inform CPI Ltd,Consultants Fees,
Peterborough City Council,Customer & Digital Services,ICT,Services,06/03/2020,30267429,1195.00,Revenue,Ideagen Gael Ltd,Consultants Fees,
Peterborough City Council,Chief Executives,HR,Services,25/03/2020,30267551,698.60,Revenue,Heales Health Services Ltd,Consultants Fees,
Peterborough City Council,Corporate,Corporate,Non Revenue,25/03/2020,30267564,1200.00,Capital,Eddisons Commercial Ltd t/a Barker Storey Matthews,Consultants Fees,
Peterborough City Council,Customer & Digital Services,ICT,Services,25/03/2020,30267635,8480.00,Revenue,NPS Peterborough Ltd,Consultants Fees,
Peterborough City Council,Place & Economy,Director of Housing,Services,06/03/2020,30267643,18375.00,Revenue,Campbell Tickell Ltd,Consultants Fees,
Peterborough City Council,Corporate,Corporate,Non Revenue,04/03/2020,30267667,15100.00,Capital,Permanent Futures Ltd,Consultants Fees,
Peterborough City Council,Corporate,Corporate,Non Revenue,04/03/2020,30267669,13340.00,Capital,Permanent Futures Ltd,Consultants Fees,
Peterborough City Council,Place & Economy,Growth HoS,Services,25/03/2020,30267738,4900.00,Revenue,Athene Communications,Consultants Fees,
Peterborough City Council,Corporate,Corporate,Non Revenue,25/03/2020,30267816,11600.00,Capital,Permanent Futures Ltd,Consultants Fees,
Peterborough City Council,Corporate,Corporate,Non Revenue,11/03/2020,30268125,1814.88,Capital,Reed Specialist Recruitment Limited,Consultants Fees,
Peterborough City Council,Corporate,Corporate,Non Revenue,25/03/2020,30268433,2080.20,Capital,Peterborough Limited,Consultants Fees,
Peterborough City Council,Resources,Finance,Services,25/03/2020,30268854,104213.88,Revenue,Grant Thornton UK LLP,Consultants Fees,
Peterborough City Council,Corporate,Corporate,Non Revenue,30/03/2020,30270358,2268.60,Capital,Reed Specialist Recruitment Limited,Consultants Fees,
Peterborough City Council,Resources,Bereavement Service,Services,04/03/2020,30266284,1700.77,Revenue,Anglia Co-operative Funerals,Contract Funerals,
Peterborough City Council,Resources,Bereavement Service,Services,04/03/2020,30266285,1878.91,Revenue,Anglia Co-operative Funerals,Contract Funerals,
Peterborough City Council,Resources,Bereavement Service,Services,11/03/2020,30266287,1100.00,Revenue,Anglia Co-operative Funerals,Contract Funerals,
Peterborough City Council,Resources,Bereavement Service,Services,11/03/2020,30266288,1804.34,Revenue,Anglia Co-operative Funerals,Contract Funerals,
Peterborough City Council,Resources,Bereavement Service,Services,18/03/2020,30268232,1672.00,Revenue,Anglia Co-operative Funerals,Contract Funerals,
Peterborough City Council,Resources,Bereavement Service,Services,25/03/2020,30268233,1816.00,Revenue,Anglia Co-operative Funerals,Contract Funerals,
Peterborough City Council,People & Communities,Child Health,Services,11/03/2020,30242960,1308.84,Revenue,Action For Children Services Ltd,Contract Services,
Peterborough City Council,People & Communities,Child Health,Services,11/03/2020,30242961,755.10,Revenue,Action For Children Services Ltd,Contract Services,
Peterborough City Council,People & Communities,Child Health,Services,11/03/2020,30242962,1912.92,Revenue,Action For Children Services Ltd,Contract Services,
Peterborough City Council,People & Communities,Child Health,Services,11/03/2020,30243069,629.25,Revenue,Action For Children Services Ltd,Contract Services,
Peterborough City Council,People & Communities,Child Health,Services,25/03/2020,30259977,1690.14,Revenue,Action For Children Services Ltd,Contract Services,
Peterborough City Council,People & Communities,Child Health,Services,25/03/2020,30266492,629.25,Revenue,Action For Children Services Ltd,Contract Services,
Peterborough City Council,People & Communities,Child Health,Services,25/03/2020,30266542,755.10,Revenue,Action For Children Services Ltd,Contract Services,
Peterborough City Council,People & Communities,Child Health,Services,09/03/2020,30267091,2479.23,Revenue,Action For Children Services Ltd,Contract Services,
Peterborough City Council,People & Communities,PFI,Services,25/03/2020,30267249,743086.06,Revenue,IIC by Education (P�boro) Ltd,Contract Services,
Peterborough City Council,Resources,Peterborough Serco Strategic Partnership,Services,18/03/2020,30267627,137246.67,Revenue,Serco Ltd,Contract Services,
Peterborough City Council,People & Communities,Child Health,Services,27/03/2020,30268469,1478.73,Revenue,Action For Children Services Ltd,Contract Services,
Peterborough City Council,People & Communities,Child Health,Services,27/03/2020,30269430,1308.84,Revenue,Action For Children Services Ltd,Contract Services,
Peterborough City Council,People & Communities,Home Services Delivery Model,Services,04/03/2020,30264136,986.00,Revenue,Handyman Steve,Contractors,
Peterborough City Council,Place & Economy,Transport & Infrastructure Commissioning,Services,06/03/2020,30264729,183276.66,Revenue,Stagecoach in Peterborough,Contractors,
Peterborough City Council,Place & Economy,Network and Traffic Management,Services,11/03/2020,30265566,3953.24,Revenue,Dynniq UK Ltd,Contractors,
Peterborough City Council,Place & Economy,Network and Traffic Management,Services,11/03/2020,30265570,4214.06,Revenue,Dynniq UK Ltd,Contractors,
Peterborough City Council,Place & Economy,Transport & Infrastructure Commissioning,Services,06/03/2020,30265756,3005.38,Revenue,Stagecoach in Peterborough,Contractors,
Peterborough City Council,People & Communities,Home Services Delivery Model,Services,18/03/2020,30265904,990.25,Revenue,Handyman Steve,Contractors,
Peterborough City Council,People & Communities,Home Services Delivery Model,Services,18/03/2020,30266286,969.00,Revenue,Rawheat Heating & Plumbing Eng.,Contractors,
Peterborough City Council,Place & Economy,Transport & Infrastructure Commissioning,Services,18/03/2020,30266631,19440.00,Revenue,Telensa Limited,Contractors,
Peterborough City Council,Place & Economy,Transport & Infrastructure Commissioning,Services,20/03/2020,30266683,5404.00,Revenue,Stagecoach in Peterborough,Contractors,
Peterborough City Council,People & Communities,Home Services Delivery Model,Services,25/03/2020,30266834,799.00,Revenue,Rawheat Heating & Plumbing Eng.,Contractors,
Peterborough City Council,People & Communities,Home Services Delivery Model,Services,25/03/2020,30266967,646.00,Revenue,Rawheat Heating & Plumbing Eng.,Contractors,
Peterborough City Council,People & Communities,Home Services Delivery Model,Services,02/03/2020,30266990,646.00,Revenue,Allworks Home Improvements Ltd,Contractors,
Peterborough City Council,People & Communities,Home Services Delivery Model,Services,04/03/2020,30266991,688.50,Revenue,Allworks Home Improvements Ltd,Contractors,
Peterborough City Council,People & Communities,Home Services Delivery Model,Services,11/03/2020,30266997,748.00,Revenue,Allworks Home Improvements Ltd,Contractors,
Peterborough City Council,Place & Economy,Network and Traffic Management,Services,27/03/2020,30267067,3927.42,Revenue,Dynniq UK Ltd,Contractors,
Peterborough City Council,Place & Economy,Network and Traffic Management,Services,27/03/2020,30267068,4809.10,Revenue,Dynniq UK Ltd,Contractors,
Peterborough City Council,Place & Economy,Transport & Infrastructure Commissioning,Services,25/03/2020,30267189,12859.23,Revenue,Delaine Buses Ltd,Contractors,
Peterborough City Council,People & Communities,Finance,Services,25/03/2020,30267233,30000.00,Revenue,NPS Peterborough Ltd,Contractors,
Peterborough City Council,Place & Economy,Network and Traffic Management,Services,30/03/2020,30267308,2331.97,Revenue,Dynniq UK Ltd,Contractors,
Peterborough City Council,Resources,Office Accomodation,Services,25/03/2020,30267403,1420.38,Revenue,PHS Group Plc,Contractors,
Peterborough City Council,Resources,Office Accomodation,Services,25/03/2020,30267439,502.40,Revenue,PHS Group Plc,Contractors,
Peterborough City Council,Resources,Office Accomodation,Services,25/03/2020,30267442,543.40,Revenue,PHS Group Plc,Contractors,
Peterborough City Council,Resources,Office Accomodation,Services,25/03/2020,30267443,528.01,Revenue,PHS Group Plc,Contractors,
Peterborough City Council,Place & Economy,Transport & Infrastructure Commissioning,Services,11/03/2020,30267662,15228.08,Revenue,First Eastern Counties Buses Ltd,Contractors,
Peterborough City Council,People & Communities,Other Enforcement,Services,06/03/2020,30267747,11745.00,Revenue,L A Support Limited,Contractors,
Peterborough City Council,Place & Economy,Transport & Infrastructure Commissioning,Services,25/03/2020,30267799,527.73,Revenue,Stagecoach in Peterborough,Contractors,
Peterborough City Council,Place & Economy,Transport & Infrastructure Commissioning,Services,25/03/2020,30267800,1937.89,Revenue,Stagecoach in Peterborough,Contractors,
Peterborough City Council,Place & Economy,Transport & Infrastructure Commissioning,Services,25/03/2020,30267801,1937.89,Revenue,Stagecoach in Peterborough,Contractors,
Peterborough City Council,Place & Economy,Transport & Infrastructure Commissioning,Services,25/03/2020,30267802,1937.89,Revenue,Stagecoach in Peterborough,Contractors,
Peterborough City Council,Place & Economy,Transport & Infrastructure Commissioning,Services,25/03/2020,30267810,1937.89,Revenue,Stagecoach in Peterborough,Contractors,
Peterborough City Council,Place & Economy,Transport & Infrastructure Commissioning,Services,25/03/2020,30267811,17512.25,Revenue,Stagecoach in Peterborough,Contractors,
Peterborough City Council,Place & Economy,Transport & Infrastructure Commissioning,Services,25/03/2020,30268159,15228.00,Revenue,First Eastern Counties Buses Ltd,Contractors,
Peterborough City Council,Place & Economy,Transport & Infrastructure Commissioning,Services,25/03/2020,30269151,1633.61,Revenue,Stagecoach in Peterborough,Contractors,
Peterborough City Council,People & Communities,Home Services Delivery Model,Services,18/03/2020,30269370,544.00,Revenue,Fletton Electrics Ltd,Contractors,
Peterborough City Council,Corporate,Corporate,Non Revenue,11/03/2020,30266092,1000.00,Balance Sheet,Redacted Personal Data,Contributions,
Peterborough City Council,Corporate,Corporate,Non Revenue,11/03/2020,30266828,5000.00,Balance Sheet,John Hopkins,Contributions,
Peterborough City Council,Corporate,Corporate,Non Revenue,06/03/2020,30267674,3224.00,Balance Sheet,Berwicks Solicitors,Contributions,
Peterborough City Council,Corporate,Corporate,Non Revenue,06/03/2020,30267675,9663.75,Balance Sheet,Redacted Personal Data,Contributions,
Peterborough City Council,Corporate,Corporate,Non Revenue,06/03/2020,30267676,678.00,Balance Sheet,Department for Work and Pensions,Contributions,
Peterborough City Council,Corporate,Corporate,Non Revenue,06/03/2020,30267720,4075.00,Balance Sheet,Redacted Personal Data,Contributions,
Peterborough City Council,Corporate,Corporate,Non Revenue,06/03/2020,30267721,2733.74,Balance Sheet,Thompson Solicitors,Contributions,
Peterborough City Council,People & Communities,Independent Sector Placements,Customer and client receipts - Fees & Charges,02/03/2020,8000162579,197.86,Revenue,Redacted Personal Data,Contributions,
Peterborough City Council,People & Communities,Independent Sector Placements,Customer and client receipts - Fees & Charges,02/03/2020,8000162582,-593.58,Revenue,Redacted Personal Data,Contributions,
Peterborough City Council,People & Communities,Independent Sector Placements,Customer and client receipts - Fees & Charges,02/03/2020,8000162583,728.06,Revenue,Redacted Personal Data,Contributions,
Peterborough City Council,People & Communities,Independent Sector Placements,Customer and client receipts - Fees & Charges,02/03/2020,8000162584,-0.40,Revenue,Redacted Personal Data,Contributions,
Peterborough City Council,People & Communities,Independent Sector Placements,Customer and client receipts - Fees & Charges,02/03/2020,8000162588,833.91,Revenue,Redacted Personal Data,Contributions,
Peterborough City Council,People & Communities,Independent Sector Placements,Customer and client receipts - Fees & Charges,02/03/2020,8000162591,-886.66,Revenue,Redacted Personal Data,Contributions,
Peterborough City Council,People & Communities,Independent Sector Placements,Customer and client receipts - Fees & Charges,02/03/2020,8000162593,-185.25,Revenue,Redacted Personal Data,Contributions,
Peterborough City Council,People & Communities,Independent Sector Placements,Customer and client receipts - Fees & Charges,06/03/2020,8000162892,-402.32,Revenue,Redacted Personal Data,Contributions,
Peterborough City Council,People & Communities,Independent Sector Placements,Customer and client receipts - Fees & Charges,06/03/2020,8000162897,684.25,Revenue,Redacted Personal Data,Contributions,
Peterborough City Council,People & Communities,Independent Sector Placements,Customer and client receipts - Fees & Charges,06/03/2020,8000162901,-14.75,Revenue,Redacted Personal Data,Contributions,
Peterborough City Council,People & Communities,Independent Sector Placements,Customer and client receipts - Fees & Charges,11/03/2020,8000163007,-145.20,Revenue,Redacted Personal Data,Contributions,
Peterborough City Council,People & Communities,Independent Sector Placements,Customer and client receipts - Fees & Charges,11/03/2020,8000163008,-369.52,Revenue,Redacted Personal Data,Contributions,
Peterborough City Council,People & Communities,Independent Sector Placements,Customer and client receipts - Fees & Charges,11/03/2020,8000163010,-11.44,Revenue,Redacted Personal Data,Contributions,
Peterborough City Council,People & Communities,Independent Sector Placements,Customer and client receipts - Fees & Charges,11/03/2020,8000163012,-402.40,Revenue,Redacted Personal Data,Contributions,
Peterborough City Council,People & Communities,Independent Sector Placements,Customer and client receipts - Fees & Charges,11/03/2020,8000163015,-69.84,Revenue,Redacted Personal Data,Contributions,
Peterborough City Council,People & Communities,Independent Sector Placements,Customer and client receipts - Fees & Charges,11/03/2020,8000163016,-163.60,Revenue,Redacted Personal Data,Contributions,
Peterborough City Council,People & Communities,Independent Sector Placements,Customer and client receipts - Fees & Charges,11/03/2020,8000163018,-197.08,Revenue,Redacted Personal Data,Contributions,
Peterborough City Council,People & Communities,Independent Sector Placements,Customer and client receipts - Fees & Charges,11/03/2020,8000163019,-419.00,Revenue,Redacted Personal Data,Contributions,
Peterborough City Council,People & Communities,Independent Sector Placements,Customer and client receipts - Fees & Charges,11/03/2020,8000163024,-141.96,Revenue,Redacted Personal Data,Contributions,
Peterborough City Council,People & Communities,Independent Sector Placements,Customer and client receipts - Fees & Charges,11/03/2020,8000163029,-384.32,Revenue,Redacted Personal Data,Contributions,
Peterborough City Council,People & Communities,Independent Sector Placements,Customer and client receipts - Fees & Charges,11/03/2020,8000163030,-138.40,Revenue,Redacted Personal Data,Contributions,
Peterborough City Council,People & Communities,Independent Sector Placements,Customer and client receipts - Fees & Charges,11/03/2020,8000163031,-53.92,Revenue,Redacted Personal Data,Contributions,
Peterborough City Council,People & Communities,Independent Sector Placements,Customer and client receipts - Fees & Charges,11/03/2020,8000163033,-106.08,Revenue,Redacted Personal Data,Contributions,
Peterborough City Council,People & Communities,Independent Sector Placements,Customer and client receipts - Fees & Charges,11/03/2020,8000163035,-366.60,Revenue,Redacted Personal Data,Contributions,
Peterborough City Council,People & Communities,Independent Sector Placements,Customer and client receipts - Fees & Charges,11/03/2020,8000163036,-43.68,Revenue,Redacted Personal Data,Contributions,
Peterborough City Council,People & Communities,Independent Sector Placements,Customer and client receipts - Fees & Charges,11/03/2020,8000163043,-311.12,Revenue,Redacted Personal Data,Contributions,
Peterborough City Council,People & Communities,Independent Sector Placements,Customer and client receipts - Fees & Charges,11/03/2020,8000163048,-113.16,Revenue,Redacted Personal Data,Contributions,
Peterborough City Council,People & Communities,Independent Sector Placements,Customer and client receipts - Fees & Charges,11/03/2020,8000163050,-402.40,Revenue,Redacted Personal Data,Contributions,
Peterborough City Council,People & Communities,Independent Sector Placements,Customer and client receipts - Fees & Charges,11/03/2020,8000163052,-190.20,Revenue,Redacted Personal Data,Contributions,
Peterborough City Council,People & Communities,Independent Sector Placements,Customer and client receipts - Fees & Charges,11/03/2020,8000163053,-234.60,Revenue,Redacted Personal Data,Contributions,
Peterborough City Council,People & Communities,Independent Sector Placements,Customer and client receipts - Fees & Charges,11/03/2020,8000163055,-137.40,Revenue,Redacted Personal Data,Contributions,
Peterborough City Council,People & Communities,Independent Sector Placements,Customer and client receipts - Fees & Charges,11/03/2020,8000163057,-10.48,Revenue,Redacted Personal Data,Contributions,
Peterborough City Council,People & Communities,Independent Sector Placements,Customer and client receipts - Fees & Charges,11/03/2020,8000163058,-16.80,Revenue,Redacted Personal Data,Contributions,
Peterborough City Council,People & Communities,Independent Sector Placements,Customer and client receipts - Fees & Charges,11/03/2020,8000163061,-134.00,Revenue,Redacted Personal Data,Contributions,
Peterborough City Council,People & Communities,Independent Sector Placements,Customer and client receipts - Fees & Charges,11/03/2020,8000163062,-180.88,Revenue,Redacted Personal Data,Contributions,
Peterborough City Council,People & Communities,Independent Sector Placements,Customer and client receipts - Fees & Charges,11/03/2020,8000163065,-173.40,Revenue,Redacted Personal Data,Contributions,
Peterborough City Council,People & Communities,Independent Sector Placements,Customer and client receipts - Fees & Charges,11/03/2020,8000163067,-207.76,Revenue,Redacted Personal Data,Contributions,
Peterborough City Council,People & Communities,Independent Sector Placements,Customer and client receipts - Fees & Charges,11/03/2020,8000163070,-276.44,Revenue,Redacted Personal Data,Contributions,
Peterborough City Council,People & Communities,Independent Sector Placements,Customer and client receipts - Fees & Charges,11/03/2020,8000163073,-36.12,Revenue,Redacted Personal Data,Contributions,
Peterborough City Council,People & Communities,Independent Sector Placements,Customer and client receipts - Fees & Charges,11/03/2020,8000163076,-171.40,Revenue,Redacted Personal Data,Contributions,
Peterborough City Council,People & Communities,Independent Sector Placements,Customer and client receipts - Fees & Charges,11/03/2020,8000163080,-270.40,Revenue,Redacted Personal Data,Contributions,
Peterborough City Council,People & Communities,Independent Sector Placements,Customer and client receipts - Fees & Charges,11/03/2020,8000163083,-95.08,Revenue,Redacted Personal Data,Contributions,
Peterborough City Council,People & Communities,Independent Sector Placements,Customer and client receipts - Fees & Charges,11/03/2020,8000163087,-73.84,Revenue,Redacted Personal Data,Contributions,
Peterborough City Council,People & Communities,Independent Sector Placements,Customer and client receipts - Fees & Charges,11/03/2020,8000163091,-221.20,Revenue,Redacted Personal Data,Contributions,
Peterborough City Council,People & Communities,Independent Sector Placements,Customer and client receipts - Fees & Charges,11/03/2020,8000163095,-129.04,Revenue,Redacted Personal Data,Contributions,
Peterborough City Council,People & Communities,Independent Sector Placements,Customer and client receipts - Fees & Charges,11/03/2020,8000163096,-214.40,Revenue,Redacted Personal Data,Contributions,
Peterborough City Council,People & Communities,Independent Sector Placements,Customer and client receipts - Fees & Charges,11/03/2020,8000163101,-203.32,Revenue,Redacted Personal Data,Contributions,
Peterborough City Council,People & Communities,Independent Sector Placements,Customer and client receipts - Fees & Charges,11/03/2020,8000163104,-145.20,Revenue,Redacted Personal Data,Contributions,
Peterborough City Council,People & Communities,Independent Sector Placements,Customer and client receipts - Fees & Charges,11/03/2020,8000163112,-50.84,Revenue,Redacted Personal Data,Contributions,
Peterborough City Council,People & Communities,Independent Sector Placements,Customer and client receipts - Fees & Charges,11/03/2020,8000163114,-17.08,Revenue,Redacted Personal Data,Contributions,
Peterborough City Council,People & Communities,Independent Sector Placements,Customer and client receipts - Fees & Charges,11/03/2020,8000163115,-221.52,Revenue,Redacted Personal Data,Contributions,
Peterborough City Council,People & Communities,Independent Sector Placements,Customer and client receipts - Fees & Charges,11/03/2020,8000163117,-68.24,Revenue,Redacted Personal Data,Contributions,
Peterborough City Council,People & Communities,Independent Sector Placements,Customer and client receipts - Fees & Charges,11/03/2020,8000163122,-121.60,Revenue,Redacted Personal Data,Contributions,
Peterborough City Council,People & Communities,Independent Sector Placements,Customer and client receipts - Fees & Charges,11/03/2020,8000163123,-302.44,Revenue,Redacted Personal Data,Contributions,
Peterborough City Council,People & Communities,Independent Sector Placements,Customer and client receipts - Fees & Charges,11/03/2020,8000163131,-21.44,Revenue,Redacted Personal Data,Contributions,
Peterborough City Council,People & Communities,Independent Sector Placements,Customer and client receipts - Fees & Charges,11/03/2020,8000163132,-84.32,Revenue,Redacted Personal Data,Contributions,
Peterborough City Council,People & Communities,Independent Sector Placements,Customer and client receipts - Fees & Charges,11/03/2020,8000163136,-168.64,Revenue,Redacted Personal Data,Contributions,
Peterborough City Council,People & Communities,Independent Sector Placements,Customer and client receipts - Fees & Charges,11/03/2020,8000163139,-118.12,Revenue,Redacted Personal Data,Contributions,
Peterborough City Council,People & Communities,Independent Sector Placements,Customer and client receipts - Fees & Charges,11/03/2020,8000163140,-26.36,Revenue,Redacted Personal Data,Contributions,
Peterborough City Council,People & Communities,Independent Sector Placements,Customer and client receipts - Fees & Charges,11/03/2020,8000163141,-141.68,Revenue,Redacted Personal Data,Contributions,
Peterborough City Council,People & Communities,Independent Sector Placements,Customer and client receipts - Fees & Charges,11/03/2020,8000163143,-325.56,Revenue,Redacted Personal Data,Contributions,
Peterborough City Council,People & Communities,Independent Sector Placements,Customer and client receipts - Fees & Charges,11/03/2020,8000163144,-87.80,Revenue,Redacted Personal Data,Contributions,
Peterborough City Council,People & Communities,Independent Sector Placements,Customer and client receipts - Fees & Charges,11/03/2020,8000163145,-132.12,Revenue,Redacted Personal Data,Contributions,
Peterborough City Council,People & Communities,Independent Sector Placements,Customer and client receipts - Fees & Charges,11/03/2020,8000163146,-373.24,Revenue,Redacted Personal Data,Contributions,
Peterborough City Council,People & Communities,Independent Sector Placements,Customer and client receipts - Fees & Charges,11/03/2020,8000163151,-121.00,Revenue,Redacted Personal Data,Contributions,
Peterborough City Council,People & Communities,Independent Sector Placements,Customer and client receipts - Fees & Charges,11/03/2020,8000163156,-65.20,Revenue,Redacted Personal Data,Contributions,
Peterborough City Council,People & Communities,Independent Sector Placements,Customer and client receipts - Fees & Charges,11/03/2020,8000163160,-211.28,Revenue,Redacted Personal Data,Contributions,
Peterborough City Council,People & Communities,Independent Sector Placements,Customer and client receipts - Fees & Charges,11/03/2020,8000163180,-26.32,Revenue,Redacted Personal Data,Contributions,
Peterborough City Council,People & Communities,Independent Sector Placements,Customer and client receipts - Fees & Charges,11/03/2020,8000163181,-47.60,Revenue,Redacted Personal Data,Contributions,
Peterborough City Council,People & Communities,Independent Sector Placements,Customer and client receipts - Fees & Charges,11/03/2020,8000163193,-342.28,Revenue,Redacted Personal Data,Contributions,
Peterborough City Council,People & Communities,Independent Sector Placements,Customer and client receipts - Fees & Charges,11/03/2020,8000163197,-32.00,Revenue,Redacted Personal Data,Contributions,
Peterborough City Council,People & Communities,Independent Sector Placements,Customer and client receipts - Fees & Charges,11/03/2020,8000163199,-322.96,Revenue,Redacted Personal Data,Contributions,
Peterborough City Council,People & Communities,Independent Sector Placements,Customer and client receipts - Fees & Charges,11/03/2020,8000163207,-422.00,Revenue,Redacted Personal Data,Contributions,
Peterborough City Council,People & Communities,Independent Sector Placements,Customer and client receipts - Fees & Charges,11/03/2020,8000163219,-395.00,Revenue,Redacted Personal Data,Contributions,
Peterborough City Council,People & Communities,Independent Sector Placements,Customer and client receipts - Fees & Charges,11/03/2020,8000163227,-110.64,Revenue,Redacted Personal Data,Contributions,
Peterborough City Council,People & Communities,Independent Sector Placements,Customer and client receipts - Fees & Charges,11/03/2020,8000163228,-356.64,Revenue,Redacted Personal Data,Contributions,
Peterborough City Council,People & Communities,Independent Sector Placements,Customer and client receipts - Fees & Charges,11/03/2020,8000163229,-276.36,Revenue,Redacted Personal Data,Contributions,
Peterborough City Council,People & Communities,Independent Sector Placements,Customer and client receipts - Fees & Charges,11/03/2020,8000163235,-422.00,Revenue,Redacted Personal Data,Contributions,
Peterborough City Council,People & Communities,Independent Sector Placements,Customer and client receipts - Fees & Charges,11/03/2020,8000163236,-963.12,Revenue,Redacted Personal Data,Contributions,
Peterborough City Council,People & Communities,Independent Sector Placements,Customer and client receipts - Fees & Charges,11/03/2020,8000163238,-312.88,Revenue,Redacted Personal Data,Contributions,
Peterborough City Council,People & Communities,Independent Sector Placements,Customer and client receipts - Fees & Charges,11/03/2020,8000163251,-399.36,Revenue,Redacted Personal Data,Contributions,
Peterborough City Council,People & Communities,Independent Sector Placements,Customer and client receipts - Fees & Charges,11/03/2020,8000163253,-404.76,Revenue,Redacted Personal Data,Contributions,
Peterborough City Council,People & Communities,Independent Sector Placements,Customer and client receipts - Fees & Charges,11/03/2020,8000163255,-88.40,Revenue,Redacted Personal Data,Contributions,
Peterborough City Council,People & Communities,Independent Sector Placements,Customer and client receipts - Fees & Charges,11/03/2020,8000163256,-25.60,Revenue,Redacted Personal Data,Contributions,
Peterborough City Council,People & Communities,Independent Sector Placements,Customer and client receipts - Fees & Charges,11/03/2020,8000163260,-217.76,Revenue,Redacted Personal Data,Contributions,
Peterborough City Council,People & Communities,Independent Sector Placements,Customer and client receipts - Fees & Charges,11/03/2020,8000163264,-91.36,Revenue,Redacted Personal Data,Contributions,
Peterborough City Council,People & Communities,Independent Sector Placements,Customer and client receipts - Fees & Charges,11/03/2020,8000163275,-279.60,Revenue,Redacted Personal Data,Contributions,
Peterborough City Council,People & Communities,Independent Sector Placements,Customer and client receipts - Fees & Charges,11/03/2020,8000163276,-50.36,Revenue,Redacted Personal Data,Contributions,
Peterborough City Council,People & Communities,Independent Sector Placements,Customer and client receipts - Fees & Charges,11/03/2020,8000163277,-118.28,Revenue,Redacted Personal Data,Contributions,
Peterborough City Council,People & Communities,Independent Sector Placements,Customer and client receipts - Fees & Charges,11/03/2020,8000163278,-346.40,Revenue,Redacted Personal Data,Contributions,
Peterborough City Council,People & Communities,Independent Sector Placements,Customer and client receipts - Fees & Charges,11/03/2020,8000163279,-140.44,Revenue,Redacted Personal Data,Contributions,
Peterborough City Council,People & Communities,Independent Sector Placements,Customer and client receipts - Fees & Charges,11/03/2020,8000163281,-176.20,Revenue,Redacted Personal Data,Contributions,
Peterborough City Council,People & Communities,Independent Sector Placements,Customer and client receipts - Fees & Charges,11/03/2020,8000163285,-158.60,Revenue,Redacted Personal Data,Contributions,
Peterborough City Council,People & Communities,Independent Sector Placements,Customer and client receipts - Fees & Charges,11/03/2020,8000163289,-402.00,Revenue,Redacted Personal Data,Contributions,
Peterborough City Council,People & Communities,Independent Sector Placements,Customer and client receipts - Fees & Charges,11/03/2020,8000163293,-191.08,Revenue,Redacted Personal Data,Contributions,
Peterborough City Council,People & Communities,Independent Sector Placements,Customer and client receipts - Fees & Charges,11/03/2020,8000163294,-282.68,Revenue,Redacted Personal Data,Contributions,
Peterborough City Council,People & Communities,Independent Sector Placements,Customer and client receipts - Fees & Charges,11/03/2020,8000163295,-118.32,Revenue,Redacted Personal Data,Contributions,
Peterborough City Council,People & Communities,Independent Sector Placements,Customer and client receipts - Fees & Charges,11/03/2020,8000163297,-151.88,Revenue,Redacted Personal Data,Contributions,
Peterborough City Council,People & Communities,Independent Sector Placements,Customer and client receipts - Fees & Charges,11/03/2020,8000163298,-121.24,Revenue,Redacted Personal Data,Contributions,
Peterborough City Council,People & Communities,Independent Sector Placements,Customer and client receipts - Fees & Charges,11/03/2020,8000163299,-133.48,Revenue,Redacted Personal Data,Contributions,
Peterborough City Council,People & Communities,Independent Sector Placements,Customer and client receipts - Fees & Charges,11/03/2020,8000163301,-39.64,Revenue,Redacted Personal Data,Contributions,
Peterborough City Council,People & Communities,Independent Sector Placements,Customer and client receipts - Fees & Charges,11/03/2020,8000163303,-144.60,Revenue,Redacted Personal Data,Contributions,
Peterborough City Council,People & Communities,Independent Sector Placements,Customer and client receipts - Fees & Charges,11/03/2020,8000163304,-113.80,Revenue,Redacted Personal Data,Contributions,
Peterborough City Council,People & Communities,Independent Sector Placements,Customer and client receipts - Fees & Charges,11/03/2020,8000163305,-132.92,Revenue,Redacted Personal Data,Contributions,
Peterborough City Council,People & Communities,Independent Sector Placements,Customer and client receipts - Fees & Charges,11/03/2020,8000163306,-116.76,Revenue,Redacted Personal Data,Contributions,
Peterborough City Council,People & Communities,Independent Sector Placements,Customer and client receipts - Fees & Charges,11/03/2020,8000163307,-422.00,Revenue,Redacted Personal Data,Contributions,
Peterborough City Council,People & Communities,Independent Sector Placements,Customer and client receipts - Fees & Charges,11/03/2020,8000163310,-377.88,Revenue,Redacted Personal Data,Contributions,
Peterborough City Council,People & Communities,Independent Sector Placements,Customer and client receipts - Fees & Charges,11/03/2020,8000163312,-50.96,Revenue,Redacted Personal Data,Contributions,
Peterborough City Council,People & Communities,Independent Sector Placements,Customer and client receipts - Fees & Charges,11/03/2020,8000163315,-78.56,Revenue,Redacted Personal Data,Contributions,
Peterborough City Council,People & Communities,Independent Sector Placements,Customer and client receipts - Fees & Charges,11/03/2020,8000163318,-33.80,Revenue,Redacted Personal Data,Contributions,
Peterborough City Council,People & Communities,Independent Sector Placements,Customer and client receipts - Fees & Charges,11/03/2020,8000163319,-17.32,Revenue,Redacted Personal Data,Contributions,
Peterborough City Council,People & Communities,Independent Sector Placements,Customer and client receipts - Fees & Charges,11/03/2020,8000163320,-154.08,Revenue,Redacted Personal Data,Contributions,
Peterborough City Council,People & Communities,Independent Sector Placements,Customer and client receipts - Fees & Charges,11/03/2020,8000163321,-18.92,Revenue,Redacted Personal Data,Contributions,
Peterborough City Council,People & Communities,Independent Sector Placements,Customer and client receipts - Fees & Charges,11/03/2020,8000163322,-333.52,Revenue,Redacted Personal Data,Contributions,
Peterborough City Council,People & Communities,Independent Sector Placements,Customer and client receipts - Fees & Charges,11/03/2020,8000163324,-319.32,Revenue,Redacted Personal Data,Contributions,
Peterborough City Council,People & Communities,Independent Sector Placements,Customer and client receipts - Fees & Charges,11/03/2020,8000163327,-125.92,Revenue,Redacted Personal Data,Contributions,
Peterborough City Council,People & Communities,Independent Sector Placements,Customer and client receipts - Fees & Charges,11/03/2020,8000163328,-304.56,Revenue,Redacted Personal Data,Contributions,
Peterborough City Council,People & Communities,Independent Sector Placements,Customer and client receipts - Fees & Charges,11/03/2020,8000163330,-39.48,Revenue,Redacted Personal Data,Contributions,
Peterborough City Council,People & Communities,Independent Sector Placements,Customer and client receipts - Fees & Charges,11/03/2020,8000163336,-163.60,Revenue,Redacted Personal Data,Contributions,
Peterborough City Council,People & Communities,Independent Sector Placements,Customer and client receipts - Fees & Charges,11/03/2020,8000163338,-105.32,Revenue,Redacted Personal Data,Contributions,
Peterborough City Council,People & Communities,Independent Sector Placements,Customer and client receipts - Fees & Charges,11/03/2020,8000163339,-411.20,Revenue,Redacted Personal Data,Contributions,
Peterborough City Council,People & Communities,Independent Sector Placements,Customer and client receipts - Fees & Charges,11/03/2020,8000163340,-114.12,Revenue,Redacted Personal Data,Contributions,
Peterborough City Council,People & Communities,Independent Sector Placements,Customer and client receipts - Fees & Charges,11/03/2020,8000163342,-349.92,Revenue,Redacted Personal Data,Contributions,
Peterborough City Council,People & Communities,Independent Sector Placements,Customer and client receipts - Fees & Charges,11/03/2020,8000163345,-82.80,Revenue,Redacted Personal Data,Contributions,
Peterborough City Council,People & Communities,Independent Sector Placements,Customer and client receipts - Fees & Charges,11/03/2020,8000163346,-197.04,Revenue,Redacted Personal Data,Contributions,
Peterborough City Council,People & Communities,Independent Sector Placements,Customer and client receipts - Fees & Charges,11/03/2020,8000163348,-402.40,Revenue,Redacted Personal Data,Contributions,
Peterborough City Council,People & Communities,Independent Sector Placements,Customer and client receipts - Fees & Charges,11/03/2020,8000163349,-133.92,Revenue,Redacted Personal Data,Contributions,
Peterborough City Council,People & Communities,Independent Sector Placements,Customer and client receipts - Fees & Charges,11/03/2020,8000163352,-383.92,Revenue,Redacted Personal Data,Contributions,
Peterborough City Council,People & Communities,Independent Sector Placements,Customer and client receipts - Fees & Charges,11/03/2020,8000163356,-395.72,Revenue,Redacted Personal Data,Contributions,
Peterborough City Council,People & Communities,Independent Sector Placements,Customer and client receipts - Fees & Charges,11/03/2020,8000163359,-402.40,Revenue,Redacted Personal Data,Contributions,
Peterborough City Council,People & Communities,Independent Sector Placements,Customer and client receipts - Fees & Charges,11/03/2020,8000163361,-136.20,Revenue,Redacted Personal Data,Contributions,
Peterborough City Council,People & Communities,Independent Sector Placements,Customer and client receipts - Fees & Charges,11/03/2020,8000163362,-422.00,Revenue,Redacted Personal Data,Contributions,
Peterborough City Council,People & Communities,Independent Sector Placements,Customer and client receipts - Fees & Charges,11/03/2020,8000163364,-127.32,Revenue,Redacted Personal Data,Contributions,
Peterborough City Council,People & Communities,Independent Sector Placements,Customer and client receipts - Fees & Charges,11/03/2020,8000163366,-12.80,Revenue,Redacted Personal Data,Contributions,
Peterborough City Council,People & Communities,Independent Sector Placements,Customer and client receipts - Fees & Charges,11/03/2020,8000163371,-149.96,Revenue,Redacted Personal Data,Contributions,
Peterborough City Council,People & Communities,Independent Sector Placements,Customer and client receipts - Fees & Charges,11/03/2020,8000163372,-282.76,Revenue,Redacted Personal Data,Contributions,
Peterborough City Council,People & Communities,Independent Sector Placements,Customer and client receipts - Fees & Charges,11/03/2020,8000163374,-158.60,Revenue,Redacted Personal Data,Contributions,
Peterborough City Council,People & Communities,Independent Sector Placements,Customer and client receipts - Fees & Charges,11/03/2020,8000163380,-374.16,Revenue,Redacted Personal Data,Contributions,
Peterborough City Council,People & Communities,Independent Sector Placements,Customer and client receipts - Fees & Charges,11/03/2020,8000163383,-422.00,Revenue,Redacted Personal Data,Contributions,
Peterborough City Council,People & Communities,Independent Sector Placements,Customer and client receipts - Fees & Charges,11/03/2020,8000163384,-105.24,Revenue,Redacted Personal Data,Contributions,
Peterborough City Council,People & Communities,Independent Sector Placements,Customer and client receipts - Fees & Charges,11/03/2020,8000163386,-329.20,Revenue,Redacted Personal Data,Contributions,
Peterborough City Council,People & Communities,Independent Sector Placements,Customer and client receipts - Fees & Charges,11/03/2020,8000163392,-145.20,Revenue,Redacted Personal Data,Contributions,
Peterborough City Council,People & Communities,Independent Sector Placements,Customer and client receipts - Fees & Charges,11/03/2020,8000163396,-370.60,Revenue,Redacted Personal Data,Contributions,
Peterborough City Council,People & Communities,Independent Sector Placements,Customer and client receipts - Fees & Charges,11/03/2020,8000163398,-39.16,Revenue,Redacted Personal Data,Contributions,
Peterborough City Council,People & Communities,Independent Sector Placements,Customer and client receipts - Fees & Charges,11/03/2020,8000163400,-395.60,Revenue,Redacted Personal Data,Contributions,
Peterborough City Council,People & Communities,Independent Sector Placements,Customer and client receipts - Fees & Charges,11/03/2020,8000163402,-216.68,Revenue,Redacted Personal Data,Contributions,
Peterborough City Council,People & Communities,Independent Sector Placements,Customer and client receipts - Fees & Charges,11/03/2020,8000163403,-104.16,Revenue,Redacted Personal Data,Contributions,
Peterborough City Council,People & Communities,Independent Sector Placements,Customer and client receipts - Fees & Charges,11/03/2020,8000163406,-148.52,Revenue,Redacted Personal Data,Contributions,
Peterborough City Council,People & Communities,Independent Sector Placements,Customer and client receipts - Fees & Charges,11/03/2020,8000163410,-145.20,Revenue,Redacted Personal Data,Contributions,
Peterborough City Council,People & Communities,Independent Sector Placements,Customer and client receipts - Fees & Charges,11/03/2020,8000163411,-402.40,Revenue,Redacted Personal Data,Contributions,
Peterborough City Council,People & Communities,Independent Sector Placements,Customer and client receipts - Fees & Charges,11/03/2020,8000163418,-65.28,Revenue,Redacted Personal Data,Contributions,
Peterborough City Council,People & Communities,Independent Sector Placements,Customer and client receipts - Fees & Charges,11/03/2020,8000163425,-139.20,Revenue,Redacted Personal Data,Contributions,
Peterborough City Council,People & Communities,Independent Sector Placements,Customer and client receipts - Fees & Charges,11/03/2020,8000163430,-53.20,Revenue,Redacted Personal Data,Contributions,
Peterborough City Council,People & Communities,Independent Sector Placements,Customer and client receipts - Fees & Charges,11/03/2020,8000163432,-122.56,Revenue,Redacted Personal Data,Contributions,
Peterborough City Council,People & Communities,Independent Sector Placements,Customer and client receipts - Fees & Charges,11/03/2020,8000163436,-239.80,Revenue,Redacted Personal Data,Contributions,
Peterborough City Council,People & Communities,Independent Sector Placements,Customer and client receipts - Fees & Charges,11/03/2020,8000163437,-12.28,Revenue,Redacted Personal Data,Contributions,
Peterborough City Council,People & Communities,Independent Sector Placements,Customer and client receipts - Fees & Charges,11/03/2020,8000163438,-385.04,Revenue,Redacted Personal Data,Contributions,
Peterborough City Council,People & Communities,Independent Sector Placements,Customer and client receipts - Fees & Charges,11/03/2020,8000163439,-219.88,Revenue,Redacted Personal Data,Contributions,
Peterborough City Council,People & Communities,Independent Sector Placements,Customer and client receipts - Fees & Charges,11/03/2020,8000163441,-24.24,Revenue,Redacted Personal Data,Contributions,
Peterborough City Council,People & Communities,Independent Sector Placements,Customer and client receipts - Fees & Charges,11/03/2020,8000163443,-243.48,Revenue,Redacted Personal Data,Contributions,
Peterborough City Council,People & Communities,Independent Sector Placements,Customer and client receipts - Fees & Charges,11/03/2020,8000163446,-138.40,Revenue,Redacted Personal Data,Contributions,
Peterborough City Council,People & Communities,Independent Sector Placements,Customer and client receipts - Fees & Charges,11/03/2020,8000163450,-315.00,Revenue,Redacted Personal Data,Contributions,
Peterborough City Council,People & Communities,Independent Sector Placements,Customer and client receipts - Fees & Charges,11/03/2020,8000163451,-118.32,Revenue,Redacted Personal Data,Contributions,
Peterborough City Council,People & Communities,Independent Sector Placements,Customer and client receipts - Fees & Charges,11/03/2020,8000163455,-402.32,Revenue,Redacted Personal Data,Contributions,
Peterborough City Council,People & Communities,Independent Sector Placements,Customer and client receipts - Fees & Charges,11/03/2020,8000163457,-66.76,Revenue,Redacted Personal Data,Contributions,
Peterborough City Council,People & Communities,Independent Sector Placements,Customer and client receipts - Fees & Charges,11/03/2020,8000163460,-72.40,Revenue,Redacted Personal Data,Contributions,
Peterborough City Council,People & Communities,Independent Sector Placements,Customer and client receipts - Fees & Charges,11/03/2020,8000163463,-67.80,Revenue,Redacted Personal Data,Contributions,
Peterborough City Council,People & Communities,Independent Sector Placements,Customer and client receipts - Fees & Charges,11/03/2020,8000163467,-145.20,Revenue,Redacted Personal Data,Contributions,
Peterborough City Council,People & Communities,Independent Sector Placements,Customer and client receipts - Fees & Charges,11/03/2020,8000163470,-346.20,Revenue,Redacted Personal Data,Contributions,
Peterborough City Council,People & Communities,Independent Sector Placements,Customer and client receipts - Fees & Charges,11/03/2020,8000163472,-427.00,Revenue,Redacted Personal Data,Contributions,
Peterborough City Council,People & Communities,Independent Sector Placements,Customer and client receipts - Fees & Charges,11/03/2020,8000163474,-145.20,Revenue,Redacted Personal Data,Contributions,
Peterborough City Council,People & Communities,Independent Sector Placements,Customer and client receipts - Fees & Charges,11/03/2020,8000163475,-230.76,Revenue,Redacted Personal Data,Contributions,
Peterborough City Council,People & Communities,Independent Sector Placements,Customer and client receipts - Fees & Charges,11/03/2020,8000163479,-395.60,Revenue,Redacted Personal Data,Contributions,
Peterborough City Council,People & Communities,Independent Sector Placements,Customer and client receipts - Fees & Charges,11/03/2020,8000163482,-282.64,Revenue,Redacted Personal Data,Contributions,
Peterborough City Council,People & Communities,Independent Sector Placements,Customer and client receipts - Fees & Charges,11/03/2020,8000163484,-115.56,Revenue,Redacted Personal Data,Contributions,
Peterborough City Council,People & Communities,Independent Sector Placements,Customer and client receipts - Fees & Charges,11/03/2020,8000163487,-372.68,Revenue,Redacted Personal Data,Contributions,
Peterborough City Council,People & Communities,Independent Sector Placements,Customer and client receipts - Fees & Charges,11/03/2020,8000163490,-158.60,Revenue,Redacted Personal Data,Contributions,
Peterborough City Council,People & Communities,Independent Sector Placements,Customer and client receipts - Fees & Charges,11/03/2020,8000163491,-90.40,Revenue,Redacted Personal Data,Contributions,
Peterborough City Council,People & Communities,Independent Sector Placements,Customer and client receipts - Fees & Charges,11/03/2020,8000163497,-96.52,Revenue,Redacted Personal Data,Contributions,
Peterborough City Council,People & Communities,Independent Sector Placements,Customer and client receipts - Fees & Charges,11/03/2020,8000163499,-394.76,Revenue,Redacted Personal Data,Contributions,
Peterborough City Council,People & Communities,Independent Sector Placements,Customer and client receipts - Fees & Charges,11/03/2020,8000163507,-221.20,Revenue,Redacted Personal Data,Contributions,
Peterborough City Council,People & Communities,Independent Sector Placements,Customer and client receipts - Fees & Charges,11/03/2020,8000163509,-158.56,Revenue,Redacted Personal Data,Contributions,
Peterborough City Council,People & Communities,Independent Sector Placements,Customer and client receipts - Fees & Charges,11/03/2020,8000163510,-417.40,Revenue,Redacted Personal Data,Contributions,
Peterborough City Council,People & Communities,Independent Sector Placements,Customer and client receipts - Fees & Charges,11/03/2020,8000163513,-158.60,Revenue,Redacted Personal Data,Contributions,
Peterborough City Council,People & Communities,Independent Sector Placements,Customer and client receipts - Fees & Charges,11/03/2020,8000163516,-395.60,Revenue,Redacted Personal Data,Contributions,
Peterborough City Council,People & Communities,Independent Sector Placements,Customer and client receipts - Fees & Charges,11/03/2020,8000163517,-130.52,Revenue,Redacted Personal Data,Contributions,
Peterborough City Council,People & Communities,Independent Sector Placements,Customer and client receipts - Fees & Charges,11/03/2020,8000163518,-351.24,Revenue,Redacted Personal Data,Contributions,
Peterborough City Council,People & Communities,Independent Sector Placements,Customer and client receipts - Fees & Charges,11/03/2020,8000163520,-219.60,Revenue,Redacted Personal Data,Contributions,
Peterborough City Council,People & Communities,Independent Sector Placements,Customer and client receipts - Fees & Charges,11/03/2020,8000163525,-176.40,Revenue,Redacted Personal Data,Contributions,
Peterborough City Council,People & Communities,Independent Sector Placements,Customer and client receipts - Fees & Charges,11/03/2020,8000163534,-422.00,Revenue,Redacted Personal Data,Contributions,
Peterborough City Council,People & Communities,Independent Sector Placements,Customer and client receipts - Fees & Charges,11/03/2020,8000163544,-43.44,Revenue,Redacted Personal Data,Contributions,
Peterborough City Council,People & Communities,Independent Sector Placements,Customer and client receipts - Fees & Charges,11/03/2020,8000163546,-374.40,Revenue,Redacted Personal Data,Contributions,
Peterborough City Council,People & Communities,Independent Sector Placements,Customer and client receipts - Fees & Charges,11/03/2020,8000163548,-158.60,Revenue,Redacted Personal Data,Contributions,
Peterborough City Council,People & Communities,Independent Sector Placements,Customer and client receipts - Fees & Charges,11/03/2020,8000163550,-158.60,Revenue,Redacted Personal Data,Contributions,
Peterborough City Council,People & Communities,Independent Sector Placements,Customer and client receipts - Fees & Charges,11/03/2020,8000163551,-15.88,Revenue,Redacted Personal Data,Contributions,
Peterborough City Council,People & Communities,Independent Sector Placements,Customer and client receipts - Fees & Charges,11/03/2020,8000163554,-148.20,Revenue,Redacted Personal Data,Contributions,
Peterborough City Council,People & Communities,Independent Sector Placements,Customer and client receipts - Fees & Charges,11/03/2020,8000163555,-221.20,Revenue,Redacted Personal Data,Contributions,
Peterborough City Council,People & Communities,Independent Sector Placements,Customer and client receipts - Fees & Charges,11/03/2020,8000163558,-373.05,Revenue,Redacted Personal Data,Contributions,
Peterborough City Council,People & Communities,Independent Sector Placements,Customer and client receipts - Fees & Charges,43908,8000164069,-32.20,Revenue,Redacted Personal Data,Contributions,
Peterborough City Council,People & Communities,Independent Sector Placements,Customer and client receipts - Fees & Charges,43908,8000164075,-563.15,Revenue,Redacted Personal Data,Contributions,
Peterborough City Council,People & Communities,Independent Sector Placements,Customer and client receipts - Fees & Charges,43908,8000164076,-710.64,Revenue,Redacted Personal Data,Contributions,
Peterborough City Council,People & Communities,Independent Sector Placements,Customer and client receipts - Fees & Charges,43908,8000164077,-420.90,Revenue,Redacted Personal Data,Contributions,
Peterborough City Council,People & Communities,Independent Sector Placements,Customer and client receipts - Fees & Charges,43908,8000164080,-712.39,Revenue,Redacted Personal Data,Contributions,
Peterborough City Council,People & Communities,Finance,Services,04/03/2020,30264536,3625.00,Revenue,Solutions 4 Health Ltd,Counselling,
Peterborough City Council,Resources,Office Accomodation,Services,25/03/2020,30267926,32226.59,Revenue,GSL Dardan Ltd,Counselling,
Peterborough City Council,Chief Executives,HR WFD & Training,Services,13/03/2020,30268787,1108.40,Revenue,Health Assured Ltd,Counselling,
Peterborough City Council,Resources,Bereavement Service,Services,04/03/2020,30263974,500.00,Revenue,The Federation of Burial & Cremation Auth.,Course Fees,
Peterborough City Council,Chief Executives,HR WFD & Training,Services,25/03/2020,30267284,1482.00,Revenue,"EDGE Services,The Manual Handling Training Co.Ltd",Course Fees,
Peterborough City Council,People & Communities,Access to Resources & Specialist Commissioning,Services,25/03/2020,30270168,5070.00,Revenue,IQSA (Westbourne) Ltd,Course Fees,
Peterborough City Council,People & Communities,Access to Resources & Specialist Commissioning,Services,43915,8000164327,500.00,Revenue,Redacted Personal Data,Course Fees,
Peterborough City Council,People & Communities,Access to Resources & Specialist Commissioning,Services,43915,8000164327,500.00,Revenue,Redacted Personal Data,Course Fees,
Peterborough City Council,People & Communities,Access to Resources & Specialist Commissioning,Services,43915,8000164327,500.00,Revenue,Redacted Personal Data,Course Fees,
Peterborough City Council,Chief Executives,HR WFD & Training,Services,25/03/2020,30267109,500.00,Revenue,Cambridgeshire County Council,Course Instructors Fees,
Peterborough City Council,Chief Executives,HR WFD & Training,Services,25/03/2020,30267111,1000.00,Revenue,Cambridgeshire County Council,Course Instructors Fees,
Peterborough City Council,Chief Executives,HR WFD & Training,Services,25/03/2020,30267252,14420.00,Revenue,MA Education Ltd,Course Instructors Fees,
Peterborough City Council,People & Communities,Independent Sector Placements,Customer and client receipts - Fees & Charges,13/03/2020,30266034,4461.00,Revenue,Craegmoor Conquest Lodge Priory,Residential Care,
Peterborough City Council,Resources,Bereavement Service,Repair & Maintenance of Buildings,25/03/2020,30267877,6893.17,Revenue,Facultatieve Technologies Ltd,Cremators,
Peterborough City Council,Resources,Peterborough Serco Strategic Partnership,Services,13/03/2020,30252939,649.41,Revenue,Rossendales C B Ltd,Hired Services,
Peterborough City Council,Governance,Elections,"Other Grants, reimbursements and contributions",11/03/2020,30268228,500.00,Revenue,The Labour Party,Grant Payment,
Peterborough City Council,People & Communities,Home Services Delivery Model,Customer and client receipts - Fees & Charges,04/03/2020,30265897,-1800.00,Revenue,Casbon Building Services,Grant Payment,
Peterborough City Council,People & Communities,Home Services Delivery Model,Customer and client receipts - Fees & Charges,02/03/2020,30266520,-2638.45,Revenue,Care & Independence  Ltd,Grant Payment,
Peterborough City Council,People & Communities,Home Services Delivery Model,Customer and client receipts - Fees & Charges,04/03/2020,30266781,-854.55,Revenue,Casbon Building Services,Grant Payment,
Peterborough City Council,People & Communities,Home Services Delivery Model,Customer and client receipts - Fees & Charges,04/03/2020,30266782,-993.15,Revenue,Gaswise Services Ltd,Grant Payment,
Peterborough City Council,People & Communities,Home Services Delivery Model,Customer and client receipts - Fees & Charges,04/03/2020,30266783,-957.75,Revenue,MORLEY BUILDING SERVICES LTD,Grant Payment,
Peterborough City Council,People & Communities,Home Services Delivery Model,Customer and client receipts - Fees & Charges,09/03/2020,30266784,-600.00,Revenue,MORLEY BUILDING SERVICES LTD,Grant Payment,
Peterborough City Council,People & Communities,Home Services Delivery Model,Customer and client receipts - Fees & Charges,04/03/2020,30266786,-533.20,Revenue,Garfield Builders Ltd,Grant Payment,
Peterborough City Council,People & Communities,Home Services Delivery Model,Customer and client receipts - Fees & Charges,04/03/2020,30266788,-522.45,Revenue,Casbon Building Services,Grant Payment,
Peterborough City Council,People & Communities,Home Services Delivery Model,Customer and client receipts - Fees & Charges,04/03/2020,30266789,-1592.40,Revenue,Gaswise Services Ltd,Grant Payment,
Peterborough City Council,People & Communities,Home Services Delivery Model,Customer and client receipts - Fees & Charges,04/03/2020,30266790,-1214.70,Revenue,Casbon Building Services,Grant Payment,
